 Batch Number,Vendor Name,Invoice Number, Line,Line Amount,Account Description,Issue Date ,Total Amount Paid
902360,ROYAL MAIL====================,AD5789,1,"1,950.00",POSTAL SERVICES,02/01/14,"1,950.00"
201213E,WOLF SAFETY LAMP CO LTD=======,0000021982,1,"3,750.00",GENERAL CONSUMABLES,07/01/14,"3,750.00"
231213C,ENTEL UK LTD==================,0000134236,2,92.26,RADIO,07/01/14,254.28
231213C,ENTEL UK LTD==================,0000134236,3,68.50,RADIO,07/01/14,
231213C,ENTEL UK LTD==================,0000134236,4,45.60,RADIO,07/01/14,
231213C,ENTEL UK LTD==================,0000134236,5,38.92,RADIO,07/01/14,
231213C,ENTEL UK LTD==================,0000134236,6,9.00,RADIO,07/01/14,
030114F,*OCS GROUP UK LTD,0000220790,1,"3,144.92",CATERING,07/01/14,"3,992.09"
030114F,*OCS GROUP UK LTD,0000220790,2,181.67,CATERING,07/01/14,
030114F,*OCS GROUP UK LTD,0000220790,3,665.50,CATERING,07/01/14,
030114F,*OCS GROUP UK LTD,0000220791,1,"3,144.92",CATERING,07/01/14,"3,992.09"
030114F,*OCS GROUP UK LTD,0000220791,2,181.67,CATERING,07/01/14,
030114F,*OCS GROUP UK LTD,0000220791,3,665.50,CATERING,07/01/14,
020114G,BT GLOBAL SERVICES============,0790106941,1,500.00,TELECOMMUNICATIONS,07/01/14,500.00
020114G,EFFECTUAL STORAGE LTD=========,1000165,1,"1,327.65",OPERATIONAL EQUIP-PURCHASE,07/01/14,"1,327.65"
201213E,HAYS ACCOUNTANCY & FINANCE====,1003845127,1,696.00,FRS STAFF AGENCY,07/01/14,696.00
020114G,BT GLOBAL SERVICES============,1128459,1,541.66,TELECOMMUNICATIONS,07/01/14,541.66
030114F,CEDAFORCE LTD=================,11667,1,"4,692.00",CATERING FIXTURES,07/01/14,"4,692.00"
140506,BOURNE CONSTRUCTION COMPANY,13/488,1,"1,460.00",STRATEGIC (NON CYCLICAL),07/01/14,"1,900.00"
140506,BOURNE CONSTRUCTION COMPANY,13/488,2,440.00,STRATEGIC (NON CYCLICAL),07/01/14,
140506,BOURNE CONSTRUCTION COMPANY,13/489,1,450.00,STRATEGIC (NON CYCLICAL),07/01/14,650.00
140506,BOURNE CONSTRUCTION COMPANY,13/489,2,200.00,STRATEGIC (NON CYCLICAL),07/01/14,
201213E,URS SCOTT WILSON LIMITED,130076,1,900.00,PROF FEES-MISCELLANEOUS,07/01/14,900.00
191213G,BUREAU VERITAS HS&E LTD=======,13022253,1,"95,626.48",SCIENTIFIC SERVICES,07/01/14,"95,626.48"
020114C,SURREY BLIND & CURTAIN CO=====,14029,1,252.00,FIXTURES & FITTINGS,07/01/14,252.00
191213C,H FINE & SON LTD==============,145590,1,490.00,GENERAL CONSUMABLES,07/01/14,490.00
030114F,DRON & WRIGHT=================,16815,1,"1,715.00",PROFESSIONAL SERVICES,07/01/14,"1,715.00"
231213F,AIRSERVICES(UK)===============,16844,1,39.00,REPAIR & MAINTENANCE,07/01/14,294.00
231213F,AIRSERVICES(UK)===============,16844,2,39.00,REPAIR & MAINTENANCE,07/01/14,
231213F,AIRSERVICES(UK)===============,16844,3,8.00,REPAIR & MAINTENANCE,07/01/14,
231213F,AIRSERVICES(UK)===============,16844,4,208.00,REPAIR & MAINTENANCE,07/01/14,
171213C,MICHELLE GILL,171213,1,350.00,CONSULTANTS,07/01/14,350.00
181213C,COMMUNITIES & LOCAL GOVERNMENT,1800019414,1,"8,024.10",MAINTENANCE & SUPPORT,07/01/14,"116,906.67"
181213C,COMMUNITIES & LOCAL GOVERNMENT,1800019414,2,"108,882.57",MAINTENANCE & SUPPORT,07/01/14,
121213C,B NOKES CONTRACTS LTD,2001,1,"1,377.50",REFUSE COLLECTION,07/01/14,"1,377.50"
800027723,*OCS GROUP UK LTD,212395-40,1,425.00,REFRESHMENTS,07/01/14,425.00
800027726,*OCS GROUP UK LTD,212395-43,1,637.50,REFRESHMENTS,07/01/14,637.50
800027754,*OCS GROUP UK LTD,212395-71,1,510.00,REFRESHMENTS,07/01/14,510.00
030114F,BRISTOL UNIFORMS LTD==========,239737,1,725.99,CLOTHING,07/01/14,725.99
030114F,BRISTOL UNIFORMS LTD==========,239738,1,"1,784.10",CLOTHING,07/01/14,"1,784.10"
030114F,BRISTOL UNIFORMS LTD==========,239739,1,"192,411.72",CLOTHING,07/01/14,"192,411.72"
201213E,RESPIRATORY PROTECTIVE ASSESSM,2588,1,"1,100.00",PROFESSIONAL DEVELOPMENT,07/01/14,"1,100.00"
800027024,ADECCO UK LIMITED=============,26627903,1,945.42,FRS STAFF AGENCY,07/01/14,945.42
800027028,ADECCO UK LIMITED=============,26627907,1,729.36,CONSULTANTS,07/01/14,729.36
800027029,ADECCO UK LIMITED=============,26627908,1,729.36,CONSULTANTS,07/01/14,729.36
800027030,ADECCO UK LIMITED=============,26627909,1,729.36,CONSULTANTS,07/01/14,729.36
800027032,ADECCO UK LIMITED=============,26627911,1,439.60,FRS STAFF AGENCY,07/01/14,439.60
800027033,ADECCO UK LIMITED=============,26627912,1,351.68,FRS STAFF AGENCY,07/01/14,351.68
800027376,ADECCO UK LIMITED=============,26635266,1,945.42,FRS STAFF AGENCY,07/01/14,945.42
800027390,ADECCO UK LIMITED=============,26635280,1,711.96,FRS STAFF AGENCY,07/01/14,711.96
800027391,ADECCO UK LIMITED=============,26635281,1,729.36,CONSULTANTS,07/01/14,729.36
800027648,ADECCO UK LIMITED=============,26642391,1,884.24,FRS STAFF AGENCY,07/01/14,884.24
800027649,ADECCO UK LIMITED=============,26642392,1,"2,500.00",FRS STAFF AGENCY,07/01/14,"2,500.00"
800027650,ADECCO UK LIMITED=============,26642393,1,594.65,FRS STAFF AGENCY,07/01/14,594.65
800027651,ADECCO UK LIMITED=============,26642394,1,535.19,FRS STAFF AGENCY,07/01/14,535.19
800027652,ADECCO UK LIMITED=============,26642395,1,594.65,FRS STAFF AGENCY,07/01/14,594.65
800027653,ADECCO UK LIMITED=============,26642396,1,439.60,FRS STAFF AGENCY,07/01/14,439.60
800027654,ADECCO UK LIMITED=============,26642397,1,945.42,FRS STAFF AGENCY,07/01/14,945.42
800027656,ADECCO UK LIMITED=============,26642399,1,439.60,FRS STAFF AGENCY,07/01/14,439.60
800027657,ADECCO UK LIMITED=============,26642400,1,351.68,FRS STAFF AGENCY,07/01/14,351.68
800027680,ADECCO UK LIMITED=============,26642401,1,439.60,FRS STAFF AGENCY,07/01/14,439.60
800027681,ADECCO UK LIMITED=============,26642402,1,314.00,FRS STAFF AGENCY,07/01/14,314.00
800027682,ADECCO UK LIMITED=============,26642403,1,439.60,FRS STAFF AGENCY,07/01/14,439.60
800027658,ADECCO UK LIMITED=============,26642404,1,594.65,FRS STAFF AGENCY,07/01/14,594.65
800027659,ADECCO UK LIMITED=============,26642405,1,686.28,FRS STAFF AGENCY,07/01/14,686.28
800027660,ADECCO UK LIMITED=============,26642406,1,875.07,FRS STAFF AGENCY,07/01/14,875.07
800027661,ADECCO UK LIMITED=============,26642407,1,584.15,FRS STAFF AGENCY,07/01/14,584.15
800027662,ADECCO UK LIMITED=============,26642408,1,594.65,FRS STAFF AGENCY,07/01/14,594.65
800027663,ADECCO UK LIMITED=============,26642409,1,335.04,FRS STAFF AGENCY,07/01/14,335.04
800027664,ADECCO UK LIMITED=============,26642410,1,439.60,FRS STAFF AGENCY,07/01/14,439.60
800027665,ADECCO UK LIMITED=============,26642411,1,"1,949.85",FRS STAFF AGENCY,07/01/14,"1,949.85"
800027666,ADECCO UK LIMITED=============,26642412,1,"1,445.40",FRS STAFF AGENCY,07/01/14,"1,445.40"
800027667,ADECCO UK LIMITED=============,26642413,1,"1,450.89",FRS STAFF AGENCY,07/01/14,"1,450.89"
800027668,ADECCO UK LIMITED=============,26642414,1,594.65,FRS STAFF AGENCY,07/01/14,594.65
800027669,ADECCO UK LIMITED=============,26642415,1,594.65,FRS STAFF AGENCY,07/01/14,594.65
800027670,ADECCO UK LIMITED=============,26642416,1,994.50,FRS STAFF AGENCY,07/01/14,994.50
800027671,ADECCO UK LIMITED=============,26642417,1,729.36,CONSULTANTS,07/01/14,729.36
800027672,ADECCO UK LIMITED=============,26646132,1,"1,212.00",FRS STAFF AGENCY,07/01/14,"1,212.00"
800027673,ADECCO UK LIMITED=============,26646133,1,"1,212.00",FRS STAFF AGENCY,07/01/14,"1,212.00"
191213C,L B OF SUTTON=================,3183651774,1,616.00,CRB CHECKS,07/01/14,616.00
171213C,CK DIRECT,3213,1,"9,175.00",STRATEGIC (NON CYCLICAL),07/01/14,"9,175.00"
171213C,CK DIRECT,3218,1,"9,025.00",STRATEGIC (NON CYCLICAL),07/01/14,"9,025.00"
231213C,CK DIRECT,3237,1,"12,285.00",CATERING FIXTURES,07/01/14,"12,285.00"
231213F,SPECTRUM======================,3245,1,260.00,SPECIALIST EQUIPMENT,07/01/14,260.00
030114F,HUNTERS CONTRACTS LIMITED,344119,1,521.25,OFFICE FURNITURE,07/01/14,521.25
020114C,HUNTERS CONTRACTS LIMITED,344496,1,"2,100.64",STRATEGIC (NON CYCLICAL),07/01/14,"2,100.64"
161213C,BRAMBLE.CC LTD================,3471,1,"13,226.00",PURCHASES-SOFTWARE,07/01/14,"19,449.00"
161213C,BRAMBLE.CC LTD================,3471,2,"6,223.00",PURCHASES-SOFTWARE,07/01/14,
020114C,W.GILCHRIST & CO,3497,1,117.79,REPAIR & MAINTENANCE,07/01/14,267.87
020114C,W.GILCHRIST & CO,3497,2,140.08,REPAIR & MAINTENANCE,07/01/14,
020114C,W.GILCHRIST & CO,3497,3,10.00,REPAIR & MAINTENANCE,07/01/14,
020114C,W.GILCHRIST & CO,3498,1,635.00,PURCHASE,07/01/14,"1,015.00"
020114C,W.GILCHRIST & CO,3498,2,365.00,PURCHASE,07/01/14,
020114C,W.GILCHRIST & CO,3498,3,15.00,PURCHASE,07/01/14,
140508,FOCUS & VISION TECHNOLOGY LTD,37951,1,274.48,MEDICAL EXPENSES CLAIMS,07/01/14,274.48
140508,FOCUS & VISION TECHNOLOGY LTD,38005,1,504.00,MEDICAL EXPENSES CLAIMS,07/01/14,504.00
191213G,COMPUTACENTRE================,3805300059,1,22.00,ACQUISITIONS,07/01/14,459.00
191213G,COMPUTACENTRE================,3805300059,2,437.00,ACQUISITIONS,07/01/14,
140508,THAMES WATER UTILITIES LTD====,38201-85478L,1,383.61,WATER & SEWERAGE RATES,07/01/14,383.61
800027566,*BURLINGTON UNIFORMS LTD,424253,1,191.87,CLOTHING,07/01/14,383.74
800027566,*BURLINGTON UNIFORMS LTD,424253,2,191.87,CLOTHING,07/01/14,
800027568,*BURLINGTON UNIFORMS LTD,424255,1,191.87,CLOTHING,07/01/14,383.74
800027568,*BURLINGTON UNIFORMS LTD,424255,2,191.87,CLOTHING,07/01/14,
020114C,SPORTSAFE UK LTD==============,451984,1,195.00,GYM EQUIPMENT,07/01/14,620.00
020114C,SPORTSAFE UK LTD==============,451984,2,425.00,GYM EQUIPMENT,07/01/14,
020114C,WESTMINSTER CATHEDRAL=========,515,1,"1,149.00",PUBLIC RELATIONS,07/01/14,"1,149.00"
020114C,FAHEY BUILDERS LTD============,5182,1,"6,576.00",STRATEGIC (NON CYCLICAL),07/01/14,"6,576.00"
800027048,*GREENHAM TRADING LTD=========,5622567,1,12.33,HYGIENE,07/01/14,368.27
800027048,*GREENHAM TRADING LTD=========,5622567,2,9.63,HYGIENE,07/01/14,
800027048,*GREENHAM TRADING LTD=========,5622567,3,4.20,HYGIENE,07/01/14,
800027048,*GREENHAM TRADING LTD=========,5622567,4,87.34,HYGIENE,07/01/14,
800027048,*GREENHAM TRADING LTD=========,5622567,5,31.00,HYGIENE,07/01/14,
800027048,*GREENHAM TRADING LTD=========,5622567,6,32.85,CLOTHING,07/01/14,
800027048,*GREENHAM TRADING LTD=========,5622567,7,105.90,OFFICE EQUIPMENT,07/01/14,
800027048,*GREENHAM TRADING LTD=========,5622567,8,75.39,HYGIENE,07/01/14,
800027048,*GREENHAM TRADING LTD=========,5622567,9,9.63,HYGIENE,07/01/14,
020114C,TOYOTA MATERIAL HANDLING UK LT,610096656,1,909.99,PURCHASE,07/01/14,909.99
020114G,MOORE STEPHENS CONSULTING LTD=,673353,1,"5,245.00",PROF FEES-MISCELLANEOUS,07/01/14,"21,345.00"
020114G,MOORE STEPHENS CONSULTING LTD=,673353,2,"8,100.00",PROF FEES-MISCELLANEOUS,07/01/14,
020114G,MOORE STEPHENS CONSULTING LTD=,673353,3,"8,000.00",PROF FEES-MISCELLANEOUS,07/01/14,
161213C,EAKO LTD (ELVIS & KRESSE),684,1,820.00,GENERAL,07/01/14,820.00
020114G,*SP SERVICES,716781,1,"1,190.00",OFFICE FURNITURE,07/01/14,"1,190.00"
020114G,ACCO SERVICE DIVISION=========,8626898,1,504.04,OFFICE EQUIPMENT,07/01/14,504.04
140508,NPOWER YORKSHIRE LIMITED,8871896607,1,366.78,ELECTRICITY,07/01/14,366.78
020114C,DRAEGER SAFETY UK LIMITED=====,90432400,1,368.00,GENERAL CONSUMABLES,07/01/14,368.00
020114C,DRAEGER SAFETY UK LIMITED=====,90432617,1,"1,140.60",PROTECTIVE EQUIPT - PARTS,07/01/14,"1,140.60"
171213C,CAPITA SECURE INFO SOLUTIONS,93338438,1,"1,430.00",CONSULTANTS,07/01/14,"1,430.00"
181213C,CAPITA SECURE INFO SOLUTIONS,93339810,1,"53,214.26",CAMS CONTRACT,07/01/14,"53,214.26"
140508,THAMES WATER UTILITIES LTD====,9575238148:,1,317.32,WATER & SEWERAGE RATES,07/01/14,317.32
020114C,*OFFICE DEPOT UK LTD,959801266,1,"2,380.00",STATIONERY CONSUMABLES,07/01/14,"2,380.00"
020114G,BRISTOL UNIFORMS LTD==========,BC-12-13-S1211,1,416.25,CLOTHING,07/01/14,416.25
231213C,CORPORATE PROPERTY ADVISERS LT,CA702MP,1,"6,000.00",CONSULTANTS,07/01/14,"6,000.00"
020114G,VODAFONE LIMITED==============,FR09917,1,125.00,TELECOMMUNICATIONS,07/01/14,366.66
020114G,VODAFONE LIMITED==============,FR09917,2,125.00,TELECOMMUNICATIONS,07/01/14,
020114G,VODAFONE LIMITED==============,FR09917,3,116.66,TELECOMMUNICATIONS,07/01/14,
020114G,WM ENGINEERING SERVICES LTD===,I-4612,1,430.80,TACTICAL DAY TO DAY,07/01/14,430.80
020114G,HALL FUELS,I06484636,1,"2,751.50",FUEL,07/01/14,"2,751.50"
201213E,HALL FUELS,I06488283,1,"3,301.80",FUEL,07/01/14,"3,301.80"
201213E,HALL FUELS,I06490949,1,"1,100.60",FUEL,07/01/14,"1,100.60"
030114F,HALL FUELS,I06507208,1,"4,224.08",FUEL,07/01/14,"4,224.08"
191213C,HALL FUELS,I06513258,1,"2,768.25",FUEL,07/01/14,"2,768.25"
191213C,HALL FUELS,I06520490,1,"2,214.60",FUEL,07/01/14,"2,214.60"
231213F,HALL FUELS,I06523692,1,"3,321.90",FUEL,07/01/14,"3,321.90"
020114G,HALL FUELS,I06529133,1,"2,198.40",FUEL,07/01/14,"2,198.40"
030114F,HALL FUELS,I06534731,1,"3,297.60",FUEL,07/01/14,"3,297.60"
020114G,HALL FUELS,I06537827,1,"2,748.00",FUEL,07/01/14,"2,748.00"
191213G,BABCOCK CRITICAL SERVICES LTD,II5000167,1,264.50,GENERAL,07/01/14,264.50
020114C,PURDY CONTRACTS LTD,IN229501,1,"22,380.98",DAY TO DAY MINOR IMPS,07/01/14,"22,380.98"
020114C,PURDY CONTRACTS LTD,IN229502,1,"16,205.98",DAY TO DAY MINOR IMPS,07/01/14,"16,205.98"
020114G,JACKSON LIFT GROUP============,JS351316R,1,"2,085.00",STRATEGIC (NON CYCLICAL),07/01/14,"2,085.00"
020114G,JACKSON LIFT GROUP============,JS351317R,1,"2,085.00",STRATEGIC (NON CYCLICAL),07/01/14,"4,170.00"
020114G,JACKSON LIFT GROUP============,JS351317R,2,"2,085.00",STRATEGIC (NON CYCLICAL),07/01/14,
171213C,COFELY WORKPLACE LIMITED,M125380,1,575.00,STRATEGIC (NON CYCLICAL),07/01/14,575.00
171213C,COFELY WORKPLACE LIMITED,M125381,1,976.38,CATERING FIXTURES,07/01/14,976.38
171213C,COFELY WORKPLACE LIMITED,M125382,1,682.92,STRATEGIC (NON CYCLICAL),07/01/14,682.92
171213C,COFELY WORKPLACE LIMITED,M125383,1,"7,140.54",STRATEGIC (NON CYCLICAL),07/01/14,"7,140.54"
171213C,COFELY WORKPLACE LIMITED,M125384,1,"1,614.40",STRATEGIC (NON CYCLICAL),07/01/14,"1,614.40"
171213C,COFELY WORKPLACE LIMITED,M125385,1,"1,411.65",STRATEGIC (NON CYCLICAL),07/01/14,"1,411.65"
171213C,COFELY WORKPLACE LIMITED,M125386,1,"1,557.77",STRATEGIC (NON CYCLICAL),07/01/14,"1,557.77"
171213C,COFELY WORKPLACE LIMITED,M125387,1,412.85,STRATEGIC (CYCLICAL),07/01/14,412.85
171213C,COFELY WORKPLACE LIMITED,M125388,1,"1,284.17",STRATEGIC (NON CYCLICAL),07/01/14,"1,284.17"
171213C,COFELY WORKPLACE LIMITED,M125389,1,"2,148.00",STRATEGIC (NON CYCLICAL),07/01/14,"2,148.00"
020114G,ESTEEM SYSTEMS LTD============,OP/I074988,1,"3,300.00",MAINTENANCE & SUPPORT,07/01/14,"3,300.00"
020114G,PHOENIX SOFTWARE LTD==========,OP/I715106,1,"25,312.00",MAINTENANCE & SUPPORT,07/01/14,"31,442.00"
020114G,PHOENIX SOFTWARE LTD==========,OP/I715106,2,"6,130.00",MAINTENANCE & SUPPORT,07/01/14,
020114C,PILLINGER CONTROLS LTD========,PI721149,1,953.26,STRATEGIC (NON CYCLICAL),07/01/14,953.26
020114C,PILLINGER CONTROLS LTD========,PI72150,1,525.00,STRATEGIC (NON CYCLICAL),07/01/14,525.00
191213C,FIBERWEB GEOSYNTHETICS LTD,PSV114838,1,364.32,GENERAL CONSUMABLES,07/01/14,364.32
191213G,HUNTER LODGE==================,SI-05409,1,"39,340.00",ADVERTISING,07/01/14,"39,340.00"
171213C,MAYPLACE PROPERTY SERVICES LIM,SI1023,1,750.00,STRATEGIC (NON CYCLICAL),07/01/14,884.73
171213C,MAYPLACE PROPERTY SERVICES LIM,SI1023,2,134.73,STRATEGIC (NON CYCLICAL),07/01/14,
191213G,MAYPLACE PROPERTY SERVICES LIM,SI1024,1,"1,250.00",STRATEGIC (NON CYCLICAL),07/01/14,"3,172.64"
191213G,MAYPLACE PROPERTY SERVICES LIM,SI1024,2,"1,387.64",STRATEGIC (NON CYCLICAL),07/01/14,
191213G,MAYPLACE PROPERTY SERVICES LIM,SI1024,3,250.00,STRATEGIC (NON CYCLICAL),07/01/14,
191213G,MAYPLACE PROPERTY SERVICES LIM,SI1024,4,285.00,STRATEGIC (NON CYCLICAL),07/01/14,
191213G,BABCOCK CRITICAL SERVICES LTD,SIMP012156,1,"29,343.51",OPERATIONAL EQUIP-PURCHASE,07/01/14,"29,343.51"
140487,LPFA CONTRIBUTIONS ACCOUNT====,VAB349,1,"2,286.90",OTHER LPFA PAYMENTS,07/01/14,"2,286.90"
020114C,ARVAL UK LTD,VS0000873035,1,"1,629.12",CONTRACT HIRE,07/01/14,"1,629.12"
902362,BANK OF SCOTLAND,593.485.01.108000/0114,1,"229,381.86",VEHICLES,08/01/14,"229,381.86"
070114F,MOOLANDS LTD,00000273,1,"8,790.00",STRATEGIC (NON CYCLICAL),09/01/14,"8,790.00"
060114G,SYNERGY HEALTH LAB SERVICE LTD,0000105216,1,132.00,DRUG & ALCOHOL TESTS,09/01/14,660.00
060114G,SYNERGY HEALTH LAB SERVICE LTD,0000105216,2,132.00,DRUG & ALCOHOL TESTS,09/01/14,
060114G,SYNERGY HEALTH LAB SERVICE LTD,0000105216,3,132.00,DRUG & ALCOHOL TESTS,09/01/14,
060114G,SYNERGY HEALTH LAB SERVICE LTD,0000105216,4,264.00,DRUG & ALCOHOL TESTS,09/01/14,
060114G,SYNERGY HEALTH LAB SERVICE LTD,0000105933,1,190.00,DRUG & ALCOHOL TESTS,09/01/14,380.00
060114G,SYNERGY HEALTH LAB SERVICE LTD,0000105933,2,190.00,DRUG & ALCOHOL TESTS,09/01/14,
030114C,WARWICK IC SYSTEMS LTD=======,10455,1,"2,429.00",MAINTENANCE & SUPPORT,09/01/14,"2,429.00"
231213C,TECHNICLEAN SUPPLY LTD,105457,1,"1,014.00",GENERAL CONSUMABLES,09/01/14,"1,014.00"
060114G,*SPRUE SAFETY PRODUCTS LTD====,1055721,1,"1,730.40",FIRE DETECTORS,09/01/14,"1,730.40"
060114G,*SPRUE SAFETY PRODUCTS LTD====,1055723,1,"1,730.40",FIRE DETECTORS,09/01/14,"1,730.40"
800027646,*GET YOURSELF NOTICED LTD,10649,1,307.00,SPECIALIST EQUIPMENT,09/01/14,"1,008.50"
800027646,*GET YOURSELF NOTICED LTD,10649,2,282.50,SPECIALIST EQUIPMENT,09/01/14,
800027646,*GET YOURSELF NOTICED LTD,10649,3,136.50,SPECIALIST EQUIPMENT,09/01/14,
800027646,*GET YOURSELF NOTICED LTD,10649,4,282.50,SPECIALIST EQUIPMENT,09/01/14,
070114F,REGENT OFFICE CARE LTD========,11109,1,158.70,STRATEGIC (CYCLICAL),09/01/14,"5,014.92"
070114F,REGENT OFFICE CARE LTD========,11109,2,158.70,STRATEGIC (CYCLICAL),09/01/14,
070114F,REGENT OFFICE CARE LTD========,11109,3,190.44,STRATEGIC (CYCLICAL),09/01/14,
070114F,REGENT OFFICE CARE LTD========,11109,4,190.44,STRATEGIC (CYCLICAL),09/01/14,
070114F,REGENT OFFICE CARE LTD========,11109,5,190.44,STRATEGIC (CYCLICAL),09/01/14,
070114F,REGENT OFFICE CARE LTD========,11109,6,158.70,STRATEGIC (CYCLICAL),09/01/14,
070114F,REGENT OFFICE CARE LTD========,11109,7,190.44,STRATEGIC (CYCLICAL),09/01/14,
070114F,REGENT OFFICE CARE LTD========,11109,8,190.44,STRATEGIC (CYCLICAL),09/01/14,
070114F,REGENT OFFICE CARE LTD========,11109,9,190.44,STRATEGIC (CYCLICAL),09/01/14,
070114F,REGENT OFFICE CARE LTD========,11109,10,190.44,STRATEGIC (CYCLICAL),09/01/14,
070114F,REGENT OFFICE CARE LTD========,11109,11,190.44,STRATEGIC (CYCLICAL),09/01/14,
070114F,REGENT OFFICE CARE LTD========,11109,12,158.70,STRATEGIC (CYCLICAL),09/01/14,
070114F,REGENT OFFICE CARE LTD========,11109,13,158.70,STRATEGIC (CYCLICAL),09/01/14,
070114F,REGENT OFFICE CARE LTD========,11109,14,158.70,STRATEGIC (CYCLICAL),09/01/14,
070114F,REGENT OFFICE CARE LTD========,11109,15,190.44,STRATEGIC (CYCLICAL),09/01/14,
070114F,REGENT OFFICE CARE LTD========,11109,16,190.44,STRATEGIC (CYCLICAL),09/01/14,
070114F,REGENT OFFICE CARE LTD========,11109,17,158.70,STRATEGIC (CYCLICAL),09/01/14,
070114F,REGENT OFFICE CARE LTD========,11109,18,190.44,STRATEGIC (CYCLICAL),09/01/14,
070114F,REGENT OFFICE CARE LTD========,11109,19,158.70,STRATEGIC (CYCLICAL),09/01/14,
070114F,REGENT OFFICE CARE LTD========,11109,20,158.70,STRATEGIC (CYCLICAL),09/01/14,
070114F,REGENT OFFICE CARE LTD========,11109,21,190.44,STRATEGIC (CYCLICAL),09/01/14,
070114F,REGENT OFFICE CARE LTD========,11109,22,158.70,STRATEGIC (CYCLICAL),09/01/14,
070114F,REGENT OFFICE CARE LTD========,11109,23,158.70,STRATEGIC (CYCLICAL),09/01/14,
070114F,REGENT OFFICE CARE LTD========,11109,24,158.70,STRATEGIC (CYCLICAL),09/01/14,
070114F,REGENT OFFICE CARE LTD========,11109,25,158.70,STRATEGIC (CYCLICAL),09/01/14,
070114F,REGENT OFFICE CARE LTD========,11109,26,158.70,STRATEGIC (CYCLICAL),09/01/14,
070114F,REGENT OFFICE CARE LTD========,11109,27,190.44,STRATEGIC (CYCLICAL),09/01/14,
070114F,REGENT OFFICE CARE LTD========,11109,28,158.70,STRATEGIC (CYCLICAL),09/01/14,
070114F,REGENT OFFICE CARE LTD========,11109,29,158.70,STRATEGIC (CYCLICAL),09/01/14,
070114F,ESRI (UK) LIMITED=============,117671,1,"3,200.00",MAINTENANCE & SUPPORT,09/01/14,"21,892.50"
070114F,ESRI (UK) LIMITED=============,117671,2,"4,062.50",MAINTENANCE & SUPPORT,09/01/14,
070114F,ESRI (UK) LIMITED=============,117671,3,"1,750.00",MAINTENANCE & SUPPORT,09/01/14,
070114F,ESRI (UK) LIMITED=============,117671,4,"6,490.00",MAINTENANCE & SUPPORT,09/01/14,
070114F,ESRI (UK) LIMITED=============,117671,5,"3,200.00",MAINTENANCE & SUPPORT,09/01/14,
070114F,ESRI (UK) LIMITED=============,117671,6,"1,150.00",MAINTENANCE & SUPPORT,09/01/14,
070114F,ESRI (UK) LIMITED=============,117671,7,"2,040.00",MAINTENANCE & SUPPORT,09/01/14,
030114C,PA ASSOCIATES (UK) LTD========,13089,1,"8,008.37",DEVELOPMENT  EXPENSES-CONTRACT,09/01/14,"8,008.37"
060114G,PACE PETROLEUM LIMITED========,1661069,1,"5,014.80",FUEL,09/01/14,"5,014.80"
030114C,BEAUMONT CONSTRUCTION SERVICES,1931,1,"4,327.09",STRATEGIC (NON CYCLICAL),09/01/14,"4,327.09"
030114C,BEAUMONT CONSTRUCTION SERVICES,1947,1,507.90,RADIO,09/01/14,507.90
070114F,MITIE TECH FACILITIES MNGT LT,210853356,1,"6,612.90",DEVELOPMENT  EXPENSES-CONTRACT,09/01/14,"178,859.79"
070114F,MITIE TECH FACILITIES MNGT LT,210853356,2,28.46,DEVELOPMENT  EXPENSES-CONTRACT,09/01/14,
070114F,MITIE TECH FACILITIES MNGT LT,210853356,3,423.27,DEVELOPMENT  EXPENSES-CONTRACT,09/01/14,
070114F,MITIE TECH FACILITIES MNGT LT,210853356,4,"1,730.98",DEVELOPMENT  EXPENSES-CONTRACT,09/01/14,
070114F,MITIE TECH FACILITIES MNGT LT,210853356,5,"13,904.09",DEVELOPMENT  EXPENSES-CONTRACT,09/01/14,
070114F,MITIE TECH FACILITIES MNGT LT,210853356,6,"2,876.83",DEVELOPMENT  EXPENSES-CONTRACT,09/01/14,
070114F,MITIE TECH FACILITIES MNGT LT,210853356,7,341.49,DEVELOPMENT  EXPENSES-CONTRACT,09/01/14,
070114F,MITIE TECH FACILITIES MNGT LT,210853356,8,10.91,DEVELOPMENT  EXPENSES-CONTRACT,09/01/14,
070114F,MITIE TECH FACILITIES MNGT LT,210853356,9,"2,518.58",DEVELOPMENT  EXPENSES-CONTRACT,09/01/14,
070114F,MITIE TECH FACILITIES MNGT LT,210853356,10,"10,779.38",DEVELOPMENT  EXPENSES-CONTRACT,09/01/14,
070114F,MITIE TECH FACILITIES MNGT LT,210853356,11,"49,683.20",DEVELOPMENT  EXPENSES-CONTRACT,09/01/14,
070114F,MITIE TECH FACILITIES MNGT LT,210853356,12,"38,282.49",DEVELOPMENT  EXPENSES-CONTRACT,09/01/14,
070114F,MITIE TECH FACILITIES MNGT LT,210853356,13,1.10,DEVELOPMENT  EXPENSES-CONTRACT,09/01/14,
070114F,MITIE TECH FACILITIES MNGT LT,210853356,14,"8,345.81",DEVELOPMENT  EXPENSES-CONTRACT,09/01/14,
070114F,MITIE TECH FACILITIES MNGT LT,210853356,15,"37,183.62",DEVELOPMENT  EXPENSES-CONTRACT,09/01/14,
070114F,MITIE TECH FACILITIES MNGT LT,210853356,16,"6,136.68",DEVELOPMENT  EXPENSES-CONTRACT,09/01/14,
070114F,SAFEGUARD PEST CON. & ENV.LTD,212041,1,"1,550.00",PEST CONTROL,09/01/14,"1,550.00"
800027809,*OCS GROUP UK LTD,212395-115,1,"4,155.50",REFRESHMENTS,09/01/14,"4,155.50"
800027700,*OCS GROUP UK LTD,212395-17,1,510.00,REFRESHMENTS,09/01/14,510.00
800027892,ADECCO UK LIMITED=============,26656337,1,297.33,FRS STAFF AGENCY,09/01/14,297.33
800027893,ADECCO UK LIMITED=============,26656338,1,356.79,FRS STAFF AGENCY,09/01/14,356.79
800027897,ADECCO UK LIMITED=============,26656342,1,343.14,FRS STAFF AGENCY,09/01/14,343.14
800027899,ADECCO UK LIMITED=============,26656344,1,"1,686.30",FRS STAFF AGENCY,09/01/14,"1,686.30"
800027900,ADECCO UK LIMITED=============,26656345,1,481.80,FRS STAFF AGENCY,09/01/14,481.80
800027902,ADECCO UK LIMITED=============,26656347,1,375.03,FRS STAFF AGENCY,09/01/14,375.03
800027903,ADECCO UK LIMITED=============,26656348,1,293.16,FRS STAFF AGENCY,09/01/14,293.16
800027904,ADECCO UK LIMITED=============,26656349,1,540.24,FRS STAFF AGENCY,09/01/14,540.24
800027905,ADECCO UK LIMITED=============,26656350,1,497.25,FRS STAFF AGENCY,09/01/14,497.25
800027906,ADECCO UK LIMITED=============,26656351,1,547.02,CONSULTANTS,09/01/14,547.02
800027907,ADECCO UK LIMITED=============,26658445,1,867.83,FRS STAFF AGENCY,09/01/14,867.83
060114C,BOC LIMITED===================,3021999199,1,"1,577.80",REPAIR & MAINTENANCE,09/01/14,"2,847.40"
060114C,BOC LIMITED===================,3021999199,2,"1,269.60",REPAIR & MAINTENANCE,09/01/14,
030114C,CK DIRECT,3247,1,"9,960.00",STRATEGIC (NON CYCLICAL),09/01/14,"9,960.00"
140509,REACTIVE ROOFING (UK) LIMITED,3544,1,"2,758.51",STRATEGIC (NON CYCLICAL),09/01/14,"4,014.51"
140509,REACTIVE ROOFING (UK) LIMITED,3544,2,"1,256.00",STRATEGIC (NON CYCLICAL),09/01/14,
060114C,R GLOVER ASCROFT LTD==========,37971,1,425.60,PROTECTIVE EQUIPT - PARTS,09/01/14,425.60
060114C,COMPUTACENTRE================,3805181273,1,66.67,STRATEGIC (NON CYCLICAL),09/01/14,513.73
060114C,COMPUTACENTRE================,3805181273,2,447.06,STRATEGIC (NON CYCLICAL),09/01/14,
060114C,COMPUTACENTRE================,3805193267,1,22.00,STRATEGIC (NON CYCLICAL),09/01/14,677.50
060114C,COMPUTACENTRE================,3805193267,2,218.50,STRATEGIC (NON CYCLICAL),09/01/14,
060114C,COMPUTACENTRE================,3805193267,3,437.00,STRATEGIC (NON CYCLICAL),09/01/14,
030114C,MITIE SECURITY (LONDON) LTD===,45/541697,1,"4,130.00",PREMISES SECURITY,09/01/14,"4,130.00"
070114F,SPORTSAFE UK LTD==============,452417,1,315.72,GYM EQUIPMENT,09/01/14,460.72
070114F,SPORTSAFE UK LTD==============,452417,2,145.00,GYM EQUIPMENT,09/01/14,
030114C,THORNE & DERRICK==============,54889,1,115.20,OPERATIONAL EQUIP-PURCHASE,09/01/14,330.70
030114C,THORNE & DERRICK==============,54889,2,215.50,OPERATIONAL EQUIP-PURCHASE,09/01/14,
060114C,H & V HEATING & VENTILATING==,7283/0656/WK,1,"2,856.95",DEVELOPMENT  EXPENSES-CONTRACT,09/01/14,"2,856.95"
140512,M & M MEDICAL REPORTS,7477,1,600.00,DOCTORS/MEDICAL FEES,09/01/14,600.00
070114F,SHARPE PRITCHARD==============,77443,1,"22,131.00",GENERAL,09/01/14,"22,131.00"
030114C,G4S FIRE & SECURITY SYSTEMS UK,850550,1,403.19,PREMISES SECURITY,09/01/14,403.19
060114C,DRAEGER SAFETY UK LIMITED=====,90432784,1,351.00,REPAIR & MAINTENANCE,09/01/14,351.00
060114C,DRAEGER SAFETY UK LIMITED=====,90432944,1,434.20,PROTECTIVE EQUIPT - PARTS,09/01/14,434.20
060114C,DRAEGER SAFETY UK LIMITED=====,90433120,1,"1,138.60",PROTECTIVE EQUIPT - PARTS,09/01/14,"1,138.60"
060114C,DRAEGER SAFETY UK LIMITED=====,90433121,1,"2,277.20",PROTECTIVE EQUIPT - PARTS,09/01/14,"2,277.20"
060114C,DRAEGER SAFETY UK LIMITED=====,90433123,1,"1,359.00",PROTECTIVE EQUIPT - PARTS,09/01/14,"1,359.00"
060114C,DRAEGER SAFETY UK LIMITED=====,90433162,1,142.60,PROTECTIVE EQUIPT - PARTS,09/01/14,"4,802.20"
060114C,DRAEGER SAFETY UK LIMITED=====,90433162,2,22.80,PROTECTIVE EQUIPT - PARTS,09/01/14,
060114C,DRAEGER SAFETY UK LIMITED=====,90433162,3,83.40,PROTECTIVE EQUIPT - PARTS,09/01/14,
060114C,DRAEGER SAFETY UK LIMITED=====,90433162,4,"4,280.00",PROTECTIVE EQUIPT - PARTS,09/01/14,
060114C,DRAEGER SAFETY UK LIMITED=====,90433162,5,273.40,PROTECTIVE EQUIPT - PARTS,09/01/14,
060114C,DRAEGER SAFETY UK LIMITED=====,90433163,1,258.12,PROTECTIVE EQUIPT - PARTS,09/01/14,523.62
060114C,DRAEGER SAFETY UK LIMITED=====,90433163,2,265.50,PROTECTIVE EQUIPT - PARTS,09/01/14,
060114C,DRAEGER SAFETY UK LIMITED=====,90433415,1,"1,359.00",PROTECTIVE EQUIPT - PARTS,09/01/14,"1,359.00"
060114C,DRAEGER SAFETY UK LIMITED=====,90433416,1,318.24,PURCHASE,09/01/14,318.24
060114C,DRAEGER SAFETY UK LIMITED=====,90433464,1,"2,277.20",PROTECTIVE EQUIPT - PARTS,09/01/14,"2,277.20"
060114C,DRAEGER SAFETY UK LIMITED=====,90433465,1,"2,846.50",PROTECTIVE EQUIPT - PARTS,09/01/14,"2,846.50"
060114C,THERMO FISHER SCIENTIFIC MESST,9110197503,1,"4,725.00",REPAIR & MAINTENANCE,09/01/14,"4,751.00"
060114C,THERMO FISHER SCIENTIFIC MESST,9110197503,2,26.00,REPAIR & MAINTENANCE,09/01/14,
231213C,CAPITA SECURE INFO SOLUTIONS,93348023,1,530.00,DAY TO DAY MINOR IMPS,09/01/14,"2,870.00"
231213C,CAPITA SECURE INFO SOLUTIONS,93348023,2,905.00,DAY TO DAY MINOR IMPS,09/01/14,
231213C,CAPITA SECURE INFO SOLUTIONS,93348023,3,905.00,DAY TO DAY MINOR IMPS,09/01/14,
231213C,CAPITA SECURE INFO SOLUTIONS,93348023,4,530.00,DAY TO DAY MINOR IMPS,09/01/14,
030114C,TNT UK LIMITED================,9575392,1,537.50,POSTAL SERVICES,09/01/14,537.50
060114G,HALL FUELS,I06543278,1,"2,088.48",FUEL,09/01/14,"2,088.48"
030114C,HALL FUELS,I06543279,1,"2,198.40",FUEL,09/01/14,"2,198.40"
060114G,HALL FUELS,I06547992,1,"2,098.74",FUEL,09/01/14,"2,098.74"
060114G,HALL FUELS,I06547993,1,"3,313.80",FUEL,09/01/14,"3,313.80"
140510,QBE INSURANCE (EUROPE) LTD====,INSTA22 13/14,1,"151,987.50",INSURANCE CLAIMS,09/01/14,"303,975.00"
140510,QBE INSURANCE (EUROPE) LTD====,INSTA22 13/14,2,"151,987.50",PAYMENTS IN ADVANCE,09/01/14,
800027822,ALLSTAR BUSINESS SOLUTIONS LTD,P2002151188,1,"1,570.92",FUEL,09/01/14,"15,360.46"
800027822,ALLSTAR BUSINESS SOLUTIONS LTD,P2002151188,2,516.38,FUEL,09/01/14,
800027822,ALLSTAR BUSINESS SOLUTIONS LTD,P2002151188,3,458.32,FUEL,09/01/14,
800027822,ALLSTAR BUSINESS SOLUTIONS LTD,P2002151188,4,438.42,FUEL,09/01/14,
800027822,ALLSTAR BUSINESS SOLUTIONS LTD,P2002151188,5,350.21,FUEL,09/01/14,
800027822,ALLSTAR BUSINESS SOLUTIONS LTD,P2002151188,6,342.40,FUEL,09/01/14,
800027822,ALLSTAR BUSINESS SOLUTIONS LTD,P2002151188,7,312.04,FUEL,09/01/14,
800027822,ALLSTAR BUSINESS SOLUTIONS LTD,P2002151188,8,302.39,FUEL,09/01/14,
800027822,ALLSTAR BUSINESS SOLUTIONS LTD,P2002151188,9,292.67,FUEL,09/01/14,
800027822,ALLSTAR BUSINESS SOLUTIONS LTD,P2002151188,10,279.88,FUEL,09/01/14,
800027822,ALLSTAR BUSINESS SOLUTIONS LTD,P2002151188,11,279.75,FUEL,09/01/14,
800027822,ALLSTAR BUSINESS SOLUTIONS LTD,P2002151188,12,268.93,FUEL,09/01/14,
800027822,ALLSTAR BUSINESS SOLUTIONS LTD,P2002151188,13,259.12,FUEL,09/01/14,
800027822,ALLSTAR BUSINESS SOLUTIONS LTD,P2002151188,14,254.89,FUEL,09/01/14,
800027822,ALLSTAR BUSINESS SOLUTIONS LTD,P2002151188,15,243.57,FUEL,09/01/14,
800027822,ALLSTAR BUSINESS SOLUTIONS LTD,P2002151188,16,238.08,FUEL,09/01/14,
800027822,ALLSTAR BUSINESS SOLUTIONS LTD,P2002151188,17,229.62,FUEL,09/01/14,
800027822,ALLSTAR BUSINESS SOLUTIONS LTD,P2002151188,18,224.13,FUEL,09/01/14,
800027822,ALLSTAR BUSINESS SOLUTIONS LTD,P2002151188,19,216.33,FUEL,09/01/14,
800027822,ALLSTAR BUSINESS SOLUTIONS LTD,P2002151188,20,211.34,FUEL,09/01/14,
800027822,ALLSTAR BUSINESS SOLUTIONS LTD,P2002151188,21,207.27,FUEL,09/01/14,
800027822,ALLSTAR BUSINESS SOLUTIONS LTD,P2002151188,22,204.41,FUEL,09/01/14,
800027822,ALLSTAR BUSINESS SOLUTIONS LTD,P2002151188,23,201.15,FUEL,09/01/14,
800027822,ALLSTAR BUSINESS SOLUTIONS LTD,P2002151188,24,195.47,FUEL,09/01/14,
800027822,ALLSTAR BUSINESS SOLUTIONS LTD,P2002151188,25,189.05,FUEL,09/01/14,
800027822,ALLSTAR BUSINESS SOLUTIONS LTD,P2002151188,26,185.28,FUEL,09/01/14,
800027822,ALLSTAR BUSINESS SOLUTIONS LTD,P2002151188,27,181.33,FUEL,09/01/14,
800027822,ALLSTAR BUSINESS SOLUTIONS LTD,P2002151188,28,176.90,FUEL,09/01/14,
800027822,ALLSTAR BUSINESS SOLUTIONS LTD,P2002151188,29,169.19,FUEL,09/01/14,
800027822,ALLSTAR BUSINESS SOLUTIONS LTD,P2002151188,30,162.29,FUEL,09/01/14,
800027822,ALLSTAR BUSINESS SOLUTIONS LTD,P2002151188,31,158.39,FUEL,09/01/14,
800027822,ALLSTAR BUSINESS SOLUTIONS LTD,P2002151188,32,155.66,FUEL,09/01/14,
800027822,ALLSTAR BUSINESS SOLUTIONS LTD,P2002151188,33,154.28,FUEL,09/01/14,
800027822,ALLSTAR BUSINESS SOLUTIONS LTD,P2002151188,34,153.30,FUEL,09/01/14,
800027822,ALLSTAR BUSINESS SOLUTIONS LTD,P2002151188,35,151.61,FUEL,09/01/14,
800027822,ALLSTAR BUSINESS SOLUTIONS LTD,P2002151188,36,151.18,FUEL,09/01/14,
800027822,ALLSTAR BUSINESS SOLUTIONS LTD,P2002151188,37,141.24,FUEL,09/01/14,
800027822,ALLSTAR BUSINESS SOLUTIONS LTD,P2002151188,38,140.98,FUEL,09/01/14,
800027822,ALLSTAR BUSINESS SOLUTIONS LTD,P2002151188,39,137.46,FUEL,09/01/14,
800027822,ALLSTAR BUSINESS SOLUTIONS LTD,P2002151188,40,136.76,FUEL,09/01/14,
800027822,ALLSTAR BUSINESS SOLUTIONS LTD,P2002151188,41,136.28,FUEL,09/01/14,
800027822,ALLSTAR BUSINESS SOLUTIONS LTD,P2002151188,42,133.91,FUEL,09/01/14,
800027822,ALLSTAR BUSINESS SOLUTIONS LTD,P2002151188,43,132.94,FUEL,09/01/14,
800027822,ALLSTAR BUSINESS SOLUTIONS LTD,P2002151188,44,132.63,FUEL,09/01/14,
800027822,ALLSTAR BUSINESS SOLUTIONS LTD,P2002151188,45,130.41,FUEL,09/01/14,
800027822,ALLSTAR BUSINESS SOLUTIONS LTD,P2002151188,46,124.84,FUEL,09/01/14,
800027822,ALLSTAR BUSINESS SOLUTIONS LTD,P2002151188,47,120.43,FUEL,09/01/14,
800027822,ALLSTAR BUSINESS SOLUTIONS LTD,P2002151188,48,116.14,FUEL,09/01/14,
800027822,ALLSTAR BUSINESS SOLUTIONS LTD,P2002151188,49,116.01,FUEL,09/01/14,
800027822,ALLSTAR BUSINESS SOLUTIONS LTD,P2002151188,50,114.92,FUEL,09/01/14,
800027822,ALLSTAR BUSINESS SOLUTIONS LTD,P2002151188,51,112.26,FUEL,09/01/14,
800027822,ALLSTAR BUSINESS SOLUTIONS LTD,P2002151188,52,111.93,FUEL,09/01/14,
800027822,ALLSTAR BUSINESS SOLUTIONS LTD,P2002151188,53,109.56,FUEL,09/01/14,
800027822,ALLSTAR BUSINESS SOLUTIONS LTD,P2002151188,54,109.52,FUEL,09/01/14,
800027822,ALLSTAR BUSINESS SOLUTIONS LTD,P2002151188,55,104.58,FUEL,09/01/14,
800027822,ALLSTAR BUSINESS SOLUTIONS LTD,P2002151188,56,104.35,FUEL,09/01/14,
800027822,ALLSTAR BUSINESS SOLUTIONS LTD,P2002151188,57,103.05,FUEL,09/01/14,
800027822,ALLSTAR BUSINESS SOLUTIONS LTD,P2002151188,58,101.62,FUEL,09/01/14,
800027822,ALLSTAR BUSINESS SOLUTIONS LTD,P2002151188,59,100.89,FUEL,09/01/14,
800027822,ALLSTAR BUSINESS SOLUTIONS LTD,P2002151188,60,100.59,FUEL,09/01/14,
800027822,ALLSTAR BUSINESS SOLUTIONS LTD,P2002151188,61,92.25,FUEL,09/01/14,
800027822,ALLSTAR BUSINESS SOLUTIONS LTD,P2002151188,62,91.85,FUEL,09/01/14,
800027822,ALLSTAR BUSINESS SOLUTIONS LTD,P2002151188,63,90.81,FUEL,09/01/14,
800027822,ALLSTAR BUSINESS SOLUTIONS LTD,P2002151188,64,88.57,FUEL,09/01/14,
800027822,ALLSTAR BUSINESS SOLUTIONS LTD,P2002151188,65,84.56,FUEL,09/01/14,
800027822,ALLSTAR BUSINESS SOLUTIONS LTD,P2002151188,66,83.67,FUEL,09/01/14,
800027822,ALLSTAR BUSINESS SOLUTIONS LTD,P2002151188,67,82.00,FUEL,09/01/14,
800027822,ALLSTAR BUSINESS SOLUTIONS LTD,P2002151188,68,78.98,FUEL,09/01/14,
800027822,ALLSTAR BUSINESS SOLUTIONS LTD,P2002151188,69,76.69,FUEL,09/01/14,
800027822,ALLSTAR BUSINESS SOLUTIONS LTD,P2002151188,70,74.29,FUEL,09/01/14,
800027822,ALLSTAR BUSINESS SOLUTIONS LTD,P2002151188,71,73.14,FUEL,09/01/14,
800027822,ALLSTAR BUSINESS SOLUTIONS LTD,P2002151188,72,71.71,FUEL,09/01/14,
800027822,ALLSTAR BUSINESS SOLUTIONS LTD,P2002151188,73,71.38,FUEL,09/01/14,
800027822,ALLSTAR BUSINESS SOLUTIONS LTD,P2002151188,74,71.38,FUEL,09/01/14,
800027822,ALLSTAR BUSINESS SOLUTIONS LTD,P2002151188,75,69.89,FUEL,09/01/14,
800027822,ALLSTAR BUSINESS SOLUTIONS LTD,P2002151188,76,69.78,FUEL,09/01/14,
800027822,ALLSTAR BUSINESS SOLUTIONS LTD,P2002151188,77,65.48,FUEL,09/01/14,
800027822,ALLSTAR BUSINESS SOLUTIONS LTD,P2002151188,78,65.26,FUEL,09/01/14,
800027822,ALLSTAR BUSINESS SOLUTIONS LTD,P2002151188,79,64.58,FUEL,09/01/14,
800027822,ALLSTAR BUSINESS SOLUTIONS LTD,P2002151188,80,64.33,FUEL,09/01/14,
800027822,ALLSTAR BUSINESS SOLUTIONS LTD,P2002151188,81,63.25,FUEL,09/01/14,
800027822,ALLSTAR BUSINESS SOLUTIONS LTD,P2002151188,82,63.21,FUEL,09/01/14,
800027822,ALLSTAR BUSINESS SOLUTIONS LTD,P2002151188,83,60.65,FUEL,09/01/14,
800027822,ALLSTAR BUSINESS SOLUTIONS LTD,P2002151188,84,59.54,FUEL,09/01/14,
800027822,ALLSTAR BUSINESS SOLUTIONS LTD,P2002151188,85,59.12,FUEL,09/01/14,
800027822,ALLSTAR BUSINESS SOLUTIONS LTD,P2002151188,86,57.01,FUEL,09/01/14,
800027822,ALLSTAR BUSINESS SOLUTIONS LTD,P2002151188,87,54.33,FUEL,09/01/14,
800027822,ALLSTAR BUSINESS SOLUTIONS LTD,P2002151188,88,53.14,FUEL,09/01/14,
800027822,ALLSTAR BUSINESS SOLUTIONS LTD,P2002151188,89,52.91,FUEL,09/01/14,
800027822,ALLSTAR BUSINESS SOLUTIONS LTD,P2002151188,90,52.24,FUEL,09/01/14,
800027822,ALLSTAR BUSINESS SOLUTIONS LTD,P2002151188,91,48.92,FUEL,09/01/14,
800027822,ALLSTAR BUSINESS SOLUTIONS LTD,P2002151188,92,39.45,FUEL,09/01/14,
800027822,ALLSTAR BUSINESS SOLUTIONS LTD,P2002151188,93,36.85,FUEL,09/01/14,
800027822,ALLSTAR BUSINESS SOLUTIONS LTD,P2002151188,94,36.63,FUEL,09/01/14,
800027822,ALLSTAR BUSINESS SOLUTIONS LTD,P2002151188,95,35.04,FUEL,09/01/14,
800027822,ALLSTAR BUSINESS SOLUTIONS LTD,P2002151188,96,32.75,FUEL,09/01/14,
800027822,ALLSTAR BUSINESS SOLUTIONS LTD,P2002151188,97,30.21,FUEL,09/01/14,
800027822,ALLSTAR BUSINESS SOLUTIONS LTD,P2002151188,98,26.28,FUEL,09/01/14,
800027822,ALLSTAR BUSINESS SOLUTIONS LTD,P2002151188,99,8.88,FUEL,09/01/14,
140510,NWFS==========================,P403,1,900.00,PROFESSIONAL DEVELOPMENT,09/01/14,900.00
030114C,PEGASUS COURIERS - LONDON=====,PL014632,1,"1,520.05",POSTAL SERVICES,09/01/14,"1,520.05"
060114G,HUNTER LODGE==================,S-015127,1,640.00,ADVERTISING,09/01/14,640.00
060114G,UNIVERSITY OF CENT LANCASHIRE=,TUI182400074,1,"2,362.50",PROFESSIONAL DEVELOPMENT,09/01/14,"2,362.50"
800028009,ALLSTAR BUSINESS SOLUTIONS LTD,P2002115358,1,"1,641.77",FUEL,10/01/14,"21,156.54"
800028009,ALLSTAR BUSINESS SOLUTIONS LTD,P2002115358,2,"1,115.22",FUEL,10/01/14,
800028009,ALLSTAR BUSINESS SOLUTIONS LTD,P2002115358,3,654.18,FUEL,10/01/14,
800028009,ALLSTAR BUSINESS SOLUTIONS LTD,P2002115358,4,604.11,FUEL,10/01/14,
800028009,ALLSTAR BUSINESS SOLUTIONS LTD,P2002115358,5,519.59,FUEL,10/01/14,
800028009,ALLSTAR BUSINESS SOLUTIONS LTD,P2002115358,6,447.88,FUEL,10/01/14,
800028009,ALLSTAR BUSINESS SOLUTIONS LTD,P2002115358,7,373.02,FUEL,10/01/14,
800028009,ALLSTAR BUSINESS SOLUTIONS LTD,P2002115358,8,365.01,FUEL,10/01/14,
800028009,ALLSTAR BUSINESS SOLUTIONS LTD,P2002115358,9,364.90,FUEL,10/01/14,
800028009,ALLSTAR BUSINESS SOLUTIONS LTD,P2002115358,10,359.30,FUEL,10/01/14,
800028009,ALLSTAR BUSINESS SOLUTIONS LTD,P2002115358,11,342.77,FUEL,10/01/14,
800028009,ALLSTAR BUSINESS SOLUTIONS LTD,P2002115358,12,330.85,FUEL,10/01/14,
800028009,ALLSTAR BUSINESS SOLUTIONS LTD,P2002115358,13,329.31,FUEL,10/01/14,
800028009,ALLSTAR BUSINESS SOLUTIONS LTD,P2002115358,14,328.27,FUEL,10/01/14,
800028009,ALLSTAR BUSINESS SOLUTIONS LTD,P2002115358,15,313.01,FUEL,10/01/14,
800028009,ALLSTAR BUSINESS SOLUTIONS LTD,P2002115358,16,311.95,FUEL,10/01/14,
800028009,ALLSTAR BUSINESS SOLUTIONS LTD,P2002115358,17,304.68,FUEL,10/01/14,
800028009,ALLSTAR BUSINESS SOLUTIONS LTD,P2002115358,18,291.16,FUEL,10/01/14,
800028009,ALLSTAR BUSINESS SOLUTIONS LTD,P2002115358,19,287.44,FUEL,10/01/14,
800028009,ALLSTAR BUSINESS SOLUTIONS LTD,P2002115358,20,282.97,FUEL,10/01/14,
800028009,ALLSTAR BUSINESS SOLUTIONS LTD,P2002115358,21,268.61,FUEL,10/01/14,
800028009,ALLSTAR BUSINESS SOLUTIONS LTD,P2002115358,22,261.06,FUEL,10/01/14,
800028009,ALLSTAR BUSINESS SOLUTIONS LTD,P2002115358,23,257.58,FUEL,10/01/14,
800028009,ALLSTAR BUSINESS SOLUTIONS LTD,P2002115358,24,247.65,FUEL,10/01/14,
800028009,ALLSTAR BUSINESS SOLUTIONS LTD,P2002115358,25,240.58,FUEL,10/01/14,
800028009,ALLSTAR BUSINESS SOLUTIONS LTD,P2002115358,26,231.22,FUEL,10/01/14,
800028009,ALLSTAR BUSINESS SOLUTIONS LTD,P2002115358,27,229.09,FUEL,10/01/14,
800028009,ALLSTAR BUSINESS SOLUTIONS LTD,P2002115358,28,223.80,FUEL,10/01/14,
800028009,ALLSTAR BUSINESS SOLUTIONS LTD,P2002115358,29,220.90,FUEL,10/01/14,
800028009,ALLSTAR BUSINESS SOLUTIONS LTD,P2002115358,30,213.51,FUEL,10/01/14,
800028009,ALLSTAR BUSINESS SOLUTIONS LTD,P2002115358,31,211.59,FUEL,10/01/14,
800028009,ALLSTAR BUSINESS SOLUTIONS LTD,P2002115358,32,207.86,FUEL,10/01/14,
800028009,ALLSTAR BUSINESS SOLUTIONS LTD,P2002115358,33,200.43,FUEL,10/01/14,
800028009,ALLSTAR BUSINESS SOLUTIONS LTD,P2002115358,34,198.86,FUEL,10/01/14,
800028009,ALLSTAR BUSINESS SOLUTIONS LTD,P2002115358,35,191.69,FUEL,10/01/14,
800028009,ALLSTAR BUSINESS SOLUTIONS LTD,P2002115358,36,189.25,FUEL,10/01/14,
800028009,ALLSTAR BUSINESS SOLUTIONS LTD,P2002115358,37,187.07,FUEL,10/01/14,
800028009,ALLSTAR BUSINESS SOLUTIONS LTD,P2002115358,38,175.62,FUEL,10/01/14,
800028009,ALLSTAR BUSINESS SOLUTIONS LTD,P2002115358,39,175.22,FUEL,10/01/14,
800028009,ALLSTAR BUSINESS SOLUTIONS LTD,P2002115358,40,174.17,FUEL,10/01/14,
800028009,ALLSTAR BUSINESS SOLUTIONS LTD,P2002115358,41,170.68,FUEL,10/01/14,
800028009,ALLSTAR BUSINESS SOLUTIONS LTD,P2002115358,42,167.91,FUEL,10/01/14,
800028009,ALLSTAR BUSINESS SOLUTIONS LTD,P2002115358,43,165.60,FUEL,10/01/14,
800028009,ALLSTAR BUSINESS SOLUTIONS LTD,P2002115358,44,162.52,FUEL,10/01/14,
800028009,ALLSTAR BUSINESS SOLUTIONS LTD,P2002115358,45,160.32,FUEL,10/01/14,
800028009,ALLSTAR BUSINESS SOLUTIONS LTD,P2002115358,46,158.01,FUEL,10/01/14,
800028009,ALLSTAR BUSINESS SOLUTIONS LTD,P2002115358,47,157.46,FUEL,10/01/14,
800028009,ALLSTAR BUSINESS SOLUTIONS LTD,P2002115358,48,156.64,FUEL,10/01/14,
800028009,ALLSTAR BUSINESS SOLUTIONS LTD,P2002115358,49,154.47,FUEL,10/01/14,
800028009,ALLSTAR BUSINESS SOLUTIONS LTD,P2002115358,50,154.05,FUEL,10/01/14,
800028009,ALLSTAR BUSINESS SOLUTIONS LTD,P2002115358,51,153.68,FUEL,10/01/14,
800028009,ALLSTAR BUSINESS SOLUTIONS LTD,P2002115358,52,152.34,FUEL,10/01/14,
800028009,ALLSTAR BUSINESS SOLUTIONS LTD,P2002115358,53,152.22,FUEL,10/01/14,
800028009,ALLSTAR BUSINESS SOLUTIONS LTD,P2002115358,54,150.02,FUEL,10/01/14,
800028009,ALLSTAR BUSINESS SOLUTIONS LTD,P2002115358,55,149.47,FUEL,10/01/14,
800028009,ALLSTAR BUSINESS SOLUTIONS LTD,P2002115358,56,147.12,FUEL,10/01/14,
800028009,ALLSTAR BUSINESS SOLUTIONS LTD,P2002115358,57,143.52,FUEL,10/01/14,
800028009,ALLSTAR BUSINESS SOLUTIONS LTD,P2002115358,58,138.93,FUEL,10/01/14,
800028009,ALLSTAR BUSINESS SOLUTIONS LTD,P2002115358,59,138.36,FUEL,10/01/14,
800028009,ALLSTAR BUSINESS SOLUTIONS LTD,P2002115358,60,135.99,FUEL,10/01/14,
800028009,ALLSTAR BUSINESS SOLUTIONS LTD,P2002115358,61,133.39,FUEL,10/01/14,
800028009,ALLSTAR BUSINESS SOLUTIONS LTD,P2002115358,62,132.21,FUEL,10/01/14,
800028009,ALLSTAR BUSINESS SOLUTIONS LTD,P2002115358,63,130.81,FUEL,10/01/14,
800028009,ALLSTAR BUSINESS SOLUTIONS LTD,P2002115358,64,130.07,FUEL,10/01/14,
800028009,ALLSTAR BUSINESS SOLUTIONS LTD,P2002115358,65,128.52,FUEL,10/01/14,
800028009,ALLSTAR BUSINESS SOLUTIONS LTD,P2002115358,66,127.11,FUEL,10/01/14,
800028009,ALLSTAR BUSINESS SOLUTIONS LTD,P2002115358,67,119.66,FUEL,10/01/14,
800028009,ALLSTAR BUSINESS SOLUTIONS LTD,P2002115358,68,117.68,FUEL,10/01/14,
800028009,ALLSTAR BUSINESS SOLUTIONS LTD,P2002115358,69,116.34,FUEL,10/01/14,
800028009,ALLSTAR BUSINESS SOLUTIONS LTD,P2002115358,70,114.11,FUEL,10/01/14,
800028009,ALLSTAR BUSINESS SOLUTIONS LTD,P2002115358,71,113.84,FUEL,10/01/14,
800028009,ALLSTAR BUSINESS SOLUTIONS LTD,P2002115358,72,110.70,FUEL,10/01/14,
800028009,ALLSTAR BUSINESS SOLUTIONS LTD,P2002115358,73,110.65,FUEL,10/01/14,
800028009,ALLSTAR BUSINESS SOLUTIONS LTD,P2002115358,74,109.58,FUEL,10/01/14,
800028009,ALLSTAR BUSINESS SOLUTIONS LTD,P2002115358,75,109.40,FUEL,10/01/14,
800028009,ALLSTAR BUSINESS SOLUTIONS LTD,P2002115358,76,109.05,FUEL,10/01/14,
800028009,ALLSTAR BUSINESS SOLUTIONS LTD,P2002115358,77,108.59,FUEL,10/01/14,
800028009,ALLSTAR BUSINESS SOLUTIONS LTD,P2002115358,78,101.38,FUEL,10/01/14,
800028009,ALLSTAR BUSINESS SOLUTIONS LTD,P2002115358,79,100.76,FUEL,10/01/14,
800028009,ALLSTAR BUSINESS SOLUTIONS LTD,P2002115358,80,100.68,FUEL,10/01/14,
800028009,ALLSTAR BUSINESS SOLUTIONS LTD,P2002115358,81,98.85,FUEL,10/01/14,
800028009,ALLSTAR BUSINESS SOLUTIONS LTD,P2002115358,82,98.48,FUEL,10/01/14,
800028009,ALLSTAR BUSINESS SOLUTIONS LTD,P2002115358,83,98.43,FUEL,10/01/14,
800028009,ALLSTAR BUSINESS SOLUTIONS LTD,P2002115358,84,97.28,FUEL,10/01/14,
800028009,ALLSTAR BUSINESS SOLUTIONS LTD,P2002115358,85,94.89,FUEL,10/01/14,
800028009,ALLSTAR BUSINESS SOLUTIONS LTD,P2002115358,86,92.42,FUEL,10/01/14,
800028009,ALLSTAR BUSINESS SOLUTIONS LTD,P2002115358,87,92.37,FUEL,10/01/14,
800028009,ALLSTAR BUSINESS SOLUTIONS LTD,P2002115358,88,91.99,FUEL,10/01/14,
800028009,ALLSTAR BUSINESS SOLUTIONS LTD,P2002115358,89,89.89,FUEL,10/01/14,
800028009,ALLSTAR BUSINESS SOLUTIONS LTD,P2002115358,90,85.77,FUEL,10/01/14,
800028009,ALLSTAR BUSINESS SOLUTIONS LTD,P2002115358,91,83.97,FUEL,10/01/14,
800028009,ALLSTAR BUSINESS SOLUTIONS LTD,P2002115358,92,83.51,FUEL,10/01/14,
800028009,ALLSTAR BUSINESS SOLUTIONS LTD,P2002115358,93,82.99,FUEL,10/01/14,
800028009,ALLSTAR BUSINESS SOLUTIONS LTD,P2002115358,94,79.97,FUEL,10/01/14,
800028009,ALLSTAR BUSINESS SOLUTIONS LTD,P2002115358,95,74.39,FUEL,10/01/14,
800028009,ALLSTAR BUSINESS SOLUTIONS LTD,P2002115358,96,69.77,FUEL,10/01/14,
800028009,ALLSTAR BUSINESS SOLUTIONS LTD,P2002115358,97,63.78,FUEL,10/01/14,
800028009,ALLSTAR BUSINESS SOLUTIONS LTD,P2002115358,98,62.61,FUEL,10/01/14,
800028009,ALLSTAR BUSINESS SOLUTIONS LTD,P2002115358,99,61.83,FUEL,10/01/14,
800028009,ALLSTAR BUSINESS SOLUTIONS LTD,P2002115358,100,47.51,FUEL,10/01/14,
800028009,ALLSTAR BUSINESS SOLUTIONS LTD,P2002115358,101,47.00,FUEL,10/01/14,
800028009,ALLSTAR BUSINESS SOLUTIONS LTD,P2002115358,102,46.77,FUEL,10/01/14,
800028009,ALLSTAR BUSINESS SOLUTIONS LTD,P2002115358,103,41.93,FUEL,10/01/14,
800028009,ALLSTAR BUSINESS SOLUTIONS LTD,P2002115358,104,38.12,FUEL,10/01/14,
800028009,ALLSTAR BUSINESS SOLUTIONS LTD,P2002115358,105,29.15,FUEL,10/01/14,
800028009,ALLSTAR BUSINESS SOLUTIONS LTD,P2002115358,106,19.60,FUEL,10/01/14,
800028009,ALLSTAR BUSINESS SOLUTIONS LTD,P2002115358,107,10.11,FUEL,10/01/14,
800028009,ALLSTAR BUSINESS SOLUTIONS LTD,P2002115358,108,6.17,FUEL,10/01/14,
080114G,GOVNET COMMUNICATIONS=========,0000062013,1,355.00,PROFESSIONAL DEVELOPMENT,13/01/14,355.00
090114F,ENTEL UK LTD==================,0000131659/0000133647,1,145.00,RADIO,13/01/14,326.15
090114F,ENTEL UK LTD==================,0000131659/0000133647,2,96.45,RADIO,13/01/14,
090114F,ENTEL UK LTD==================,0000131659/0000133647,3,71.70,RADIO,13/01/14,
090114F,ENTEL UK LTD==================,0000131659/0000133647,4,13.00,RADIO,13/01/14,
140511,THAMES WATER UTILITIES LTD====,0425521115A,1,316.89,WATER & SEWERAGE RATES,13/01/14,316.89
140511,THAMES WATER UTILITIES LTD====,0592996051W,1,728.01,WATER & SEWERAGE RATES,13/01/14,728.01
140511,THAMES WATER UTILITIES LTD====,08336-60263L,1,605.07,WATER & SEWERAGE RATES,13/01/14,605.07
080114G,AIRWAVE SOLUTIONS LTD=========,0941000028-001,1,"17,550.00",RADIO,13/01/14,"131,422.59"
080114G,AIRWAVE SOLUTIONS LTD=========,0941000028-001,2,"74,847.24",RADIO,13/01/14,
080114G,AIRWAVE SOLUTIONS LTD=========,0941000028-001,3,"39,025.35",RADIO,13/01/14,
080114C,*SPRUE SAFETY PRODUCTS LTD====,1055691,1,988.80,FIRE DETECTORS,13/01/14,988.80
080114C,*SPRUE SAFETY PRODUCTS LTD====,1055692,1,988.80,FIRE DETECTORS,13/01/14,988.80
080114C,*SPRUE SAFETY PRODUCTS LTD====,1055694,1,"1,730.40",FIRE DETECTORS,13/01/14,"1,730.40"
080114C,*SPRUE SAFETY PRODUCTS LTD====,1055695,1,"1,730.40",FIRE DETECTORS,13/01/14,"1,730.40"
080114C,*SPRUE SAFETY PRODUCTS LTD====,1055697,1,988.80,FIRE DETECTORS,13/01/14,988.80
080114C,*SPRUE SAFETY PRODUCTS LTD====,1055699,1,"1,730.40",FIRE DETECTORS,13/01/14,"1,730.40"
080114C,*SPRUE SAFETY PRODUCTS LTD====,1055700,1,988.80,FIRE DETECTORS,13/01/14,988.80
080114C,*SPRUE SAFETY PRODUCTS LTD====,1055701,1,988.80,FIRE DETECTORS,13/01/14,988.80
080114C,*SPRUE SAFETY PRODUCTS LTD====,1055702,1,"1,730.40",FIRE DETECTORS,13/01/14,"1,730.40"
080114C,OPERATIONAL RESEARCH IN HEALTH,110X/LFBD4/1,1,"3,200.00",CONSULTANTS,13/01/14,"3,200.00"
080114C,INFOR (UNITED KINGDOM) LIMITED,11301772-GB03B,1,"38,780.77",MAINTENANCE & SUPPORT,13/01/14,"38,780.77"
140515,MISS NATASHA JOFFE============,114858,1,"1,600.00",COUNSELS FEES,13/01/14,"1,600.00"
140515,MR KEITH BRYANT===============,115019,1,"1,400.00",COUNSELS FEES,13/01/14,"1,400.00"
080114G,JOHN BURKE ASSOCIATES,13-09/13159,1,"1,770.00",PROF FEES-MISCELLANEOUS,13/01/14,"1,770.00"
080114G,JOHN BURKE ASSOCIATES,13-10/13180,1,360.00,PROF FEES-MISCELLANEOUS,13/01/14,360.00
080114G,JOHN BURKE ASSOCIATES,13-10/13191,1,"1,440.00",PROF FEES-MISCELLANEOUS,13/01/14,"1,440.00"
080114G,JOHN BURKE ASSOCIATES,13-11/13340,1,"1,800.00",PROF FEES-MISCELLANEOUS,13/01/14,"1,800.00"
080114G,JOHN BURKE ASSOCIATES,13-11/13395,1,390.00,PROF FEES-MISCELLANEOUS,13/01/14,390.00
080114G,HOK INTERNATIONAL LTD,13.33034.00-2,1,"2,181.00",PROFESSIONAL SERVICES,13/01/14,"2,181.00"
080114G,FALTECH LIMITED,1312-004,1,679.89,RADIO,13/01/14,704.89
080114G,FALTECH LIMITED,1312-004,2,25.00,RADIO,13/01/14,
140513,AFFINITY WATER,1462190&M,1,384.53,WATER & SEWERAGE RATES,13/01/14,384.53
080114C,DRON & WRIGHT=================,16866,1,330.00,PROFESSIONAL SERVICES,13/01/14,330.00
080114C,BEAUMONT CONSTRUCTION SERVICES,1928,1,"3,922.09",STRATEGIC (NON CYCLICAL),13/01/14,"3,922.09"
090114F,GRADIENT CONSULTANTS LLP======,1957,1,348.02,ASBESTOS,13/01/14,"3,236.36"
090114F,GRADIENT CONSULTANTS LLP======,1957,2,348.02,ASBESTOS,13/01/14,
090114F,GRADIENT CONSULTANTS LLP======,1957,3,348.02,ASBESTOS,13/01/14,
090114F,GRADIENT CONSULTANTS LLP======,1957,4,348.02,ASBESTOS,13/01/14,
090114F,GRADIENT CONSULTANTS LLP======,1957,5,348.02,ASBESTOS,13/01/14,
090114F,GRADIENT CONSULTANTS LLP======,1957,6,348.02,ASBESTOS,13/01/14,
090114F,GRADIENT CONSULTANTS LLP======,1957,7,348.02,ASBESTOS,13/01/14,
090114F,GRADIENT CONSULTANTS LLP======,1957,8,348.02,ASBESTOS,13/01/14,
090114F,GRADIENT CONSULTANTS LLP======,1957,9,52.09,ASBESTOS,13/01/14,
090114F,GRADIENT CONSULTANTS LLP======,1957,10,348.02,ASBESTOS,13/01/14,
090114F,GRADIENT CONSULTANTS LLP======,1957,11,52.09,ASBESTOS,13/01/14,
080114G,B NOKES CONTRACTS LTD,2009,1,"3,589.00",STRATEGIC (NON CYCLICAL),13/01/14,"3,589.00"
080114G,B NOKES CONTRACTS LTD,2010,1,"2,927.50",STRATEGIC (NON CYCLICAL),13/01/14,"2,927.50"
080114G,B NOKES CONTRACTS LTD,2011,1,"2,582.50",STRATEGIC (NON CYCLICAL),13/01/14,"2,582.50"
080114G,B NOKES CONTRACTS LTD,2012,1,"3,444.00",STRATEGIC (NON CYCLICAL),13/01/14,"3,444.00"
080114G,B NOKES CONTRACTS LTD,2013,1,"2,760.00",STRATEGIC (NON CYCLICAL),13/01/14,"2,760.00"
080114G,B NOKES CONTRACTS LTD,2014,1,"2,115.75",STRATEGIC (NON CYCLICAL),13/01/14,"2,115.75"
080114G,B NOKES CONTRACTS LTD,2015,1,261.75,DEVELOPMENT  EXPENSES-CONTRACT,13/01/14,"1,386.25"
080114G,B NOKES CONTRACTS LTD,2015,2,"1,124.50",DEVELOPMENT  EXPENSES-CONTRACT,13/01/14,
080114G,B NOKES CONTRACTS LTD,2016,1,"1,121.50",STRATEGIC (NON CYCLICAL),13/01/14,"1,121.50"
080114G,B NOKES CONTRACTS LTD,2017,1,937.50,STRATEGIC (NON CYCLICAL),13/01/14,937.50
080114G,B NOKES CONTRACTS LTD,2018,1,"2,030.50",STRATEGIC (NON CYCLICAL),13/01/14,"2,030.50"
080114G,B NOKES CONTRACTS LTD,2019,1,466.00,STRATEGIC (NON CYCLICAL),13/01/14,466.00
080114G,B NOKES CONTRACTS LTD,2020,1,627.00,TACTICAL DAY TO DAY,13/01/14,627.00
140513,NOMURA INTERNATIONAL PLC,22-829,1,"3,196.57",RENTS,13/01/14,"3,196.57"
080114G,DELTOR COMMUNICATIONS LTD.===,23895,1,379.00,GENERAL CONSUMABLES,13/01/14,379.00
800027908,ADECCO UK LIMITED=============,26650142,1,"1,073.72",FRS STAFF AGENCY,13/01/14,"1,073.72"
800027909,ADECCO UK LIMITED=============,26650143,1,"2,500.00",FRS STAFF AGENCY,13/01/14,"2,500.00"
800027910,ADECCO UK LIMITED=============,26650144,1,356.79,FRS STAFF AGENCY,13/01/14,356.79
800027911,ADECCO UK LIMITED=============,26650145,1,594.65,FRS STAFF AGENCY,13/01/14,594.65
800027912,ADECCO UK LIMITED=============,26650146,1,594.65,FRS STAFF AGENCY,13/01/14,594.65
800027913,ADECCO UK LIMITED=============,26650147,1,351.68,FRS STAFF AGENCY,13/01/14,351.68
800027915,ADECCO UK LIMITED=============,26650149,1,269.62,FRS STAFF AGENCY,13/01/14,269.62
800027917,ADECCO UK LIMITED=============,26650151,1,594.65,FRS STAFF AGENCY,13/01/14,594.65
800027918,ADECCO UK LIMITED=============,26650152,1,857.85,FRS STAFF AGENCY,13/01/14,857.85
800027919,ADECCO UK LIMITED=============,26650153,1,584.15,FRS STAFF AGENCY,13/01/14,584.15
800027920,ADECCO UK LIMITED=============,26650154,1,"1,949.85",FRS STAFF AGENCY,13/01/14,"1,949.85"
800027921,ADECCO UK LIMITED=============,26650155,1,"1,445.40",FRS STAFF AGENCY,13/01/14,"1,445.40"
800027922,ADECCO UK LIMITED=============,26650156,1,"1,450.89",FRS STAFF AGENCY,13/01/14,"1,450.89"
800027923,ADECCO UK LIMITED=============,26650157,1,594.65,FRS STAFF AGENCY,13/01/14,594.65
800027924,ADECCO UK LIMITED=============,26650158,1,331.31,FRS STAFF AGENCY,13/01/14,331.31
800027925,ADECCO UK LIMITED=============,26650159,1,439.60,FRS STAFF AGENCY,13/01/14,439.60
800027927,ADECCO UK LIMITED=============,26650161,1,"1,125.09",FRS STAFF AGENCY,13/01/14,"1,125.09"
800027935,ADECCO UK LIMITED=============,26653331,1,"1,212.00",FRS STAFF AGENCY,13/01/14,"1,212.00"
800027936,ADECCO UK LIMITED=============,26653332,1,"1,212.00",FRS STAFF AGENCY,13/01/14,"1,212.00"
800027937,ADECCO UK LIMITED=============,26653333,1,"1,212.00",FRS STAFF AGENCY,13/01/14,"1,212.00"
800027938,ADECCO UK LIMITED=============,26653334,1,"1,212.00",FRS STAFF AGENCY,13/01/14,"1,212.00"
800027940,ADECCO UK LIMITED=============,26653335,1,433.65,FRS STAFF AGENCY,13/01/14,433.65
800027932,ADECCO UK LIMITED=============,26653336,1,"1,034.24",FRS STAFF AGENCY,13/01/14,"1,034.24"
800027933,ADECCO UK LIMITED=============,26653337,1,872.64,FRS STAFF AGENCY,13/01/14,872.64
800027934,ADECCO UK LIMITED=============,26653338,1,929.20,FRS STAFF AGENCY,13/01/14,929.20
800027941,ADECCO UK LIMITED=============,26653339,1,"1,104.00",FRS STAFF AGENCY,13/01/14,"1,104.00"
800027942,ADECCO UK LIMITED=============,26653340,1,"1,104.00",FRS STAFF AGENCY,13/01/14,"1,104.00"
800027943,ADECCO UK LIMITED=============,26653341,1,"1,104.00",FRS STAFF AGENCY,13/01/14,"1,104.00"
800027944,ADECCO UK LIMITED=============,26653342,1,"1,104.00",FRS STAFF AGENCY,13/01/14,"1,104.00"
800027928,ADECCO UK LIMITED=============,26653343,1,"1,560.78",FRS STAFF AGENCY,13/01/14,"1,560.78"
800027929,ADECCO UK LIMITED=============,26653344,1,"1,445.55",FRS STAFF AGENCY,13/01/14,"1,445.55"
800027930,ADECCO UK LIMITED=============,26653345,1,"1,361.75",FRS STAFF AGENCY,13/01/14,"1,361.75"
800027931,ADECCO UK LIMITED=============,26653346,1,"1,539.83",FRS STAFF AGENCY,13/01/14,"1,539.83"
800027939,ADECCO UK LIMITED=============,26653347,1,"1,292.20",FRS STAFF AGENCY,13/01/14,"1,292.20"
080114G,EUROLOOS LTD,26673,1,600.00,OPERATIONAL EQUIP-PURCHASE,13/01/14,600.00
080114C,EVOLUTION ENVIRONMENTAL LTD,2941,1,300.00,ASBESTOS,13/01/14,300.00
140511,THAMES WATER UTILITIES LTD====,29631-80521\,1,459.50,WATER & SEWERAGE RATES,13/01/14,459.50
080114C,S W BRUCE & CO LTD,29676,1,"48,056.74",DEVELOPMENT  EXPENSES-CONTRACT,13/01/14,"48,056.74"
080114G,HANDS FREE COMPUTING LTD======,30697,1,345.00,ACQUISITIONS,13/01/14,404.95
080114G,HANDS FREE COMPUTING LTD======,30697,2,59.95,ACQUISITIONS,13/01/14,
140511,THAMES WATER UTILITIES LTD====,3367365430L,1,330.29,WATER & SEWERAGE RATES,13/01/14,330.29
140513,FOCUS & VISION TECHNOLOGY LTD,38011,1,426.50,MEDICAL EXPENSES CLAIMS,13/01/14,426.50
140513,FOCUS & VISION TECHNOLOGY LTD,38053,1,365.00,MEDICAL EXPENSES CLAIMS,13/01/14,365.00
140513,FOCUS & VISION TECHNOLOGY LTD,38110,1,280.30,MEDICAL EXPENSES CLAIMS,13/01/14,280.30
140513,FOCUS & VISION TECHNOLOGY LTD,38135,1,348.98,MEDICAL EXPENSES CLAIMS,13/01/14,348.98
080114G,KNIGHTON CLEANING SERVICES LTD,38454,1,"1,030.23",HYGIENE,13/01/14,"1,030.23"
080114G,CANON (UK) LTD===============,401468651,1,300.52,OFFICE EQUIPMENT,13/01/14,319.79
080114G,CANON (UK) LTD===============,401468651,2,19.27,OFFICE EQUIPMENT,13/01/14,
080114C,MITIE SECURITY (LONDON) LTD===,45/541696,1,"4,130.00",PREMISES SECURITY,13/01/14,"4,130.00"
080114C,MITIE SECURITY (LONDON) LTD===,45/542525,1,"8,260.00",PREMISES SECURITY,13/01/14,"8,260.00"
080114C,MITIE SECURITY (LONDON) LTD===,45/543231,1,"8,488.48",PREMISES SECURITY,13/01/14,"8,488.48"
140511,THAMES WATER UTILITIES LTD====,4580310009K,1,490.76,WATER & SEWERAGE RATES,13/01/14,490.76
140511,THAMES WATER UTILITIES LTD====,46264-21532L,1,451.36,WATER & SEWERAGE RATES,13/01/14,451.36
140511,THAMES WATER UTILITIES LTD====,47190-45186L,1,306.47,WATER & SEWERAGE RATES,13/01/14,306.47
140511,THAMES WATER UTILITIES LTD====,5179216119+,1,485.31,WATER & SEWERAGE RATES,13/01/14,485.31
080114C,CORE SURVEYSLTD===============,5349,1,191.00,ASBESTOS,13/01/14,562.50
080114C,CORE SURVEYSLTD===============,5349,2,180.50,ASBESTOS,13/01/14,
080114C,CORE SURVEYSLTD===============,5349,3,191.00,ASBESTOS,13/01/14,
080114C,CORE SURVEYSLTD===============,5352,1,180.50,ASBESTOS,13/01/14,541.50
080114C,CORE SURVEYSLTD===============,5352,2,180.50,ASBESTOS,13/01/14,
080114C,CORE SURVEYSLTD===============,5352,3,180.50,ASBESTOS,13/01/14,
080114C,CORE SURVEYSLTD===============,5358,1,505.50,ASBESTOS,13/01/14,505.50
140513,ESSEX & SUFFOLK WATER PLC=====,6060311490001XL,1,"6,172.79",WATER & SEWERAGE RATES,13/01/14,"6,172.79"
080114C,CONTRACT CATERING CONSULTANTS=,6216,1,500.00,CONSULTANTS,13/01/14,500.00
140511,THAMES WATER UTILITIES LTD====,6242955180L,1,269.48,WATER & SEWERAGE RATES,13/01/14,269.48
140511,THAMES WATER UTILITIES LTD====,65149-96346Y,1,257.16,WATER & SEWERAGE RATES,13/01/14,257.16
080114G,ANGUS FIRE LIMITED,8023945,1,"12,098.00",OPERATIONAL EQUIP-PURCHASE,13/01/14,"16,192.00"
080114G,ANGUS FIRE LIMITED,8023945,2,"4,094.00",OPERATIONAL EQUIP-PURCHASE,13/01/14,
080114C,A.R.C.S. ENVIRONMENTAL LTD====,8094,1,350.00,ASBESTOS,13/01/14,350.00
080114C,WOOD & WOOD INTERNATIONL SIGNS,82888,1,850.00,STRATEGIC (NON CYCLICAL),13/01/14,850.00
140511,THAMES WATER UTILITIES LTD====,8641142518K,1,969.21,WATER & SEWERAGE RATES,13/01/14,969.21
140512,MR JONATHAN MOFFETT,86908,1,435.00,DISPOSAL COSTS-LEGAL COSTS,13/01/14,435.00
140511,THAMES WATER UTILITIES LTD====,8962850520*,1,442.49,WATER & SEWERAGE RATES,13/01/14,442.49
080114C,WESTON DIGITAL TECHNOLOGIES===,90825,1,"3,648.13",MAINTENANCE & SUPPORT,13/01/14,"3,648.13"
140513,THAMES WATER UTILITIES LTD====,9599295181D,1,401.18,WATER & SEWERAGE RATES,13/01/14,401.18
140512,MISS REBECCA THOMAS===========,99746*,1,"1,150.00",COUNSELS FEES,13/01/14,"1,150.00"
080114C,ASTEC SURVEYS LIMITED=========,ASL-13-258,1,200.00,ASBESTOS,13/01/14,575.00
080114C,ASTEC SURVEYS LIMITED=========,ASL-13-258,2,175.00,ASBESTOS,13/01/14,
080114C,ASTEC SURVEYS LIMITED=========,ASL-13-258,3,200.00,ASBESTOS,13/01/14,
080114C,ASTEC SURVEYS LIMITED=========,ASL-13-260,1,255.00,ASBESTOS,13/01/14,255.00
080114C,ASTEC SURVEYS LIMITED=========,ASL-13-261,1,225.00,ASBESTOS,13/01/14,575.00
080114C,ASTEC SURVEYS LIMITED=========,ASL-13-261,2,175.00,ASBESTOS,13/01/14,
080114C,ASTEC SURVEYS LIMITED=========,ASL-13-261,3,175.00,ASBESTOS,13/01/14,
080114C,ASTEC SURVEYS LIMITED=========,ASL-13-262,1,172.50,ASBESTOS,13/01/14,345.00
080114C,ASTEC SURVEYS LIMITED=========,ASL-13-262,2,172.50,ASBESTOS,13/01/14,
080114G,RADIOCOMS SYSTEMS LIMITED=====,CF272351,1,"3,553.20",ACQUISITIONS,13/01/14,"4,750.20"
080114G,RADIOCOMS SYSTEMS LIMITED=====,CF272351,2,"1,197.00",ACQUISITIONS,13/01/14,
080114G,RADIOCOMS SYSTEMS LIMITED=====,CF373557,1,"1,254.00",ACQUISITIONS,13/01/14,"4,976.40"
080114G,RADIOCOMS SYSTEMS LIMITED=====,CF373557,2,"3,722.40",ACQUISITIONS,13/01/14,
080114G,E&S B DAVIS LTD,DAV/47342,1,"1,800.00",OPERATIONAL EQUIP-PURCHASE,13/01/14,"1,800.00"
080114G,KIER BUILDING SERV ENGINEERS==,F00046428,1,60.41,TACTICAL DAY TO DAY,13/01/14,"3,031.77"
080114G,KIER BUILDING SERV ENGINEERS==,F00046428,2,56.67,TACTICAL DAY TO DAY,13/01/14,
080114G,KIER BUILDING SERV ENGINEERS==,F00046428,3,165.00,TACTICAL DAY TO DAY,13/01/14,
080114G,KIER BUILDING SERV ENGINEERS==,F00046428,4,"1,215.07",STRATEGIC (NON CYCLICAL),13/01/14,
080114G,KIER BUILDING SERV ENGINEERS==,F00046428,5,59.46,TACTICAL DAY TO DAY,13/01/14,
080114G,KIER BUILDING SERV ENGINEERS==,F00046428,6,32.38,TACTICAL DAY TO DAY,13/01/14,
080114G,KIER BUILDING SERV ENGINEERS==,F00046428,7,541.03,TACTICAL DAY TO DAY,13/01/14,
080114G,KIER BUILDING SERV ENGINEERS==,F00046428,8,47.01,TACTICAL DAY TO DAY,13/01/14,
080114G,KIER BUILDING SERV ENGINEERS==,F00046428,9,50.88,TACTICAL DAY TO DAY,13/01/14,
080114G,KIER BUILDING SERV ENGINEERS==,F00046428,10,111.66,TACTICAL DAY TO DAY,13/01/14,
080114G,KIER BUILDING SERV ENGINEERS==,F00046428,11,82.50,TACTICAL DAY TO DAY,13/01/14,
080114G,KIER BUILDING SERV ENGINEERS==,F00046428,12,609.70,TACTICAL DAY TO DAY,13/01/14,
140513,GOOD ENERGY===================,GE106451E,1,681.25,ELECTRICITY,13/01/14,681.25
080114C,ROCOM,I2388583,1,266.80,ACQUISITIONS,13/01/14,276.75
080114C,ROCOM,I2388583,2,9.95,ACQUISITIONS,13/01/14,
080114G,SERVOCA SECURE SOLUTIONS LTD,IN005099,1,"5,459.20",PREMISES SECURITY,13/01/14,"5,459.20"
080114G,SERVOCA SECURE SOLUTIONS LTD,IN005100,1,"5,459.20",PREMISES SECURITY,13/01/14,"5,459.20"
080114G,SERVOCA SECURE SOLUTIONS LTD,IN005101,1,400.00,PREMISES SECURITY,13/01/14,400.00
090114F,PEGASUS ENVIRONMENTAL CONSULTA,INV/5434-13,1,275.00,STRATEGIC (CYCLICAL),13/01/14,"1,725.00"
090114F,PEGASUS ENVIRONMENTAL CONSULTA,INV/5434-13,2,275.00,STRATEGIC (CYCLICAL),13/01/14,
090114F,PEGASUS ENVIRONMENTAL CONSULTA,INV/5434-13,3,275.00,STRATEGIC (CYCLICAL),13/01/14,
090114F,PEGASUS ENVIRONMENTAL CONSULTA,INV/5434-13,4,275.00,STRATEGIC (CYCLICAL),13/01/14,
090114F,PEGASUS ENVIRONMENTAL CONSULTA,INV/5434-13,5,625.00,STRATEGIC (CYCLICAL),13/01/14,
080114C,SOFTCAT LIMITED,INV00875440,1,"149,985.68",ACQUISITIONS,13/01/14,"182,427.88"
080114C,SOFTCAT LIMITED,INV00875440,2,"2,392.12",ACQUISITIONS,13/01/14,
080114C,SOFTCAT LIMITED,INV00875440,3,"2,386.08",ACQUISITIONS,13/01/14,
080114C,SOFTCAT LIMITED,INV00875440,4,"27,664.00",ACQUISITIONS,13/01/14,
080114C,CORPORATE DIRECT (EUROPE) LTD=,INV01162428,1,500.00,ACQUISITIONS,13/01/14,508.95
080114C,CORPORATE DIRECT (EUROPE) LTD=,INV01162428,2,8.95,ACQUISITIONS,13/01/14,
080114C,ESTEEM SYSTEMS LTD============,OP/I074963,1,"21,555.00",MAINTENANCE & SUPPORT,13/01/14,"21,555.00"
080114G,JCT600 CONTRACTS LIMITED======,RCHINV00049347,1,291.89,WINDSCREEN & TYRE CHARGES,13/01/14,291.89
080114G,HUNTER LODGE==================,SI-05413,1,"37,350.00",ADVERTISING,13/01/14,"37,350.00"
140513,VEOLIA WATER PROJECTS LTD=====,SI-13-0007351,1,"2,843.61",ELECTRICITY,13/01/14,"2,843.61"
080114C,SKYGUARD LTD,SI01130052,1,"1,870.00",GENERAL,13/01/14,"1,870.00"
080114G,GROUND CONTROL UMITED,SIN028346,1,"1,357.00",GROUNDS MAINTENANCE,13/01/14,"1,357.00"
080114G,GROUND CONTROL UMITED,SIN028347,1,100.00,GROUNDS MAINTENANCE,13/01/14,"4,250.00"
080114G,GROUND CONTROL UMITED,SIN028347,2,140.00,GROUNDS MAINTENANCE,13/01/14,
080114G,GROUND CONTROL UMITED,SIN028347,3,140.00,GROUNDS MAINTENANCE,13/01/14,
080114G,GROUND CONTROL UMITED,SIN028347,4,120.00,GROUNDS MAINTENANCE,13/01/14,
080114G,GROUND CONTROL UMITED,SIN028347,5,"2,050.00",GROUNDS MAINTENANCE,13/01/14,
080114G,GROUND CONTROL UMITED,SIN028347,6,"1,700.00",GROUNDS MAINTENANCE,13/01/14,
080114G,GROUND CONTROL UMITED,SIN028348,1,330.00,GROUNDS MAINTENANCE,13/01/14,330.00
080114G,GROUND CONTROL UMITED,SIN028349,1,"2,800.00",GROUNDS MAINTENANCE,13/01/14,"2,900.00"
080114G,GROUND CONTROL UMITED,SIN028349,2,100.00,GROUNDS MAINTENANCE,13/01/14,
080114G,APPLUS LLT,00208,1,"3,750.00",GENERAL,14/01/14,"3,750.00"
130114G,COUNTRYWIDE LEGAL INDEMNITIES,ADSPD289,1,"4,000.00",PROFESSIONAL SERVICES,14/01/14,"4,000.00"
140516,TBJ CROSSLEY,DAWKINS CASE,1,450.00,THIRD PARTY REPORTS,14/01/14,450.00
130114C,WOLF SAFETY LAMP CO LTD=======,0000022063,1,"5,040.00",GENERAL CONSUMABLES,16/01/14,"5,040.00"
100114G,HEALTH MANAGEMENT LIMITED=====,0000107221,1,"2,270.70",THIRD PARTY REPORTS,16/01/14,"3,265.20"
100114G,HEALTH MANAGEMENT LIMITED=====,0000107221,2,250.00,THIRD PARTY REPORTS,16/01/14,
100114G,HEALTH MANAGEMENT LIMITED=====,0000107221,3,334.50,THIRD PARTY REPORTS,16/01/14,
100114G,HEALTH MANAGEMENT LIMITED=====,0000107221,4,160.00,THIRD PARTY REPORTS,16/01/14,
100114G,HEALTH MANAGEMENT LIMITED=====,0000107221,5,250.00,THIRD PARTY REPORTS,16/01/14,
100114C,TURNER & TOWNSEND PROJECT MNGT,000541948,1,"7,982.00",PROF FEES-MISCELLANEOUS,16/01/14,"7,982.00"
080114G,LYNN WICKINS,0055,1,"1,520.00",PROFESSIONAL SERVICES,16/01/14,"1,520.00"
130114C,OPERATIONAL RESEARCH IN HEALTH,01Y/LFB1/40,1,"7,833.33",CONSULTANTS,16/01/14,"7,833.33"
080114C,GEORGE JONES & SON LTD========,036716,1,"8,423.84",STRATEGIC (NON CYCLICAL),16/01/14,"8,423.84"
090114C,AIRWAVE SOLUTIONS LTD=========,0941000028-002,1,571.29,LOST & NFWT OPS EQUIPMENT,16/01/14,"1,286.62"
090114C,AIRWAVE SOLUTIONS LTD=========,0941000028-002,2,72.02,LOST & NFWT OPS EQUIPMENT,16/01/14,
090114C,AIRWAVE SOLUTIONS LTD=========,0941000028-002,3,72.02,ACQUISITIONS,16/01/14,
090114C,AIRWAVE SOLUTIONS LTD=========,0941000028-002,4,571.29,ACQUISITIONS,16/01/14,
100114C,MOOLANDS LTD,10430,1,730.00,STRATEGIC (CYCLICAL),16/01/14,"5,110.00"
100114C,MOOLANDS LTD,10430,2,730.00,STRATEGIC (CYCLICAL),16/01/14,
100114C,MOOLANDS LTD,10430,3,730.00,STRATEGIC (CYCLICAL),16/01/14,
100114C,MOOLANDS LTD,10430,4,730.00,STRATEGIC (CYCLICAL),16/01/14,
100114C,MOOLANDS LTD,10430,5,730.00,STRATEGIC (CYCLICAL),16/01/14,
100114C,MOOLANDS LTD,10430,6,730.00,STRATEGIC (CYCLICAL),16/01/14,
100114C,MOOLANDS LTD,10430,7,730.00,STRATEGIC (CYCLICAL),16/01/14,
090114C,*SPRUE SAFETY PRODUCTS LTD====,1055698,1,988.80,FIRE DETECTORS,16/01/14,988.80
130114G,*SPRUE SAFETY PRODUCTS LTD====,1055722,1,988.80,FIRE DETECTORS,16/01/14,988.80
100114G,*SPRUE SAFETY PRODUCTS LTD====,1055724,1,988.80,FIRE DETECTORS,16/01/14,988.80
100114G,*SPRUE SAFETY PRODUCTS LTD====,1055851,1,988.80,FIRE DETECTORS,16/01/14,988.80
060114G,*SPRUE SAFETY PRODUCTS LTD====,1055852,1,988.80,FIRE DETECTORS,16/01/14,988.80
060114G,*SPRUE SAFETY PRODUCTS LTD====,1055855,1,"1,359.60",FIRE DETECTORS,16/01/14,"1,359.60"
130114G,*SPRUE SAFETY PRODUCTS LTD====,1055857,1,"1,359.60",FIRE DETECTORS,16/01/14,"1,359.60"
060114G,*SPRUE SAFETY PRODUCTS LTD====,1055858,1,"1,359.60",FIRE DETECTORS,16/01/14,"1,359.60"
060114G,*SPRUE SAFETY PRODUCTS LTD====,1055860,1,"2,719.20",FIRE DETECTORS,16/01/14,"2,719.20"
100114G,*SPRUE SAFETY PRODUCTS LTD====,1055862,1,"2,719.20",FIRE DETECTORS,16/01/14,"2,719.20"
060114G,*SPRUE SAFETY PRODUCTS LTD====,1055864,1,"2,719.20",FIRE DETECTORS,16/01/14,"2,719.20"
060114G,*SPRUE SAFETY PRODUCTS LTD====,1055865,1,"1,730.40",FIRE DETECTORS,16/01/14,"1,730.40"
130114C,INFOR (UNITED KINGDOM) LIMITED,11308757-GB04G,1,"1,070.00",DAY TO DAY MINOR IMPS,16/01/14,"1,070.00"
130114C,INFOR (UNITED KINGDOM) LIMITED,11308759-GB04G,1,"2,300.00",MAINTENANCE & SUPPORT,16/01/14,"3,210.00"
130114C,INFOR (UNITED KINGDOM) LIMITED,11308759-GB04G,2,910.00,MAINTENANCE & SUPPORT,16/01/14,
130114C,INFOR (UNITED KINGDOM) LIMITED,11308762-GB04G,1,536.67,MAINTENANCE & SUPPORT,16/01/14,536.67
130114C,INFOR (UNITED KINGDOM) LIMITED,11308810-GB04G,1,"1,070.00",DAY TO DAY MINOR IMPS,16/01/14,"1,070.00"
130114C,INFOR (UNITED KINGDOM) LIMITED,11308811-GB04G,1,"3,745.09",MAINTENANCE & SUPPORT,16/01/14,"5,350.00"
130114C,INFOR (UNITED KINGDOM) LIMITED,11308811-GB04G,2,"1,604.91",MAINTENANCE & SUPPORT,16/01/14,
100114C,CEDAFORCE LTD=================,11657,1,262.50,TACTICAL DAY TO DAY,16/01/14,262.50
100114C,MARTIN LAVELL LTD=============,1239481,1,286.75,BOOKS & JOURNALS,16/01/14,286.75
080114G,JOHN BURKE ASSOCIATES,13-12/13456,1,360.00,PROF FEES-MISCELLANEOUS,16/01/14,360.00
080114G,JOHN BURKE ASSOCIATES,13-12/13507,1,"1,440.00",PROF FEES-MISCELLANEOUS,16/01/14,"1,440.00"
100114C,KIER BUILDING SERV ENGINEERS==,13070061,1,"35,094.92",TACTICAL DAY TO DAY,16/01/14,"73,454.38"
100114C,KIER BUILDING SERV ENGINEERS==,13070061,2,523.32,TACTICAL DAY TO DAY,16/01/14,
100114C,KIER BUILDING SERV ENGINEERS==,13070061,3,"1,745.65",TACTICAL DAY TO DAY,16/01/14,
100114C,KIER BUILDING SERV ENGINEERS==,13070061,4,"1,882.77",TACTICAL DAY TO DAY,16/01/14,
100114C,KIER BUILDING SERV ENGINEERS==,13070061,5,"25,750.83",STRATEGIC (CYCLICAL),16/01/14,
100114C,KIER BUILDING SERV ENGINEERS==,13070061,6,"1,187.39",STRATEGIC (CYCLICAL),16/01/14,
100114C,KIER BUILDING SERV ENGINEERS==,13070061,7,"1,488.35",STRATEGIC (CYCLICAL),16/01/14,
100114C,KIER BUILDING SERV ENGINEERS==,13070061,8,"5,781.15",STRATEGIC (CYCLICAL),16/01/14,
800027890,PRIMEPEACE LTD================,131201,1,"4,650.00",MAINTENANCE & SUPPORT,16/01/14,"9,250.00"
800027890,PRIMEPEACE LTD================,131201,2,600.00,MAINTENANCE & SUPPORT,16/01/14,
800027890,PRIMEPEACE LTD================,131201,3,"3,500.00",MAINTENANCE & SUPPORT,16/01/14,
800027890,PRIMEPEACE LTD================,131201,4,500.00,MAINTENANCE & SUPPORT,16/01/14,
140516,EDF ENERGY===================,1785376844,1,"1,160.41",ELECTRICITY,16/01/14,"1,160.41"
140516,EDF ENERGY===================,1785907939,1,"3,194.32",ELECTRICITY,16/01/14,"3,194.32"
140516,EDF ENERGY===================,1786209540,1,"8,203.67",ELECTRICITY,16/01/14,"8,203.67"
140516,EDF ENERGY===================,1786484440,1,"4,227.82",ELECTRICITY,16/01/14,"4,450.34"
140516,EDF ENERGY===================,1786484440,2,222.52,ELECTRICITY,16/01/14,
140516,EDF ENERGY===================,1793376237,1,"10,335.62",ELECTRICITY,16/01/14,"10,335.62"
140516,EDF ENERGY===================,1813823630,1,"17,334.04",ELECTRICITY,16/01/14,"17,334.04"
100114C,GRADIENT CONSULTANTS LLP======,1964,1,290.00,PROF FEES-MISCELLANEOUS,16/01/14,"1,190.00"
100114C,GRADIENT CONSULTANTS LLP======,1964,2,125.00,PROF FEES-MISCELLANEOUS,16/01/14,
100114C,GRADIENT CONSULTANTS LLP======,1964,3,195.00,PROF FEES-MISCELLANEOUS,16/01/14,
100114C,GRADIENT CONSULTANTS LLP======,1964,4,290.00,PROF FEES-MISCELLANEOUS,16/01/14,
100114C,GRADIENT CONSULTANTS LLP======,1964,5,290.00,PROF FEES-MISCELLANEOUS,16/01/14,
130114C,ASBESTOS FIRST================,22661/S5568,1,"3,110.00",ASBESTOS,16/01/14,"3,110.00"
140518,MISS BO-EUN JUNG==============,229385B,1,700.00,PROFESSIONAL FEES ENFORCEMENT,16/01/14,700.00
100114C,DELTOR COMMUNICATIONS LTD.===,24667,1,438.00,GENERAL CONSUMABLES,16/01/14,438.00
140516,THAMES WATER UTILITIES LTD====,2559901112H,1,417.82,WATER & SEWERAGE RATES,16/01/14,417.82
140516,THAMES WATER UTILITIES LTD====,2574700531Z,1,699.14,WATER & SEWERAGE RATES,16/01/14,699.14
100114C,PRECISE MEDIA MONITORING LTD==,266443,1,"3,499.77",PRESS OFFICE,16/01/14,"3,499.77"
130114G,TEAM PURPLE LIMITED===========,2708,1,76.65,UNIFORMS - POMS,16/01/14,315.10
130114G,TEAM PURPLE LIMITED===========,2708,2,76.65,UNIFORMS - POMS,16/01/14,
130114G,TEAM PURPLE LIMITED===========,2708,3,76.65,UNIFORMS - POMS,16/01/14,
130114G,TEAM PURPLE LIMITED===========,2708,4,85.15,UNIFORMS - POMS,16/01/14,
030114C,UNDERSTANDING RECRUITMENT=====,2741,1,"6,160.00",MAINTENANCE & SUPPORT,16/01/14,"6,160.00"
140516,THAMES WATER UTILITIES LTD====,27970-86298L,1,"1,600.46",WATER & SEWERAGE RATES,16/01/14,"1,600.46"
090114C,EVOLUTION ENVIRONMENTAL LTD,2856,1,700.00,ASBESTOS,16/01/14,700.00
100114C,EXPRESS VENDING LIMITED=======,347904,1,"8,000.00",CATERING EQUIPMENT,16/01/14,"8,000.00"
100114G,*HOMEPACK LTD=================,38052,1,296.00,OPERATIONAL EQUIP-PURCHASE,16/01/14,296.00
100114C,COMPUTACENTRE================,3805261497,1,"169,525.00",PURCHASES-COMPUTER/EQUIPMENT,16/01/14,"169,525.00"
080114C,COMPUTACENTRE================,3805336348,1,"6,840.00",MAINTENANCE & SUPPORT,16/01/14,"14,834.43"
080114C,COMPUTACENTRE================,3805336348,2,273.43,MAINTENANCE & SUPPORT,16/01/14,
080114C,COMPUTACENTRE================,3805336348,3,"1,368.00",MAINTENANCE & SUPPORT,16/01/14,
080114C,COMPUTACENTRE================,3805336348,4,"1,368.00",MAINTENANCE & SUPPORT,16/01/14,
080114C,COMPUTACENTRE================,3805336348,5,"4,985.00",MAINTENANCE & SUPPORT,16/01/14,
130114G,*HOMEPACK LTD=================,38058,1,296.00,OPERATIONAL EQUIP-PURCHASE,16/01/14,296.00
100114G,*HOMEPACK LTD=================,38121,1,296.00,OPERATIONAL EQUIP-PURCHASE,16/01/14,296.00
090114C,KNIGHTON CLEANING SERVICES LTD,38619,1,972.90,GENERAL CLEANS,16/01/14,"73,393.62"
090114C,KNIGHTON CLEANING SERVICES LTD,38619,2,"1,072.79",GENERAL CLEANS,16/01/14,
090114C,KNIGHTON CLEANING SERVICES LTD,38619,3,"1,006.42",GENERAL CLEANS,16/01/14,
090114C,KNIGHTON CLEANING SERVICES LTD,38619,4,"1,212.03",GENERAL CLEANS,16/01/14,
090114C,KNIGHTON CLEANING SERVICES LTD,38619,5,588.44,GENERAL CLEANS,16/01/14,
090114C,KNIGHTON CLEANING SERVICES LTD,38619,6,"1,352.92",GENERAL CLEANS,16/01/14,
090114C,KNIGHTON CLEANING SERVICES LTD,38619,7,"1,962.26",GENERAL CLEANS,16/01/14,
090114C,KNIGHTON CLEANING SERVICES LTD,38619,8,"2,019.86",GENERAL CLEANS,16/01/14,
090114C,KNIGHTON CLEANING SERVICES LTD,38619,9,"3,162.88",GENERAL CLEANS,16/01/14,
090114C,KNIGHTON CLEANING SERVICES LTD,38619,10,995.59,GENERAL CLEANS,16/01/14,
090114C,KNIGHTON CLEANING SERVICES LTD,38619,11,879.86,GENERAL CLEANS,16/01/14,
090114C,KNIGHTON CLEANING SERVICES LTD,38619,12,"1,061.47",GENERAL CLEANS,16/01/14,
090114C,KNIGHTON CLEANING SERVICES LTD,38619,13,"1,208.43",GENERAL CLEANS,16/01/14,
090114C,KNIGHTON CLEANING SERVICES LTD,38619,14,"1,003.19",GENERAL CLEANS,16/01/14,
090114C,KNIGHTON CLEANING SERVICES LTD,38619,15,"1,048.85",GENERAL CLEANS,16/01/14,
090114C,KNIGHTON CLEANING SERVICES LTD,38619,16,"1,071.34",GENERAL CLEANS,16/01/14,
090114C,KNIGHTON CLEANING SERVICES LTD,38619,17,"1,333.85",GENERAL CLEANS,16/01/14,
090114C,KNIGHTON CLEANING SERVICES LTD,38619,18,"1,214.66",GENERAL CLEANS,16/01/14,
090114C,KNIGHTON CLEANING SERVICES LTD,38619,19,581.88,GENERAL CLEANS,16/01/14,
090114C,KNIGHTON CLEANING SERVICES LTD,38619,20,"12,111.60",GENERAL CLEANS,16/01/14,
090114C,KNIGHTON CLEANING SERVICES LTD,38619,21,"1,167.31",GENERAL CLEANS,16/01/14,
090114C,KNIGHTON CLEANING SERVICES LTD,38619,22,390.32,GENERAL CLEANS,16/01/14,
090114C,KNIGHTON CLEANING SERVICES LTD,38619,23,"1,480.68",GENERAL CLEANS,16/01/14,
090114C,KNIGHTON CLEANING SERVICES LTD,38619,24,"3,106.56",GENERAL CLEANS,16/01/14,
090114C,KNIGHTON CLEANING SERVICES LTD,38619,25,620.95,GENERAL CLEANS,16/01/14,
090114C,KNIGHTON CLEANING SERVICES LTD,38619,26,"1,694.87",GENERAL CLEANS,16/01/14,
090114C,KNIGHTON CLEANING SERVICES LTD,38619,27,837.31,GENERAL CLEANS,16/01/14,
090114C,KNIGHTON CLEANING SERVICES LTD,38619,28,"1,277.50",GENERAL CLEANS,16/01/14,
090114C,KNIGHTON CLEANING SERVICES LTD,38619,29,891.43,GENERAL CLEANS,16/01/14,
090114C,KNIGHTON CLEANING SERVICES LTD,38619,30,"1,883.42",GENERAL CLEANS,16/01/14,
090114C,KNIGHTON CLEANING SERVICES LTD,38619,31,"1,218.44",GENERAL CLEANS,16/01/14,
090114C,KNIGHTON CLEANING SERVICES LTD,38619,32,884.34,GENERAL CLEANS,16/01/14,
090114C,KNIGHTON CLEANING SERVICES LTD,38619,33,"1,177.51",GENERAL CLEANS,16/01/14,
090114C,KNIGHTON CLEANING SERVICES LTD,38619,34,"1,203.19",GENERAL CLEANS,16/01/14,
090114C,KNIGHTON CLEANING SERVICES LTD,38619,35,"7,662.97",GENERAL CLEANS,16/01/14,
090114C,KNIGHTON CLEANING SERVICES LTD,38619,36,718.82,GENERAL CLEANS,16/01/14,
090114C,KNIGHTON CLEANING SERVICES LTD,38619,37,844.75,GENERAL CLEANS,16/01/14,
090114C,KNIGHTON CLEANING SERVICES LTD,38619,38,"1,806.36",GENERAL CLEANS,16/01/14,
090114C,KNIGHTON CLEANING SERVICES LTD,38619,39,"1,050.32",GENERAL CLEANS,16/01/14,
090114C,KNIGHTON CLEANING SERVICES LTD,38619,40,797.40,GENERAL CLEANS,16/01/14,
090114C,KNIGHTON CLEANING SERVICES LTD,38619,41,"1,584.60",GENERAL CLEANS,16/01/14,
090114C,KNIGHTON CLEANING SERVICES LTD,38619,42,"1,288.59",GENERAL CLEANS,16/01/14,
090114C,KNIGHTON CLEANING SERVICES LTD,38619,43,"1,283.46",GENERAL CLEANS,16/01/14,
090114C,KNIGHTON CLEANING SERVICES LTD,38619,44,"1,188.30",GENERAL CLEANS,16/01/14,
090114C,KNIGHTON CLEANING SERVICES LTD,38619,45,"1,002.57",GENERAL CLEANS,16/01/14,
090114C,KNIGHTON CLEANING SERVICES LTD,38619,46,470.43,GENERAL CLEANS,16/01/14,
090114C,KNIGHTON CLEANING SERVICES LTD,38621,1,"2,145.42",GENERAL CLEANS,16/01/14,"84,806.61"
090114C,KNIGHTON CLEANING SERVICES LTD,38621,2,"1,984.67",GENERAL CLEANS,16/01/14,
090114C,KNIGHTON CLEANING SERVICES LTD,38621,3,"1,401.30",GENERAL CLEANS,16/01/14,
090114C,KNIGHTON CLEANING SERVICES LTD,38621,4,965.38,GENERAL CLEANS,16/01/14,
090114C,KNIGHTON CLEANING SERVICES LTD,38621,5,"1,132.66",GENERAL CLEANS,16/01/14,
090114C,KNIGHTON CLEANING SERVICES LTD,38621,6,775.42,GENERAL CLEANS,16/01/14,
090114C,KNIGHTON CLEANING SERVICES LTD,38621,7,"1,185.30",GENERAL CLEANS,16/01/14,
090114C,KNIGHTON CLEANING SERVICES LTD,38621,8,"1,048.17",GENERAL CLEANS,16/01/14,
090114C,KNIGHTON CLEANING SERVICES LTD,38621,9,744.37,GENERAL CLEANS,16/01/14,
090114C,KNIGHTON CLEANING SERVICES LTD,38621,10,"1,920.64",GENERAL CLEANS,16/01/14,
090114C,KNIGHTON CLEANING SERVICES LTD,38621,11,"1,190.81",GENERAL CLEANS,16/01/14,
090114C,KNIGHTON CLEANING SERVICES LTD,38621,12,"1,239.98",GENERAL CLEANS,16/01/14,
090114C,KNIGHTON CLEANING SERVICES LTD,38621,13,"1,057.98",GENERAL CLEANS,16/01/14,
090114C,KNIGHTON CLEANING SERVICES LTD,38621,14,"1,864.82",GENERAL CLEANS,16/01/14,
090114C,KNIGHTON CLEANING SERVICES LTD,38621,15,"2,215.12",GENERAL CLEANS,16/01/14,
090114C,KNIGHTON CLEANING SERVICES LTD,38621,16,749.21,GENERAL CLEANS,16/01/14,
090114C,KNIGHTON CLEANING SERVICES LTD,38621,17,"1,420.93",GENERAL CLEANS,16/01/14,
090114C,KNIGHTON CLEANING SERVICES LTD,38621,18,748.61,GENERAL CLEANS,16/01/14,
090114C,KNIGHTON CLEANING SERVICES LTD,38621,19,"1,487.35",GENERAL CLEANS,16/01/14,
090114C,KNIGHTON CLEANING SERVICES LTD,38621,20,"1,718.38",GENERAL CLEANS,16/01/14,
090114C,KNIGHTON CLEANING SERVICES LTD,38621,21,764.49,GENERAL CLEANS,16/01/14,
090114C,KNIGHTON CLEANING SERVICES LTD,38621,22,"2,259.49",GENERAL CLEANS,16/01/14,
090114C,KNIGHTON CLEANING SERVICES LTD,38621,23,"1,791.41",GENERAL CLEANS,16/01/14,
090114C,KNIGHTON CLEANING SERVICES LTD,38621,24,913.70,GENERAL CLEANS,16/01/14,
090114C,KNIGHTON CLEANING SERVICES LTD,38621,25,914.93,GENERAL CLEANS,16/01/14,
090114C,KNIGHTON CLEANING SERVICES LTD,38621,26,"1,062.89",GENERAL CLEANS,16/01/14,
090114C,KNIGHTON CLEANING SERVICES LTD,38621,27,"1,733.68",GENERAL CLEANS,16/01/14,
090114C,KNIGHTON CLEANING SERVICES LTD,38621,28,"1,030.35",GENERAL CLEANS,16/01/14,
090114C,KNIGHTON CLEANING SERVICES LTD,38621,29,809.26,GENERAL CLEANS,16/01/14,
090114C,KNIGHTON CLEANING SERVICES LTD,38621,30,952.65,GENERAL CLEANS,16/01/14,
090114C,KNIGHTON CLEANING SERVICES LTD,38621,31,"1,309.47",GENERAL CLEANS,16/01/14,
090114C,KNIGHTON CLEANING SERVICES LTD,38621,32,757.11,GENERAL CLEANS,16/01/14,
090114C,KNIGHTON CLEANING SERVICES LTD,38621,33,"1,525.99",GENERAL CLEANS,16/01/14,
090114C,KNIGHTON CLEANING SERVICES LTD,38621,34,"1,249.50",GENERAL CLEANS,16/01/14,
090114C,KNIGHTON CLEANING SERVICES LTD,38621,35,"1,369.17",GENERAL CLEANS,16/01/14,
090114C,KNIGHTON CLEANING SERVICES LTD,38621,36,769.25,GENERAL CLEANS,16/01/14,
090114C,KNIGHTON CLEANING SERVICES LTD,38621,37,866.18,GENERAL CLEANS,16/01/14,
090114C,KNIGHTON CLEANING SERVICES LTD,38621,38,867.72,GENERAL CLEANS,16/01/14,
090114C,KNIGHTON CLEANING SERVICES LTD,38621,39,921.09,GENERAL CLEANS,16/01/14,
090114C,KNIGHTON CLEANING SERVICES LTD,38621,40,940.18,GENERAL CLEANS,16/01/14,
090114C,KNIGHTON CLEANING SERVICES LTD,38621,41,686.16,GENERAL CLEANS,16/01/14,
090114C,KNIGHTON CLEANING SERVICES LTD,38621,42,"1,485.42",GENERAL CLEANS,16/01/14,
090114C,KNIGHTON CLEANING SERVICES LTD,38621,43,"1,311.33",GENERAL CLEANS,16/01/14,
090114C,KNIGHTON CLEANING SERVICES LTD,38621,44,932.88,GENERAL CLEANS,16/01/14,
090114C,KNIGHTON CLEANING SERVICES LTD,38621,45,"2,744.76",GENERAL CLEANS,16/01/14,
090114C,KNIGHTON CLEANING SERVICES LTD,38621,46,"1,014.46",GENERAL CLEANS,16/01/14,
090114C,KNIGHTON CLEANING SERVICES LTD,38621,48,"1,061.55",GENERAL CLEANS,16/01/14,
090114C,KNIGHTON CLEANING SERVICES LTD,38621,49,"1,027.02",GENERAL CLEANS,16/01/14,
090114C,KNIGHTON CLEANING SERVICES LTD,38621,50,931.42,GENERAL CLEANS,16/01/14,
090114C,KNIGHTON CLEANING SERVICES LTD,38621,51,"1,272.47",GENERAL CLEANS,16/01/14,
090114C,KNIGHTON CLEANING SERVICES LTD,38621,52,"2,238.52",GENERAL CLEANS,16/01/14,
090114C,KNIGHTON CLEANING SERVICES LTD,38621,53,863.96,GENERAL CLEANS,16/01/14,
090114C,KNIGHTON CLEANING SERVICES LTD,38621,54,"1,822.05",GENERAL CLEANS,16/01/14,
090114C,KNIGHTON CLEANING SERVICES LTD,38621,55,"1,024.83",GENERAL CLEANS,16/01/14,
090114C,KNIGHTON CLEANING SERVICES LTD,38621,56,676.12,GENERAL CLEANS,16/01/14,
090114C,KNIGHTON CLEANING SERVICES LTD,38621,57,667.63,GENERAL CLEANS,16/01/14,
090114C,KNIGHTON CLEANING SERVICES LTD,38621,58,776.02,GENERAL CLEANS,16/01/14,
090114C,KNIGHTON CLEANING SERVICES LTD,38621,59,"2,277.54",GENERAL CLEANS,16/01/14,
090114C,KNIGHTON CLEANING SERVICES LTD,38621,60,902.35,GENERAL CLEANS,16/01/14,
090114C,KNIGHTON CLEANING SERVICES LTD,38621,61,"1,561.89",GENERAL CLEANS,16/01/14,
090114C,KNIGHTON CLEANING SERVICES LTD,38621,62,"2,575.91",GENERAL CLEANS,16/01/14,
090114C,KNIGHTON CLEANING SERVICES LTD,38621,63,754.42,GENERAL CLEANS,16/01/14,
090114C,KNIGHTON CLEANING SERVICES LTD,38621,64,771.12,GENERAL CLEANS,16/01/14,
090114C,KNIGHTON CLEANING SERVICES LTD,38621,65,"1,483.56",GENERAL CLEANS,16/01/14,
090114C,KNIGHTON CLEANING SERVICES LTD,38621,66,"1,048.52",GENERAL CLEANS,16/01/14,
090114C,KNIGHTON CLEANING SERVICES LTD,38621,67,796.65,GENERAL CLEANS,16/01/14,
090114C,KNIGHTON CLEANING SERVICES LTD,38621,68,"1,035.93",GENERAL CLEANS,16/01/14,
090114C,KNIGHTON CLEANING SERVICES LTD,38621,69,"1,257.09",GENERAL CLEANS,16/01/14,
800028068,*BURLINGTON UNIFORMS LTD,424474,1,191.87,CLOTHING,16/01/14,383.74
800028068,*BURLINGTON UNIFORMS LTD,424474,2,191.87,CLOTHING,16/01/14,
080114C,MITIE SECURITY (LONDON) LTD===,45/543075,1,617.76,PREMISES SECURITY,16/01/14,617.76
080114C,MITIE SECURITY (LONDON) LTD===,45/543081,1,"1,261.70",PREMISES SECURITY,16/01/14,"1,261.70"
080114C,MITIE SECURITY (LONDON) LTD===,45/543242,1,"17,067.36",PREMISES SECURITY,16/01/14,"17,067.36"
140516,THAMES WATER UTILITIES LTD====,45605-30523K,1,528.31,WATER & SEWERAGE RATES,16/01/14,528.31
100114C,FAHEY BUILDERS LTD============,5183,1,680.00,STRATEGIC (NON CYCLICAL),16/01/14,"5,580.00"
100114C,FAHEY BUILDERS LTD============,5183,2,780.00,STRATEGIC (NON CYCLICAL),16/01/14,
100114C,FAHEY BUILDERS LTD============,5183,3,780.00,STRATEGIC (NON CYCLICAL),16/01/14,
100114C,FAHEY BUILDERS LTD============,5183,4,660.00,STRATEGIC (NON CYCLICAL),16/01/14,
100114C,FAHEY BUILDERS LTD============,5183,5,740.00,STRATEGIC (NON CYCLICAL),16/01/14,
100114C,FAHEY BUILDERS LTD============,5183,6,680.00,STRATEGIC (NON CYCLICAL),16/01/14,
100114C,FAHEY BUILDERS LTD============,5183,7,640.00,STRATEGIC (NON CYCLICAL),16/01/14,
100114C,FAHEY BUILDERS LTD============,5183,8,620.00,STRATEGIC (NON CYCLICAL),16/01/14,
070114F,PRESSURE COOLERS LTD==========,532633,1,8.25,CATERING FIXTURES,16/01/14,"1,303.00"
070114F,PRESSURE COOLERS LTD==========,532633,2,8.25,CATERING FIXTURES,16/01/14,
070114F,PRESSURE COOLERS LTD==========,532633,3,8.25,CATERING FIXTURES,16/01/14,
070114F,PRESSURE COOLERS LTD==========,532633,4,8.25,CATERING FIXTURES,16/01/14,
070114F,PRESSURE COOLERS LTD==========,532633,5,8.00,CATERING FIXTURES,16/01/14,
070114F,PRESSURE COOLERS LTD==========,532633,6,8.25,CATERING FIXTURES,16/01/14,
070114F,PRESSURE COOLERS LTD==========,532633,7,8.00,CATERING FIXTURES,16/01/14,
070114F,PRESSURE COOLERS LTD==========,532633,8,8.25,CATERING FIXTURES,16/01/14,
070114F,PRESSURE COOLERS LTD==========,532633,9,8.25,CATERING FIXTURES,16/01/14,
070114F,PRESSURE COOLERS LTD==========,532633,10,8.25,CATERING FIXTURES,16/01/14,
070114F,PRESSURE COOLERS LTD==========,532633,11,8.25,CATERING EQUIPMENT,16/01/14,
070114F,PRESSURE COOLERS LTD==========,532633,12,8.00,CATERING FIXTURES,16/01/14,
070114F,PRESSURE COOLERS LTD==========,532633,13,8.25,CATERING FIXTURES,16/01/14,
070114F,PRESSURE COOLERS LTD==========,532633,14,8.25,CATERING FIXTURES,16/01/14,
070114F,PRESSURE COOLERS LTD==========,532633,15,8.25,CATERING FIXTURES,16/01/14,
070114F,PRESSURE COOLERS LTD==========,532633,16,8.25,CATERING FIXTURES,16/01/14,
070114F,PRESSURE COOLERS LTD==========,532633,17,8.00,CATERING FIXTURES,16/01/14,
070114F,PRESSURE COOLERS LTD==========,532633,18,8.25,CATERING FIXTURES,16/01/14,
070114F,PRESSURE COOLERS LTD==========,532633,19,8.00,CATERING FIXTURES,16/01/14,
070114F,PRESSURE COOLERS LTD==========,532633,20,8.25,CATERING FIXTURES,16/01/14,
070114F,PRESSURE COOLERS LTD==========,532633,21,8.25,CATERING FIXTURES,16/01/14,
070114F,PRESSURE COOLERS LTD==========,532633,22,8.00,CATERING FIXTURES,16/01/14,
070114F,PRESSURE COOLERS LTD==========,532633,23,8.25,CATERING FIXTURES,16/01/14,
070114F,PRESSURE COOLERS LTD==========,532633,24,8.25,CATERING FIXTURES,16/01/14,
070114F,PRESSURE COOLERS LTD==========,532633,25,8.25,CATERING FIXTURES,16/01/14,
070114F,PRESSURE COOLERS LTD==========,532633,26,8.00,CATERING FIXTURES,16/01/14,
070114F,PRESSURE COOLERS LTD==========,532633,27,8.00,CATERING FIXTURES,16/01/14,
070114F,PRESSURE COOLERS LTD==========,532633,28,8.25,CATERING FIXTURES,16/01/14,
070114F,PRESSURE COOLERS LTD==========,532633,29,8.00,CATERING FIXTURES,16/01/14,
070114F,PRESSURE COOLERS LTD==========,532633,30,8.25,CATERING FIXTURES,16/01/14,
070114F,PRESSURE COOLERS LTD==========,532633,31,8.25,CATERING FIXTURES,16/01/14,
070114F,PRESSURE COOLERS LTD==========,532633,32,8.25,CATERING EQUIPMENT,16/01/14,
070114F,PRESSURE COOLERS LTD==========,532633,33,8.25,CATERING FIXTURES,16/01/14,
070114F,PRESSURE COOLERS LTD==========,532633,34,8.25,CATERING EQUIPMENT,16/01/14,
070114F,PRESSURE COOLERS LTD==========,532633,35,8.25,CATERING FIXTURES,16/01/14,
070114F,PRESSURE COOLERS LTD==========,532633,36,8.25,CATERING FIXTURES,16/01/14,
070114F,PRESSURE COOLERS LTD==========,532633,37,8.25,CATERING FIXTURES,16/01/14,
070114F,PRESSURE COOLERS LTD==========,532633,38,8.25,CATERING FIXTURES,16/01/14,
070114F,PRESSURE COOLERS LTD==========,532633,39,8.00,OFFICE EQUIPMENT,16/01/14,
070114F,PRESSURE COOLERS LTD==========,532633,40,8.25,CATERING FIXTURES,16/01/14,
070114F,PRESSURE COOLERS LTD==========,532633,41,8.25,CATERING FIXTURES,16/01/14,
070114F,PRESSURE COOLERS LTD==========,532633,42,8.25,CATERING FIXTURES,16/01/14,
070114F,PRESSURE COOLERS LTD==========,532633,43,8.25,CATERING FIXTURES,16/01/14,
070114F,PRESSURE COOLERS LTD==========,532633,44,8.00,CATERING FIXTURES,16/01/14,
070114F,PRESSURE COOLERS LTD==========,532633,45,8.00,CATERING FIXTURES,16/01/14,
070114F,PRESSURE COOLERS LTD==========,532633,46,8.25,CATERING FIXTURES,16/01/14,
070114F,PRESSURE COOLERS LTD==========,532633,47,8.25,CATERING FIXTURES,16/01/14,
070114F,PRESSURE COOLERS LTD==========,532633,48,8.25,CATERING FIXTURES,16/01/14,
070114F,PRESSURE COOLERS LTD==========,532633,49,8.25,CATERING FIXTURES,16/01/14,
070114F,PRESSURE COOLERS LTD==========,532633,50,8.00,CATERING FIXTURES,16/01/14,
070114F,PRESSURE COOLERS LTD==========,532633,51,8.25,CATERING FIXTURES,16/01/14,
070114F,PRESSURE COOLERS LTD==========,532633,52,8.25,CATERING FIXTURES,16/01/14,
070114F,PRESSURE COOLERS LTD==========,532633,53,8.25,CATERING FIXTURES,16/01/14,
070114F,PRESSURE COOLERS LTD==========,532633,54,8.25,CATERING FIXTURES,16/01/14,
070114F,PRESSURE COOLERS LTD==========,532633,55,8.25,CATERING FIXTURES,16/01/14,
070114F,PRESSURE COOLERS LTD==========,532633,56,8.25,CATERING FIXTURES,16/01/14,
070114F,PRESSURE COOLERS LTD==========,532633,57,8.00,CATERING FIXTURES,16/01/14,
070114F,PRESSURE COOLERS LTD==========,532633,58,8.25,CATERING FIXTURES,16/01/14,
070114F,PRESSURE COOLERS LTD==========,532633,59,8.25,CATERING EQUIPMENT,16/01/14,
070114F,PRESSURE COOLERS LTD==========,532633,60,8.25,CATERING FIXTURES,16/01/14,
070114F,PRESSURE COOLERS LTD==========,532633,61,8.25,CATERING FIXTURES,16/01/14,
070114F,PRESSURE COOLERS LTD==========,532633,62,8.25,CATERING FIXTURES,16/01/14,
070114F,PRESSURE COOLERS LTD==========,532633,63,8.25,CATERING FIXTURES,16/01/14,
070114F,PRESSURE COOLERS LTD==========,532633,64,8.25,CATERING FIXTURES,16/01/14,
070114F,PRESSURE COOLERS LTD==========,532633,65,8.25,CATERING FIXTURES,16/01/14,
070114F,PRESSURE COOLERS LTD==========,532633,66,8.25,CATERING FIXTURES,16/01/14,
070114F,PRESSURE COOLERS LTD==========,532633,67,8.00,CATERING FIXTURES,16/01/14,
070114F,PRESSURE COOLERS LTD==========,532633,68,8.25,CATERING FIXTURES,16/01/14,
070114F,PRESSURE COOLERS LTD==========,532633,69,8.25,CATERING FIXTURES,16/01/14,
070114F,PRESSURE COOLERS LTD==========,532633,70,8.25,CATERING FIXTURES,16/01/14,
070114F,PRESSURE COOLERS LTD==========,532633,71,8.25,CATERING FIXTURES,16/01/14,
070114F,PRESSURE COOLERS LTD==========,532633,72,8.25,CATERING FIXTURES,16/01/14,
070114F,PRESSURE COOLERS LTD==========,532633,73,8.25,CATERING FIXTURES,16/01/14,
070114F,PRESSURE COOLERS LTD==========,532633,74,8.25,CATERING FIXTURES,16/01/14,
070114F,PRESSURE COOLERS LTD==========,532633,75,8.25,CATERING FIXTURES,16/01/14,
070114F,PRESSURE COOLERS LTD==========,532633,76,8.25,CATERING FIXTURES,16/01/14,
070114F,PRESSURE COOLERS LTD==========,532633,77,8.25,CATERING FIXTURES,16/01/14,
070114F,PRESSURE COOLERS LTD==========,532633,78,8.25,CATERING FIXTURES,16/01/14,
070114F,PRESSURE COOLERS LTD==========,532633,79,8.25,CATERING FIXTURES,16/01/14,
070114F,PRESSURE COOLERS LTD==========,532633,80,8.25,CATERING FIXTURES,16/01/14,
070114F,PRESSURE COOLERS LTD==========,532633,81,8.25,CATERING FIXTURES,16/01/14,
070114F,PRESSURE COOLERS LTD==========,532633,82,8.25,CATERING FIXTURES,16/01/14,
070114F,PRESSURE COOLERS LTD==========,532633,83,8.25,OFFICE EQUIPMENT,16/01/14,
070114F,PRESSURE COOLERS LTD==========,532633,84,8.25,CATERING FIXTURES,16/01/14,
070114F,PRESSURE COOLERS LTD==========,532633,85,8.00,CATERING FIXTURES,16/01/14,
070114F,PRESSURE COOLERS LTD==========,532633,86,8.00,CATERING FIXTURES,16/01/14,
070114F,PRESSURE COOLERS LTD==========,532633,87,8.25,CATERING FIXTURES,16/01/14,
070114F,PRESSURE COOLERS LTD==========,532633,88,8.00,CATERING FIXTURES,16/01/14,
070114F,PRESSURE COOLERS LTD==========,532633,89,8.00,OFFICE EQUIPMENT,16/01/14,
070114F,PRESSURE COOLERS LTD==========,532633,90,8.25,CATERING FIXTURES,16/01/14,
070114F,PRESSURE COOLERS LTD==========,532633,91,8.00,CATERING FIXTURES,16/01/14,
070114F,PRESSURE COOLERS LTD==========,532633,92,8.25,CATERING FIXTURES,16/01/14,
070114F,PRESSURE COOLERS LTD==========,532633,93,8.25,CATERING FIXTURES,16/01/14,
070114F,PRESSURE COOLERS LTD==========,532633,94,8.00,CATERING FIXTURES,16/01/14,
070114F,PRESSURE COOLERS LTD==========,532633,95,8.25,CATERING FIXTURES,16/01/14,
070114F,PRESSURE COOLERS LTD==========,532633,96,8.25,CATERING FIXTURES,16/01/14,
070114F,PRESSURE COOLERS LTD==========,532633,97,8.00,CATERING FIXTURES,16/01/14,
070114F,PRESSURE COOLERS LTD==========,532633,98,8.25,CATERING FIXTURES,16/01/14,
070114F,PRESSURE COOLERS LTD==========,532633,99,8.25,CATERING FIXTURES,16/01/14,
070114F,PRESSURE COOLERS LTD==========,532633,100,8.25,CATERING FIXTURES,16/01/14,
070114F,PRESSURE COOLERS LTD==========,532633,101,8.25,CATERING FIXTURES,16/01/14,
070114F,PRESSURE COOLERS LTD==========,532633,102,8.25,CATERING FIXTURES,16/01/14,
070114F,PRESSURE COOLERS LTD==========,532633,103,8.25,CATERING FIXTURES,16/01/14,
070114F,PRESSURE COOLERS LTD==========,532633,104,8.25,CATERING FIXTURES,16/01/14,
070114F,PRESSURE COOLERS LTD==========,532633,105,8.00,CATERING FIXTURES,16/01/14,
070114F,PRESSURE COOLERS LTD==========,532633,106,8.25,CATERING FIXTURES,16/01/14,
070114F,PRESSURE COOLERS LTD==========,532633,107,8.25,CATERING FIXTURES,16/01/14,
070114F,PRESSURE COOLERS LTD==========,532633,108,8.25,CATERING FIXTURES,16/01/14,
070114F,PRESSURE COOLERS LTD==========,532633,109,8.00,CATERING FIXTURES,16/01/14,
070114F,PRESSURE COOLERS LTD==========,532633,110,8.00,CATERING FIXTURES,16/01/14,
070114F,PRESSURE COOLERS LTD==========,532633,111,8.25,CATERING FIXTURES,16/01/14,
070114F,PRESSURE COOLERS LTD==========,532633,112,8.25,CATERING FIXTURES,16/01/14,
070114F,PRESSURE COOLERS LTD==========,532633,113,8.00,CATERING FIXTURES,16/01/14,
070114F,PRESSURE COOLERS LTD==========,532633,114,8.25,CATERING FIXTURES,16/01/14,
070114F,PRESSURE COOLERS LTD==========,532633,115,8.25,RADIO,16/01/14,
070114F,PRESSURE COOLERS LTD==========,532633,116,8.25,CATERING FIXTURES,16/01/14,
070114F,PRESSURE COOLERS LTD==========,532633,117,8.25,CATERING FIXTURES,16/01/14,
070114F,PRESSURE COOLERS LTD==========,532633,118,8.25,CATERING FIXTURES,16/01/14,
070114F,PRESSURE COOLERS LTD==========,532633,119,8.00,CATERING FIXTURES,16/01/14,
070114F,PRESSURE COOLERS LTD==========,532633,120,8.25,CATERING FIXTURES,16/01/14,
070114F,PRESSURE COOLERS LTD==========,532633,121,8.25,CATERING FIXTURES,16/01/14,
070114F,PRESSURE COOLERS LTD==========,532633,122,8.25,CATERING FIXTURES,16/01/14,
070114F,PRESSURE COOLERS LTD==========,532633,123,8.25,CATERING FIXTURES,16/01/14,
070114F,PRESSURE COOLERS LTD==========,532633,124,8.25,CATERING FIXTURES,16/01/14,
070114F,PRESSURE COOLERS LTD==========,532633,125,8.25,CATERING FIXTURES,16/01/14,
070114F,PRESSURE COOLERS LTD==========,532633,126,8.25,CATERING FIXTURES,16/01/14,
070114F,PRESSURE COOLERS LTD==========,532633,127,8.00,CATERING EQUIPMENT,16/01/14,
070114F,PRESSURE COOLERS LTD==========,532633,128,8.25,CATERING FIXTURES,16/01/14,
070114F,PRESSURE COOLERS LTD==========,532633,129,8.25,CATERING FIXTURES,16/01/14,
070114F,PRESSURE COOLERS LTD==========,532633,130,8.25,CATERING FIXTURES,16/01/14,
070114F,PRESSURE COOLERS LTD==========,532633,131,8.25,CATERING FIXTURES,16/01/14,
070114F,PRESSURE COOLERS LTD==========,532633,132,8.25,STATIONERY CONSUMABLES,16/01/14,
070114F,PRESSURE COOLERS LTD==========,532633,133,8.25,CATERING FIXTURES,16/01/14,
070114F,PRESSURE COOLERS LTD==========,532633,134,8.25,CATERING FIXTURES,16/01/14,
070114F,PRESSURE COOLERS LTD==========,532633,135,8.00,CATERING FIXTURES,16/01/14,
070114F,PRESSURE COOLERS LTD==========,532633,136,8.25,CATERING FIXTURES,16/01/14,
070114F,PRESSURE COOLERS LTD==========,532633,137,8.25,CATERING FIXTURES,16/01/14,
070114F,PRESSURE COOLERS LTD==========,532633,138,8.25,CATERING FIXTURES,16/01/14,
070114F,PRESSURE COOLERS LTD==========,532633,139,8.25,CATERING FIXTURES,16/01/14,
070114F,PRESSURE COOLERS LTD==========,532633,140,8.25,CATERING FIXTURES,16/01/14,
070114F,PRESSURE COOLERS LTD==========,532633,141,8.25,CATERING FIXTURES,16/01/14,
070114F,PRESSURE COOLERS LTD==========,532633,142,8.00,CATERING FIXTURES,16/01/14,
070114F,PRESSURE COOLERS LTD==========,532633,143,8.00,CATERING FIXTURES,16/01/14,
070114F,PRESSURE COOLERS LTD==========,532633,144,8.25,CATERING FIXTURES,16/01/14,
070114F,PRESSURE COOLERS LTD==========,532633,145,8.25,CATERING FIXTURES,16/01/14,
070114F,PRESSURE COOLERS LTD==========,532633,146,8.00,CATERING FIXTURES,16/01/14,
070114F,PRESSURE COOLERS LTD==========,532633,147,8.25,CATERING FIXTURES,16/01/14,
070114F,PRESSURE COOLERS LTD==========,532633,148,8.00,CATERING FIXTURES,16/01/14,
070114F,PRESSURE COOLERS LTD==========,532633,149,8.00,CATERING FIXTURES,16/01/14,
070114F,PRESSURE COOLERS LTD==========,532633,150,8.25,CATERING FIXTURES,16/01/14,
070114F,PRESSURE COOLERS LTD==========,532633,151,8.25,CATERING FIXTURES,16/01/14,
070114F,PRESSURE COOLERS LTD==========,532633,152,8.25,CATERING FIXTURES,16/01/14,
070114F,PRESSURE COOLERS LTD==========,532633,153,8.25,CATERING FIXTURES,16/01/14,
070114F,PRESSURE COOLERS LTD==========,532633,154,8.25,CATERING FIXTURES,16/01/14,
070114F,PRESSURE COOLERS LTD==========,532633,155,8.25,CATERING FIXTURES,16/01/14,
070114F,PRESSURE COOLERS LTD==========,532633,156,8.00,CATERING FIXTURES,16/01/14,
070114F,PRESSURE COOLERS LTD==========,532633,157,8.25,CATERING FIXTURES,16/01/14,
070114F,PRESSURE COOLERS LTD==========,532633,158,8.25,OPERATIONAL EQUIP-PURCHASE,16/01/14,
070114F,PRESSURE COOLERS LTD==========,532633,159,8.25,OPERATIONAL DIRECT STANDBY,16/01/14,
100114C,GAS & AIR SERVICES (UK)=======,6290,1,"1,321.42",REPAIR & MAINTENANCE,16/01/14,"1,321.42"
090114C,MOORE STEPHENS CONSULTING LTD=,673374,1,"39,175.40",MAINTENANCE & SUPPORT,16/01/14,"39,175.40"
080114C,SWEETT  UK LTD,7032381,1,"2,981.87",DEVELOPMENT  EXPENSES-CONTRACT,16/01/14,"2,981.87"
080114C,SWEETT  UK LTD,7032642,1,"1,500.00",STRATEGIC (NON CYCLICAL),16/01/14,"1,500.00"
080114C,SWEETT  UK LTD,7032643,1,"1,800.00",STRATEGIC (NON CYCLICAL),16/01/14,"1,800.00"
080114C,SWEETT  UK LTD,7032728,1,"6,600.00",PROF FEES-MISCELLANEOUS,16/01/14,"6,600.00"
080114C,SWEETT  UK LTD,7032732,1,750.00,STRATEGIC (NON CYCLICAL),16/01/14,750.00
080114C,SWEETT  UK LTD,7032733,1,750.00,STRATEGIC (NON CYCLICAL),16/01/14,750.00
080114G,BOON EDAM LTD,715411,1,391.50,STRATEGIC (CYCLICAL),16/01/14,391.50
100114C,NEXUS PROPERTY SERVICES,80014,1,"2,380.55",GENERAL,16/01/14,"2,380.55"
130114C,A.R.C.S. ENVIRONMENTAL LTD====,8067,1,730.00,ASBESTOS,16/01/14,730.00
130114C,A.R.C.S. ENVIRONMENTAL LTD====,8138,1,650.00,ASBESTOS,16/01/14,650.00
130114C,A.R.C.S. ENVIRONMENTAL LTD====,8139,1,150.00,ASBESTOS,16/01/14,950.00
130114C,A.R.C.S. ENVIRONMENTAL LTD====,8139,2,500.00,ASBESTOS,16/01/14,
130114C,A.R.C.S. ENVIRONMENTAL LTD====,8139,3,300.00,ASBESTOS,16/01/14,
140518,MISS SARAH SIMCOCK,88616A,1,325.00,COUNSELS FEES,16/01/14,325.00
100114C,DRAEGER SAFETY UK LIMITED=====,90433759,1,"1,325.40",PROTECTIVE EQUIPT - PARTS,16/01/14,"2,125.40"
100114C,DRAEGER SAFETY UK LIMITED=====,90433759,2,800.00,PROTECTIVE EQUIPT - PARTS,16/01/14,
100114C,DRAEGER SAFETY UK LIMITED=====,90433881,1,318.25,PROTECTIVE EQUIPT - PARTS,16/01/14,318.25
100114C,DRAEGER SAFETY UK LIMITED=====,90433927,1,445.55,PROTECTIVE EQUIPT - PARTS,16/01/14,445.55
140516,THAMES WATER UTILITIES LTD====,98709-62314\,1,394.89,WATER & SEWERAGE RATES,16/01/14,394.89
130114C,HENRY STEWART CONF STUDIES LLP,CS131220/2,1,424.15,PROFESSIONAL DEVELOPMENT,16/01/14,424.15
130114C,E&S B DAVIS LTD,DAV/47015,1,360.00,OPERATIONAL EQUIP-PURCHASE,16/01/14,360.00
130114C,E&S B DAVIS LTD,DAV/47151,1,540.00,OPERATIONAL EQUIP-PURCHASE,16/01/14,540.00
130114C,E&S B DAVIS LTD,DAV/47382,1,320.00,OPERATIONAL EQUIP-PURCHASE,16/01/14,320.00
090114C,NCC SERVICES LTD==============,E854650,1,795.00,MAINTENANCE & SUPPORT,16/01/14,795.00
130114G,HALL FUELS,I06547994,1,"3,313.80",FUEL,16/01/14,"3,313.80"
100114G,HANDSET SOLUTIONS LTD,INV11982,1,264.00,TELECOMMUNICATIONS,16/01/14,385.25
100114G,HANDSET SOLUTIONS LTD,INV11982,2,31.80,TELECOMMUNICATIONS,16/01/14,
100114G,HANDSET SOLUTIONS LTD,INV11982,3,57.00,TELECOMMUNICATIONS,16/01/14,
100114G,HANDSET SOLUTIONS LTD,INV11982,4,24.50,REPAIR & MAINTENANCE,16/01/14,
100114G,HANDSET SOLUTIONS LTD,INV11982,5,7.95,TELECOMMUNICATIONS,16/01/14,
090114C,PEGASUS COURIERS - LONDON=====,PL014659,1,340.81,POSTAL SERVICES,16/01/14,340.81
080114G,HUNTER LODGE==================,S-015140,1,550.00,ADVERTISING,16/01/14,550.00
080114G,HUNTER LODGE==================,S-015141,1,"2,100.00",ADVERTISING,16/01/14,"2,100.00"
080114G,HUNTER LODGE==================,S-015142,1,"6,800.00",ADVERTISING,16/01/14,"6,800.00"
130114C,SECURITAS SECURITY SERVICES LT,S-SIN0197700,1,"13,426.56",GENERAL,16/01/14,"13,426.56"
130114C,SECURITAS SECURITY SERVICES LT,S-SIN0197702,1,"8,631.36",GENERAL,16/01/14,"8,631.36"
130114C,SECURITAS SECURITY SERVICES LT,S-SIN0197703,1,"10,069.92",GENERAL,16/01/14,"10,069.92"
130114C,SECURITAS SECURITY SERVICES LT,S-SIN0197704,1,269.70,GENERAL,16/01/14,269.70
130114C,SECURITAS SECURITY SERVICES LT,S-SIN0197705,1,"126,593.28",GENERAL,16/01/14,"126,593.28"
130114C,SECURITAS SECURITY SERVICES LT,S-SIN0197706,1,"141,862.57",GENERAL,16/01/14,"141,862.57"
100114G,SECURITAS SECURITY SERVICES LT,S-SIN0200645,1,"247,691.63",GENERAL,16/01/14,"763,451.13"
100114G,SECURITAS SECURITY SERVICES LT,S-SIN0200645,2,"276,228.89",GENERAL,16/01/14,
100114G,SECURITAS SECURITY SERVICES LT,S-SIN0200645,3,"239,530.61",GENERAL,16/01/14,
130114G,HUNTER LODGE==================,SI-05389,1,900.00,ADVERTISING,16/01/14,900.00
100114G,GROUND CONTROL UMITED,SIN028339,1,280.00,GROUNDS MAINTENANCE,16/01/14,280.00
090114C,GROUND CONTROL UMITED,SIN028340,1,515.00,GROUNDS MAINTENANCE,16/01/14,515.00
090114C,GROUND CONTROL UMITED,SIN028341,1,260.00,GROUNDS MAINTENANCE,16/01/14,260.00
090114C,GROUND CONTROL UMITED,SIN028342,1,340.00,GROUNDS MAINTENANCE,16/01/14,340.00
090114C,GROUND CONTROL UMITED,SIN028343,1,340.00,GROUNDS MAINTENANCE,16/01/14,340.00
090114C,GROUND CONTROL UMITED,SIN028715,1,13.00,GROUNDS MAINTENANCE,16/01/14,"1,047.10"
090114C,GROUND CONTROL UMITED,SIN028715,2,13.00,GROUNDS MAINTENANCE,16/01/14,
090114C,GROUND CONTROL UMITED,SIN028715,3,57.34,GROUNDS MAINTENANCE,16/01/14,
090114C,GROUND CONTROL UMITED,SIN028715,4,13.00,GROUNDS MAINTENANCE,16/01/14,
090114C,GROUND CONTROL UMITED,SIN028715,5,41.58,GROUNDS MAINTENANCE,16/01/14,
090114C,GROUND CONTROL UMITED,SIN028715,6,41.58,GROUNDS MAINTENANCE,16/01/14,
090114C,GROUND CONTROL UMITED,SIN028715,7,13.00,GROUNDS MAINTENANCE,16/01/14,
090114C,GROUND CONTROL UMITED,SIN028715,8,13.00,GROUNDS MAINTENANCE,16/01/14,
090114C,GROUND CONTROL UMITED,SIN028715,9,53.87,GROUNDS MAINTENANCE,16/01/14,
090114C,GROUND CONTROL UMITED,SIN028715,10,13.00,GROUNDS MAINTENANCE,16/01/14,
090114C,GROUND CONTROL UMITED,SIN028715,11,13.00,GROUNDS MAINTENANCE,16/01/14,
090114C,GROUND CONTROL UMITED,SIN028715,12,60.38,GROUNDS MAINTENANCE,16/01/14,
090114C,GROUND CONTROL UMITED,SIN028715,13,45.21,GROUNDS MAINTENANCE,16/01/14,
090114C,GROUND CONTROL UMITED,SIN028715,14,49.12,GROUNDS MAINTENANCE,16/01/14,
090114C,GROUND CONTROL UMITED,SIN028715,15,13.00,GROUNDS MAINTENANCE,16/01/14,
090114C,GROUND CONTROL UMITED,SIN028715,16,13.00,GROUNDS MAINTENANCE,16/01/14,
090114C,GROUND CONTROL UMITED,SIN028715,17,13.00,GROUNDS MAINTENANCE,16/01/14,
090114C,GROUND CONTROL UMITED,SIN028715,18,49.12,GROUNDS MAINTENANCE,16/01/14,
090114C,GROUND CONTROL UMITED,SIN028715,19,15.00,GROUNDS MAINTENANCE,16/01/14,
090114C,GROUND CONTROL UMITED,SIN028715,20,13.00,GROUNDS MAINTENANCE,16/01/14,
090114C,GROUND CONTROL UMITED,SIN028715,21,13.00,GROUNDS MAINTENANCE,16/01/14,
090114C,GROUND CONTROL UMITED,SIN028715,22,50.41,GROUNDS MAINTENANCE,16/01/14,
090114C,GROUND CONTROL UMITED,SIN028715,23,13.00,GROUNDS MAINTENANCE,16/01/14,
090114C,GROUND CONTROL UMITED,SIN028715,24,13.00,GROUNDS MAINTENANCE,16/01/14,
090114C,GROUND CONTROL UMITED,SIN028715,25,13.00,GROUNDS MAINTENANCE,16/01/14,
090114C,GROUND CONTROL UMITED,SIN028715,26,49.12,GROUNDS MAINTENANCE,16/01/14,
090114C,GROUND CONTROL UMITED,SIN028715,27,45.21,GROUNDS MAINTENANCE,16/01/14,
090114C,GROUND CONTROL UMITED,SIN028715,28,13.00,GROUNDS MAINTENANCE,16/01/14,
090114C,GROUND CONTROL UMITED,SIN028715,29,45.21,GROUNDS MAINTENANCE,16/01/14,
090114C,GROUND CONTROL UMITED,SIN028715,30,15.00,GROUNDS MAINTENANCE,16/01/14,
090114C,GROUND CONTROL UMITED,SIN028715,31,49.12,GROUNDS MAINTENANCE,16/01/14,
090114C,GROUND CONTROL UMITED,SIN028715,32,49.12,GROUNDS MAINTENANCE,16/01/14,
090114C,GROUND CONTROL UMITED,SIN028715,33,49.12,GROUNDS MAINTENANCE,16/01/14,
090114C,GROUND CONTROL UMITED,SIN028715,34,13.00,GROUNDS MAINTENANCE,16/01/14,
090114C,GROUND CONTROL UMITED,SIN028715,35,47.59,GROUNDS MAINTENANCE,16/01/14,
090114C,GROUND CONTROL UMITED,SIN028715,36,13.00,GROUNDS MAINTENANCE,16/01/14,
090114C,GROUND CONTROL UMITED,SIN028716,1,79.85,GROUNDS MAINTENANCE,16/01/14,831.30
090114C,GROUND CONTROL UMITED,SIN028716,2,13.00,GROUNDS MAINTENANCE,16/01/14,
090114C,GROUND CONTROL UMITED,SIN028716,3,13.00,GROUNDS MAINTENANCE,16/01/14,
090114C,GROUND CONTROL UMITED,SIN028716,4,49.46,GROUNDS MAINTENANCE,16/01/14,
090114C,GROUND CONTROL UMITED,SIN028716,5,9.88,GROUNDS MAINTENANCE,16/01/14,
090114C,GROUND CONTROL UMITED,SIN028716,6,34.55,GROUNDS MAINTENANCE,16/01/14,
090114C,GROUND CONTROL UMITED,SIN028716,7,14.29,GROUNDS MAINTENANCE,16/01/14,
090114C,GROUND CONTROL UMITED,SIN028716,8,14.29,GROUNDS MAINTENANCE,16/01/14,
090114C,GROUND CONTROL UMITED,SIN028716,9,41.30,GROUNDS MAINTENANCE,16/01/14,
090114C,GROUND CONTROL UMITED,SIN028716,10,41.30,GROUNDS MAINTENANCE,16/01/14,
090114C,GROUND CONTROL UMITED,SIN028716,11,13.00,GROUNDS MAINTENANCE,16/01/14,
090114C,GROUND CONTROL UMITED,SIN028716,12,13.00,GROUNDS MAINTENANCE,16/01/14,
090114C,GROUND CONTROL UMITED,SIN028716,13,45.21,GROUNDS MAINTENANCE,16/01/14,
090114C,GROUND CONTROL UMITED,SIN028716,14,41.30,GROUNDS MAINTENANCE,16/01/14,
090114C,GROUND CONTROL UMITED,SIN028716,15,13.00,GROUNDS MAINTENANCE,16/01/14,
090114C,GROUND CONTROL UMITED,SIN028716,16,13.00,GROUNDS MAINTENANCE,16/01/14,
090114C,GROUND CONTROL UMITED,SIN028716,17,13.00,GROUNDS MAINTENANCE,16/01/14,
090114C,GROUND CONTROL UMITED,SIN028716,18,13.00,GROUNDS MAINTENANCE,16/01/14,
090114C,GROUND CONTROL UMITED,SIN028716,19,13.00,GROUNDS MAINTENANCE,16/01/14,
090114C,GROUND CONTROL UMITED,SIN028716,20,13.00,GROUNDS MAINTENANCE,16/01/14,
090114C,GROUND CONTROL UMITED,SIN028716,22,13.00,GROUNDS MAINTENANCE,16/01/14,
090114C,GROUND CONTROL UMITED,SIN028716,23,64.69,GROUNDS MAINTENANCE,16/01/14,
090114C,GROUND CONTROL UMITED,SIN028716,24,13.00,GROUNDS MAINTENANCE,16/01/14,
090114C,GROUND CONTROL UMITED,SIN028716,25,13.00,GROUNDS MAINTENANCE,16/01/14,
090114C,GROUND CONTROL UMITED,SIN028716,26,13.00,GROUNDS MAINTENANCE,16/01/14,
090114C,GROUND CONTROL UMITED,SIN028716,27,34.55,GROUNDS MAINTENANCE,16/01/14,
090114C,GROUND CONTROL UMITED,SIN028716,28,13.00,GROUNDS MAINTENANCE,16/01/14,
090114C,GROUND CONTROL UMITED,SIN028716,29,34.55,GROUNDS MAINTENANCE,16/01/14,
090114C,GROUND CONTROL UMITED,SIN028716,30,38.46,GROUNDS MAINTENANCE,16/01/14,
090114C,GROUND CONTROL UMITED,SIN028716,31,38.46,GROUNDS MAINTENANCE,16/01/14,
090114C,GROUND CONTROL UMITED,SIN028716,32,13.00,GROUNDS MAINTENANCE,16/01/14,
090114C,GROUND CONTROL UMITED,SIN028716,33,13.00,GROUNDS MAINTENANCE,16/01/14,
090114C,GROUND CONTROL UMITED,SIN028716,34,13.00,GROUNDS MAINTENANCE,16/01/14,
090114C,GROUND CONTROL UMITED,SIN028716,35,6.50,GROUNDS MAINTENANCE,16/01/14,
090114C,GROUND CONTROL UMITED,SIN028716,36,8.66,GROUNDS MAINTENANCE,16/01/14,
090114C,FAST CORPORATE SERVICES LTD===,SIN204145,1,"2,180.00",CELLULAR TELEPHONES,16/01/14,"2,180.00"
100114C,BRITISH TELECOM===============,VP71178070M19801,1,"2,120.53",CALL CHARGES,16/01/14,"92,343.29"
100114C,BRITISH TELECOM===============,VP71178070M19801,2,"90,222.76",TELECOMMUNICATIONS,16/01/14,
090114C,SPEAKERS TRUST,WEB/003626,1,"1,287.50",GENERAL,16/01/14,"1,287.50"
150114C,GEORGE JONES & SON LTD========,036711,1,"23,030.83",STRATEGIC (NON CYCLICAL),20/01/14,"23,030.83"
140519,THAMES WATER UTILITIES LTD====,04230-30577A,1,790.42,WATER & SEWERAGE RATES,20/01/14,790.42
140519,THAMES WATER UTILITIES LTD====,0770723316K,1,561.02,WATER & SEWERAGE RATES,20/01/14,561.02
140114C,*SPRUE SAFETY PRODUCTS LTD====,1055696,1,988.80,FIRE DETECTORS,20/01/14,988.80
150114C,*SPRUE SAFETY PRODUCTS LTD====,1055853,1,"1,359.60",FIRE DETECTORS,20/01/14,"1,359.60"
140114E,*SPRUE SAFETY PRODUCTS LTD====,1055854,1,"1,359.60",FIRE DETECTORS,20/01/14,"1,359.60"
140114E,*SPRUE SAFETY PRODUCTS LTD====,1055856,1,"1,359.60",FIRE DETECTORS,20/01/14,"1,359.60"
140114E,*SPRUE SAFETY PRODUCTS LTD====,1055859,1,"2,966.40",FIRE DETECTORS,20/01/14,"2,966.40"
140114E,*SPRUE SAFETY PRODUCTS LTD====,1055861,1,"2,719.20",FIRE DETECTORS,20/01/14,"2,719.20"
800028195,*JAMES HUNTER (OUTFITTERS) LTD,107406,1,293.13,CLOTHING,20/01/14,293.13
140114E,VISTA LANDSCAPE MANAGEMENT LTD,119185,1,142.31,GROUNDS MAINTENANCE,20/01/14,"2,999.19"
140114E,VISTA LANDSCAPE MANAGEMENT LTD,119185,2,24.77,GROUNDS MAINTENANCE,20/01/14,
140114E,VISTA LANDSCAPE MANAGEMENT LTD,119185,3,27.29,GROUNDS MAINTENANCE,20/01/14,
140114E,VISTA LANDSCAPE MANAGEMENT LTD,119185,4,30.32,GROUNDS MAINTENANCE,20/01/14,
140114E,VISTA LANDSCAPE MANAGEMENT LTD,119185,5,111.28,GROUNDS MAINTENANCE,20/01/14,
140114E,VISTA LANDSCAPE MANAGEMENT LTD,119185,6,23.48,GROUNDS MAINTENANCE,20/01/14,
140114E,VISTA LANDSCAPE MANAGEMENT LTD,119185,7,31.20,GROUNDS MAINTENANCE,20/01/14,
140114E,VISTA LANDSCAPE MANAGEMENT LTD,119185,8,24.52,GROUNDS MAINTENANCE,20/01/14,
140114E,VISTA LANDSCAPE MANAGEMENT LTD,119185,9,21.11,GROUNDS MAINTENANCE,20/01/14,
140114E,VISTA LANDSCAPE MANAGEMENT LTD,119185,10,21.20,GROUNDS MAINTENANCE,20/01/14,
140114E,VISTA LANDSCAPE MANAGEMENT LTD,119185,11,24.74,GROUNDS MAINTENANCE,20/01/14,
140114E,VISTA LANDSCAPE MANAGEMENT LTD,119185,12,35.29,GROUNDS MAINTENANCE,20/01/14,
140114E,VISTA LANDSCAPE MANAGEMENT LTD,119185,13,122.19,GROUNDS MAINTENANCE,20/01/14,
140114E,VISTA LANDSCAPE MANAGEMENT LTD,119185,14,20.52,GROUNDS MAINTENANCE,20/01/14,
140114E,VISTA LANDSCAPE MANAGEMENT LTD,119185,15,92.06,GROUNDS MAINTENANCE,20/01/14,
140114E,VISTA LANDSCAPE MANAGEMENT LTD,119185,16,27.21,GROUNDS MAINTENANCE,20/01/14,
140114E,VISTA LANDSCAPE MANAGEMENT LTD,119185,17,23.91,GROUNDS MAINTENANCE,20/01/14,
140114E,VISTA LANDSCAPE MANAGEMENT LTD,119185,18,139.80,GROUNDS MAINTENANCE,20/01/14,
140114E,VISTA LANDSCAPE MANAGEMENT LTD,119185,19,22.33,GROUNDS MAINTENANCE,20/01/14,
140114E,VISTA LANDSCAPE MANAGEMENT LTD,119185,20,23.87,GROUNDS MAINTENANCE,20/01/14,
140114E,VISTA LANDSCAPE MANAGEMENT LTD,119185,21,17.53,GROUNDS MAINTENANCE,20/01/14,
140114E,VISTA LANDSCAPE MANAGEMENT LTD,119185,22,23.00,GROUNDS MAINTENANCE,20/01/14,
140114E,VISTA LANDSCAPE MANAGEMENT LTD,119185,23,23.85,GROUNDS MAINTENANCE,20/01/14,
140114E,VISTA LANDSCAPE MANAGEMENT LTD,119185,24,27.55,GROUNDS MAINTENANCE,20/01/14,
140114E,VISTA LANDSCAPE MANAGEMENT LTD,119185,26,66.27,GROUNDS MAINTENANCE,20/01/14,
140114E,VISTA LANDSCAPE MANAGEMENT LTD,119185,27,21.41,GROUNDS MAINTENANCE,20/01/14,
140114E,VISTA LANDSCAPE MANAGEMENT LTD,119185,28,21.28,GROUNDS MAINTENANCE,20/01/14,
140114E,VISTA LANDSCAPE MANAGEMENT LTD,119185,29,19.18,GROUNDS MAINTENANCE,20/01/14,
140114E,VISTA LANDSCAPE MANAGEMENT LTD,119185,30,89.20,GROUNDS MAINTENANCE,20/01/14,
140114E,VISTA LANDSCAPE MANAGEMENT LTD,119185,31,94.10,GROUNDS MAINTENANCE,20/01/14,
140114E,VISTA LANDSCAPE MANAGEMENT LTD,119185,32,22.58,GROUNDS MAINTENANCE,20/01/14,
140114E,VISTA LANDSCAPE MANAGEMENT LTD,119185,33,278.31,GROUNDS MAINTENANCE,20/01/14,
140114E,VISTA LANDSCAPE MANAGEMENT LTD,119185,34,22.07,GROUNDS MAINTENANCE,20/01/14,
140114E,VISTA LANDSCAPE MANAGEMENT LTD,119185,35,71.29,GROUNDS MAINTENANCE,20/01/14,
140114E,VISTA LANDSCAPE MANAGEMENT LTD,119185,36,20.59,GROUNDS MAINTENANCE,20/01/14,
140114E,VISTA LANDSCAPE MANAGEMENT LTD,119185,37,22.08,GROUNDS MAINTENANCE,20/01/14,
140114E,VISTA LANDSCAPE MANAGEMENT LTD,119185,38,21.40,GROUNDS MAINTENANCE,20/01/14,
140114E,VISTA LANDSCAPE MANAGEMENT LTD,119185,39,88.90,GROUNDS MAINTENANCE,20/01/14,
140114E,VISTA LANDSCAPE MANAGEMENT LTD,119185,40,130.36,GROUNDS MAINTENANCE,20/01/14,
140114E,VISTA LANDSCAPE MANAGEMENT LTD,119185,41,19.12,GROUNDS MAINTENANCE,20/01/14,
140114E,VISTA LANDSCAPE MANAGEMENT LTD,119185,42,749.82,GROUNDS MAINTENANCE,20/01/14,
140114E,VISTA LANDSCAPE MANAGEMENT LTD,119185,43,70.24,GROUNDS MAINTENANCE,20/01/14,
140114E,VISTA LANDSCAPE MANAGEMENT LTD,119185,44,62.34,GROUNDS MAINTENANCE,20/01/14,
140114E,VISTA LANDSCAPE MANAGEMENT LTD,119185,45,27.32,GROUNDS MAINTENANCE,20/01/14,
080114G,SAFEGUARD PEST CON. & ENV.LTD,121950,1,460.00,PEST CONTROL,20/01/14,460.00
150114C,SAM TARLING CONSULTANCY LTD,13-078,1,600.00,GENERAL,20/01/14,600.00
140114C,MANDO GROUP LTD,13416,1,"8,077.50",PROF FEES-SOFTWARE CONSULTANTS,20/01/14,"8,077.50"
150114C,FIRSTFIRE LTD=================,13442,1,108.00,CLOTHING,20/01/14,324.00
150114C,FIRSTFIRE LTD=================,13442,2,108.00,CLOTHING,20/01/14,
150114C,FIRSTFIRE LTD=================,13442,3,108.00,CLOTHING,20/01/14,
140114C,BRITISH TELECOMMUNICATIONS PLC,148745,1,265.00,TELECOMMUNICATIONS,20/01/14,"16,651.54"
140114C,BRITISH TELECOMMUNICATIONS PLC,148745,2,"2,800.00",TELECOMMUNICATIONS,20/01/14,
140114C,BRITISH TELECOMMUNICATIONS PLC,148745,3,"13,586.54",TELECOMMUNICATIONS,20/01/14,
140519,THAMES WATER UTILITIES LTD====,1616806584K,1,698.85,WATER & SEWERAGE RATES,20/01/14,698.85
140114C,IRON MOUNTAIN (UK) LTD========,16181460,1,"2,848.91",MAINTENANCE & SUPPORT,20/01/14,"2,848.91"
140114C,DRON & WRIGHT=================,16818,1,265.50,PROFESSIONAL SERVICES,20/01/14,"27,783.04"
140114C,DRON & WRIGHT=================,16818,2,"4,263.91",PROFESSIONAL SERVICES,20/01/14,
140114C,DRON & WRIGHT=================,16818,3,157.50,PROFESSIONAL SERVICES,20/01/14,
140114C,DRON & WRIGHT=================,16818,4,765.00,PROFESSIONAL SERVICES,20/01/14,
140114C,DRON & WRIGHT=================,16818,5,"1,428.50",PROFESSIONAL SERVICES,20/01/14,
140114C,DRON & WRIGHT=================,16818,6,"1,461.50",PROFESSIONAL SERVICES,20/01/14,
140114C,DRON & WRIGHT=================,16818,7,406.00,DISPOSAL COSTS-ESTATES AGENTS,20/01/14,
140114C,DRON & WRIGHT=================,16818,8,311.00,DISPOSAL COSTS-ESTATES AGENTS,20/01/14,
140114C,DRON & WRIGHT=================,16818,9,301.00,DISPOSAL COSTS-ESTATES AGENTS,20/01/14,
140114C,DRON & WRIGHT=================,16818,10,311.00,DISPOSAL COSTS-ESTATES AGENTS,20/01/14,
140114C,DRON & WRIGHT=================,16818,11,301.00,DISPOSAL COSTS-ESTATES AGENTS,20/01/14,
140114C,DRON & WRIGHT=================,16818,12,512.70,DISPOSAL COSTS-ESTATES AGENTS,20/01/14,
140114C,DRON & WRIGHT=================,16818,13,437.69,DISPOSAL COSTS-ESTATES AGENTS,20/01/14,
140114C,DRON & WRIGHT=================,16818,14,153.50,DISPOSAL COSTS-ESTATES AGENTS,20/01/14,
140114C,DRON & WRIGHT=================,16818,15,501.20,DISPOSAL COSTS-ESTATES AGENTS,20/01/14,
140114C,DRON & WRIGHT=================,16818,16,333.50,DISPOSAL COSTS-ESTATES AGENTS,20/01/14,
140114C,DRON & WRIGHT=================,16818,17,"5,385.47",PROFESSIONAL SERVICES,20/01/14,
140114C,DRON & WRIGHT=================,16818,18,"1,783.00",PROFESSIONAL SERVICES,20/01/14,
140114C,DRON & WRIGHT=================,16818,19,416.67,PROFESSIONAL SERVICES,20/01/14,
140114C,DRON & WRIGHT=================,16818,20,"4,479.30",DISPOSAL COSTS-ESTATES AGENTS,20/01/14,
140114C,DRON & WRIGHT=================,16818,21,"2,419.80",DISPOSAL COSTS-ESTATES AGENTS,20/01/14,
140114C,DRON & WRIGHT=================,16818,22,462.20,PROF FEES-MISCELLANEOUS,20/01/14,
140114C,DRON & WRIGHT=================,16818,23,714.20,PROF FEES-MISCELLANEOUS,20/01/14,
140114C,DRON & WRIGHT=================,16818,24,12.00,PROF FEES-MISCELLANEOUS,20/01/14,
140114C,DRON & WRIGHT=================,16818,25,40.40,PROF FEES-MISCELLANEOUS,20/01/14,
140114C,DRON & WRIGHT=================,16818,26,155.00,PROF FEES-MISCELLANEOUS,20/01/14,
140114C,DRON & WRIGHT=================,16818,27,4.50,PROF FEES-MISCELLANEOUS,20/01/14,
140114C,VIGILANCE PROPERTIES,1690,1,"7,500.00",PREMISES SECURITY,20/01/14,"7,500.00"
150114C,BRIGHT INTERACTIVE LTD========,179/0141/1,1,450.00,CONSULTANTS,20/01/14,450.00
080114G,GREATER LONDON AUTHORITY======,1800003701,1,"24,000.00",CONSULTANTS,20/01/14,"24,000.00"
140519,THAMES WATER UTILITIES LTD====,18966-01041M,1,732.17,WATER & SEWERAGE RATES,20/01/14,732.17
150114C,GRADIENT CONSULTANTS LLP======,1963,1,62.50,ASBESTOS,20/01/14,"8,507.50"
150114C,GRADIENT CONSULTANTS LLP======,1963,2,195.00,ASBESTOS,20/01/14,
150114C,GRADIENT CONSULTANTS LLP======,1963,3,97.50,ASBESTOS,20/01/14,
150114C,GRADIENT CONSULTANTS LLP======,1963,4,97.50,ASBESTOS,20/01/14,
150114C,GRADIENT CONSULTANTS LLP======,1963,5,290.00,ASBESTOS,20/01/14,
150114C,GRADIENT CONSULTANTS LLP======,1963,6,290.00,ASBESTOS,20/01/14,
150114C,GRADIENT CONSULTANTS LLP======,1963,7,97.50,ASBESTOS,20/01/14,
150114C,GRADIENT CONSULTANTS LLP======,1963,8,187.50,ASBESTOS,20/01/14,
150114C,GRADIENT CONSULTANTS LLP======,1963,9,97.50,ASBESTOS,20/01/14,
150114C,GRADIENT CONSULTANTS LLP======,1963,10,110.00,ASBESTOS,20/01/14,
150114C,GRADIENT CONSULTANTS LLP======,1963,11,55.00,ASBESTOS,20/01/14,
150114C,GRADIENT CONSULTANTS LLP======,1963,12,55.00,ASBESTOS,20/01/14,
150114C,GRADIENT CONSULTANTS LLP======,1963,13,420.00,ASBESTOS,20/01/14,
150114C,GRADIENT CONSULTANTS LLP======,1963,14,195.00,ASBESTOS,20/01/14,
150114C,GRADIENT CONSULTANTS LLP======,1963,15,125.00,ASBESTOS,20/01/14,
150114C,GRADIENT CONSULTANTS LLP======,1963,16,195.00,ASBESTOS,20/01/14,
150114C,GRADIENT CONSULTANTS LLP======,1963,17,290.00,ASBESTOS,20/01/14,
150114C,GRADIENT CONSULTANTS LLP======,1963,18,97.50,ASBESTOS,20/01/14,
150114C,GRADIENT CONSULTANTS LLP======,1963,19,97.50,ASBESTOS,20/01/14,
150114C,GRADIENT CONSULTANTS LLP======,1963,20,290.00,ASBESTOS,20/01/14,
150114C,GRADIENT CONSULTANTS LLP======,1963,21,245.00,ASBESTOS,20/01/14,
150114C,GRADIENT CONSULTANTS LLP======,1963,22,97.50,ASBESTOS,20/01/14,
150114C,GRADIENT CONSULTANTS LLP======,1963,23,97.50,ASBESTOS,20/01/14,
150114C,GRADIENT CONSULTANTS LLP======,1963,24,195.00,ASBESTOS,20/01/14,
150114C,GRADIENT CONSULTANTS LLP======,1963,25,245.00,ASBESTOS,20/01/14,
150114C,GRADIENT CONSULTANTS LLP======,1963,26,195.00,ASBESTOS,20/01/14,
150114C,GRADIENT CONSULTANTS LLP======,1963,27,290.00,ASBESTOS,20/01/14,
150114C,GRADIENT CONSULTANTS LLP======,1963,28,300.00,ASBESTOS,20/01/14,
150114C,GRADIENT CONSULTANTS LLP======,1963,29,290.00,ASBESTOS,20/01/14,
150114C,GRADIENT CONSULTANTS LLP======,1963,30,187.50,ASBESTOS,20/01/14,
150114C,GRADIENT CONSULTANTS LLP======,1963,31,290.00,ASBESTOS,20/01/14,
150114C,GRADIENT CONSULTANTS LLP======,1963,32,195.00,ASBESTOS,20/01/14,
150114C,GRADIENT CONSULTANTS LLP======,1963,33,97.50,ASBESTOS,20/01/14,
150114C,GRADIENT CONSULTANTS LLP======,1963,34,195.00,ASBESTOS,20/01/14,
150114C,GRADIENT CONSULTANTS LLP======,1963,35,187.50,ASBESTOS,20/01/14,
150114C,GRADIENT CONSULTANTS LLP======,1963,36,97.50,ASBESTOS,20/01/14,
150114C,GRADIENT CONSULTANTS LLP======,1963,37,300.00,ASBESTOS,20/01/14,
150114C,GRADIENT CONSULTANTS LLP======,1963,38,75.00,ASBESTOS,20/01/14,
150114C,GRADIENT CONSULTANTS LLP======,1963,39,80.00,ASBESTOS,20/01/14,
150114C,GRADIENT CONSULTANTS LLP======,1963,40,97.50,ASBESTOS,20/01/14,
150114C,GRADIENT CONSULTANTS LLP======,1963,41,97.50,ASBESTOS,20/01/14,
150114C,GRADIENT CONSULTANTS LLP======,1963,42,195.00,ASBESTOS,20/01/14,
150114C,GRADIENT CONSULTANTS LLP======,1963,43,97.50,ASBESTOS,20/01/14,
150114C,GRADIENT CONSULTANTS LLP======,1963,44,97.50,ASBESTOS,20/01/14,
150114C,GRADIENT CONSULTANTS LLP======,1963,45,290.00,ASBESTOS,20/01/14,
150114C,GRADIENT CONSULTANTS LLP======,1963,46,187.50,ASBESTOS,20/01/14,
150114C,GRADIENT CONSULTANTS LLP======,1963,47,122.50,ASBESTOS,20/01/14,
150114C,GRADIENT CONSULTANTS LLP======,1963,48,122.50,ASBESTOS,20/01/14,
150114C,GRADIENT CONSULTANTS LLP======,1963,49,195.00,ASBESTOS,20/01/14,
150114C,B NOKES CONTRACTS LTD,2028,1,558.00,STRATEGIC (NON CYCLICAL),20/01/14,558.00
150114C,B NOKES CONTRACTS LTD,2029,1,"1,110.00",STRATEGIC (NON CYCLICAL),20/01/14,"1,110.00"
150114C,B NOKES CONTRACTS LTD,2030,1,535.00,DEVELOPMENT  EXPENSES-CONTRACT,20/01/14,535.00
150114C,B NOKES CONTRACTS LTD,2032,1,290.50,STRATEGIC (NON CYCLICAL),20/01/14,290.50
150114C,B NOKES CONTRACTS LTD,2033,1,906.50,STRATEGIC (NON CYCLICAL),20/01/14,906.50
800027810,*OCS GROUP UK LTD,219099A,1,"3,144.92",CATERING,20/01/14,"3,144.92"
800027812,*OCS GROUP UK LTD,219099C,1,665.50,CATERING,20/01/14,665.50
800027813,*OCS GROUP UK LTD,220787A,1,"3,144.92",CATERING,20/01/14,"3,144.92"
800027815,*OCS GROUP UK LTD,220787C,1,665.50,CATERING,20/01/14,665.50
150114C,INFIGO LTD====================,22707,1,497.50,STATIONERY CONSUMABLES,20/01/14,497.50
090114C,VODAFONE LIMITED==============,229209,1,"1,015.00",TELECOMMUNICATIONS,20/01/14,"1,061.58"
090114C,VODAFONE LIMITED==============,229209,2,46.58,TELECOMMUNICATIONS,20/01/14,
800027945,ADECCO UK LIMITED=============,26653324,1,771.40,FRS STAFF AGENCY,20/01/14,771.40
800027946,ADECCO UK LIMITED=============,26653325,1,964.25,FRS STAFF AGENCY,20/01/14,964.25
800027947,ADECCO UK LIMITED=============,26653326,1,964.25,FRS STAFF AGENCY,20/01/14,964.25
800027948,ADECCO UK LIMITED=============,26653327,1,964.25,FRS STAFF AGENCY,20/01/14,964.25
800027949,ADECCO UK LIMITED=============,26653328,1,964.25,FRS STAFF AGENCY,20/01/14,964.25
800027950,ADECCO UK LIMITED=============,26653329,1,964.25,FRS STAFF AGENCY,20/01/14,964.25
800027951,ADECCO UK LIMITED=============,26653330,1,964.25,FRS STAFF AGENCY,20/01/14,964.25
140114C,EUROLOOS LTD,27026,1,"1,495.00",OPERATIONAL EQUIP-PURCHASE,20/01/14,"1,495.00"
150114C,LEVEL 3 COMMUNICATIONS UK,30748092/803777,1,"3,276.00",MAINTENANCE & SUPPORT,20/01/14,"90,528.72"
150114C,LEVEL 3 COMMUNICATIONS UK,30748092/803777,2,"1,596.33",MAINTENANCE & SUPPORT,20/01/14,
150114C,LEVEL 3 COMMUNICATIONS UK,30748092/803777,3,"26,520.00",MAINTENANCE & SUPPORT,20/01/14,
150114C,LEVEL 3 COMMUNICATIONS UK,30748092/803777,4,"2,262.39",MAINTENANCE & SUPPORT,20/01/14,
150114C,LEVEL 3 COMMUNICATIONS UK,30748092/803777,5,103.75,MAINTENANCE & SUPPORT,20/01/14,
150114C,LEVEL 3 COMMUNICATIONS UK,30748092/803777,6,"56,768.37",MAINTENANCE & SUPPORT,20/01/14,
150114C,LEVEL 3 COMMUNICATIONS UK,30748092/803777,7,0.01,MAINTENANCE & SUPPORT,20/01/14,
150114C,LEVEL 3 COMMUNICATIONS UK,30748092/803777,8,1.87,MAINTENANCE & SUPPORT,20/01/14,
140114E,MCGRATH BROS (WASTE CONTROL) L,311754,1,286.28,REFUSE COLLECTION,20/01/14,"19,028.06"
140114E,MCGRATH BROS (WASTE CONTROL) L,311754,2,131.16,REFUSE COLLECTION,20/01/14,
140114E,MCGRATH BROS (WASTE CONTROL) L,311754,3,243.72,REFUSE COLLECTION,20/01/14,
140114E,MCGRATH BROS (WASTE CONTROL) L,311754,4,90.08,REFUSE COLLECTION,20/01/14,
140114E,MCGRATH BROS (WASTE CONTROL) L,311754,5,131.16,REFUSE COLLECTION,20/01/14,
140114E,MCGRATH BROS (WASTE CONTROL) L,311754,6,74.00,REFUSE COLLECTION,20/01/14,
140114E,MCGRATH BROS (WASTE CONTROL) L,311754,7,159.60,REFUSE COLLECTION,20/01/14,
140114E,MCGRATH BROS (WASTE CONTROL) L,311754,8,163.32,REFUSE COLLECTION,20/01/14,
140114E,MCGRATH BROS (WASTE CONTROL) L,311754,9,119.40,REFUSE COLLECTION,20/01/14,
140114E,MCGRATH BROS (WASTE CONTROL) L,311754,10,90.08,REFUSE COLLECTION,20/01/14,
140114E,MCGRATH BROS (WASTE CONTROL) L,311754,11,94.51,REFUSE COLLECTION,20/01/14,
140114E,MCGRATH BROS (WASTE CONTROL) L,311754,12,126.67,REFUSE COLLECTION,20/01/14,
140114E,MCGRATH BROS (WASTE CONTROL) L,311754,13,171.36,REFUSE COLLECTION,20/01/14,
140114E,MCGRATH BROS (WASTE CONTROL) L,311754,14,302.36,REFUSE COLLECTION,20/01/14,
140114E,MCGRATH BROS (WASTE CONTROL) L,311754,15,139.20,REFUSE COLLECTION,20/01/14,
140114E,MCGRATH BROS (WASTE CONTROL) L,311754,16,302.36,REFUSE COLLECTION,20/01/14,
140114E,MCGRATH BROS (WASTE CONTROL) L,311754,17,82.04,REFUSE COLLECTION,20/01/14,
140114E,MCGRATH BROS (WASTE CONTROL) L,311754,18,302.36,REFUSE COLLECTION,20/01/14,
140114E,MCGRATH BROS (WASTE CONTROL) L,311754,19,302.36,REFUSE COLLECTION,20/01/14,
140114E,MCGRATH BROS (WASTE CONTROL) L,311754,20,374.72,REFUSE COLLECTION,20/01/14,
140114E,MCGRATH BROS (WASTE CONTROL) L,311754,21,164.03,REFUSE COLLECTION,20/01/14,
140114E,MCGRATH BROS (WASTE CONTROL) L,311754,22,102.55,REFUSE COLLECTION,20/01/14,
140114E,MCGRATH BROS (WASTE CONTROL) L,311754,23,102.55,REFUSE COLLECTION,20/01/14,
140114E,MCGRATH BROS (WASTE CONTROL) L,311754,24,94.51,REFUSE COLLECTION,20/01/14,
140114E,MCGRATH BROS (WASTE CONTROL) L,311754,25,102.55,REFUSE COLLECTION,20/01/14,
140114E,MCGRATH BROS (WASTE CONTROL) L,311754,26,131.16,REFUSE COLLECTION,20/01/14,
140114E,MCGRATH BROS (WASTE CONTROL) L,311754,27,90.08,REFUSE COLLECTION,20/01/14,
140114E,MCGRATH BROS (WASTE CONTROL) L,311754,28,302.36,REFUSE COLLECTION,20/01/14,
140114E,MCGRATH BROS (WASTE CONTROL) L,311754,29,223.38,REFUSE COLLECTION,20/01/14,
140114E,MCGRATH BROS (WASTE CONTROL) L,311754,30,90.08,REFUSE COLLECTION,20/01/14,
140114E,MCGRATH BROS (WASTE CONTROL) L,311754,31,119.40,REFUSE COLLECTION,20/01/14,
140114E,MCGRATH BROS (WASTE CONTROL) L,311754,32,297.22,REFUSE COLLECTION,20/01/14,
140114E,MCGRATH BROS (WASTE CONTROL) L,311754,33,139.20,REFUSE COLLECTION,20/01/14,
140114E,MCGRATH BROS (WASTE CONTROL) L,311754,34,111.36,REFUSE COLLECTION,20/01/14,
140114E,MCGRATH BROS (WASTE CONTROL) L,311754,35,159.60,REFUSE COLLECTION,20/01/14,
140114E,MCGRATH BROS (WASTE CONTROL) L,311754,36,111.36,REFUSE COLLECTION,20/01/14,
140114E,MCGRATH BROS (WASTE CONTROL) L,311754,37,163.32,REFUSE COLLECTION,20/01/14,
140114E,MCGRATH BROS (WASTE CONTROL) L,311754,38,130.28,REFUSE COLLECTION,20/01/14,
140114E,MCGRATH BROS (WASTE CONTROL) L,311754,39,82.04,REFUSE COLLECTION,20/01/14,
140114E,MCGRATH BROS (WASTE CONTROL) L,311754,40,221.96,REFUSE COLLECTION,20/01/14,
140114E,MCGRATH BROS (WASTE CONTROL) L,311754,41,221.96,REFUSE COLLECTION,20/01/14,
140114E,MCGRATH BROS (WASTE CONTROL) L,311754,42,111.36,REFUSE COLLECTION,20/01/14,
140114E,MCGRATH BROS (WASTE CONTROL) L,311754,43,94.51,REFUSE COLLECTION,20/01/14,
140114E,MCGRATH BROS (WASTE CONTROL) L,311754,44,90.08,REFUSE COLLECTION,20/01/14,
140114E,MCGRATH BROS (WASTE CONTROL) L,311754,45,286.28,REFUSE COLLECTION,20/01/14,
140114E,MCGRATH BROS (WASTE CONTROL) L,311754,46,202.16,REFUSE COLLECTION,20/01/14,
140114E,MCGRATH BROS (WASTE CONTROL) L,311754,47,119.40,REFUSE COLLECTION,20/01/14,
140114E,MCGRATH BROS (WASTE CONTROL) L,311754,48,82.04,REFUSE COLLECTION,20/01/14,
140114E,MCGRATH BROS (WASTE CONTROL) L,311754,49,82.04,REFUSE COLLECTION,20/01/14,
140114E,MCGRATH BROS (WASTE CONTROL) L,311754,50,139.20,REFUSE COLLECTION,20/01/14,
140114E,MCGRATH BROS (WASTE CONTROL) L,311754,51,302.36,REFUSE COLLECTION,20/01/14,
140114E,MCGRATH BROS (WASTE CONTROL) L,311754,52,102.55,REFUSE COLLECTION,20/01/14,
140114E,MCGRATH BROS (WASTE CONTROL) L,311754,53,82.04,REFUSE COLLECTION,20/01/14,
140114E,MCGRATH BROS (WASTE CONTROL) L,311754,54,139.20,REFUSE COLLECTION,20/01/14,
140114E,MCGRATH BROS (WASTE CONTROL) L,311754,55,82.04,REFUSE COLLECTION,20/01/14,
140114E,MCGRATH BROS (WASTE CONTROL) L,311754,56,126.67,REFUSE COLLECTION,20/01/14,
140114E,MCGRATH BROS (WASTE CONTROL) L,311754,57,102.55,REFUSE COLLECTION,20/01/14,
140114E,MCGRATH BROS (WASTE CONTROL) L,311754,58,179.40,REFUSE COLLECTION,20/01/14,
140114E,MCGRATH BROS (WASTE CONTROL) L,311754,59,90.08,REFUSE COLLECTION,20/01/14,
140114E,MCGRATH BROS (WASTE CONTROL) L,311754,60,297.22,REFUSE COLLECTION,20/01/14,
140114E,MCGRATH BROS (WASTE CONTROL) L,311754,61,111.36,REFUSE COLLECTION,20/01/14,
140114E,MCGRATH BROS (WASTE CONTROL) L,311754,62,139.20,REFUSE COLLECTION,20/01/14,
140114E,MCGRATH BROS (WASTE CONTROL) L,311754,63,102.55,REFUSE COLLECTION,20/01/14,
140114E,MCGRATH BROS (WASTE CONTROL) L,311754,64,302.36,REFUSE COLLECTION,20/01/14,
140114E,MCGRATH BROS (WASTE CONTROL) L,311754,65,94.51,REFUSE COLLECTION,20/01/14,
140114E,MCGRATH BROS (WASTE CONTROL) L,311754,66,297.22,REFUSE COLLECTION,20/01/14,
140114E,MCGRATH BROS (WASTE CONTROL) L,311754,67,94.51,REFUSE COLLECTION,20/01/14,
140114E,MCGRATH BROS (WASTE CONTROL) L,311754,68,131.16,REFUSE COLLECTION,20/01/14,
140114E,MCGRATH BROS (WASTE CONTROL) L,311754,69,139.20,REFUSE COLLECTION,20/01/14,
140114E,MCGRATH BROS (WASTE CONTROL) L,311754,70,111.36,REFUSE COLLECTION,20/01/14,
140114E,MCGRATH BROS (WASTE CONTROL) L,311754,71,90.08,REFUSE COLLECTION,20/01/14,
140114E,MCGRATH BROS (WASTE CONTROL) L,311754,72,328.06,REFUSE COLLECTION,20/01/14,
140114E,MCGRATH BROS (WASTE CONTROL) L,311754,73,90.08,REFUSE COLLECTION,20/01/14,
140114E,MCGRATH BROS (WASTE CONTROL) L,311754,74,139.20,REFUSE COLLECTION,20/01/14,
140114E,MCGRATH BROS (WASTE CONTROL) L,311754,75,119.40,REFUSE COLLECTION,20/01/14,
140114E,MCGRATH BROS (WASTE CONTROL) L,311754,76,114.20,REFUSE COLLECTION,20/01/14,
140114E,MCGRATH BROS (WASTE CONTROL) L,311754,77,94.51,REFUSE COLLECTION,20/01/14,
140114E,MCGRATH BROS (WASTE CONTROL) L,311754,78,94.51,REFUSE COLLECTION,20/01/14,
140114E,MCGRATH BROS (WASTE CONTROL) L,311754,79,94.51,REFUSE COLLECTION,20/01/14,
140114E,MCGRATH BROS (WASTE CONTROL) L,311754,80,82.04,REFUSE COLLECTION,20/01/14,
140114E,MCGRATH BROS (WASTE CONTROL) L,311754,81,302.36,REFUSE COLLECTION,20/01/14,
140114E,MCGRATH BROS (WASTE CONTROL) L,311754,82,302.36,REFUSE COLLECTION,20/01/14,
140114E,MCGRATH BROS (WASTE CONTROL) L,311754,83,119.40,REFUSE COLLECTION,20/01/14,
140114E,MCGRATH BROS (WASTE CONTROL) L,311754,84,94.51,REFUSE COLLECTION,20/01/14,
140114E,MCGRATH BROS (WASTE CONTROL) L,311754,85,142.75,REFUSE COLLECTION,20/01/14,
140114E,MCGRATH BROS (WASTE CONTROL) L,311754,86,111.36,REFUSE COLLECTION,20/01/14,
140114E,MCGRATH BROS (WASTE CONTROL) L,311754,87,102.55,REFUSE COLLECTION,20/01/14,
140114E,MCGRATH BROS (WASTE CONTROL) L,311754,88,536.03,REFUSE COLLECTION,20/01/14,
140114E,MCGRATH BROS (WASTE CONTROL) L,311754,89,94.51,REFUSE COLLECTION,20/01/14,
140114E,MCGRATH BROS (WASTE CONTROL) L,311754,90,90.08,REFUSE COLLECTION,20/01/14,
140114E,MCGRATH BROS (WASTE CONTROL) L,311754,91,302.36,REFUSE COLLECTION,20/01/14,
140114E,MCGRATH BROS (WASTE CONTROL) L,311754,92,94.51,REFUSE COLLECTION,20/01/14,
140114E,MCGRATH BROS (WASTE CONTROL) L,311754,93,131.16,REFUSE COLLECTION,20/01/14,
140114E,MCGRATH BROS (WASTE CONTROL) L,311754,94,131.16,REFUSE COLLECTION,20/01/14,
140114E,MCGRATH BROS (WASTE CONTROL) L,311754,95,302.36,REFUSE COLLECTION,20/01/14,
140114E,MCGRATH BROS (WASTE CONTROL) L,311754,96,123.83,REFUSE COLLECTION,20/01/14,
140114E,MCGRATH BROS (WASTE CONTROL) L,311754,97,"1,707.42",REFUSE COLLECTION,20/01/14,
140114E,MCGRATH BROS (WASTE CONTROL) L,311754,98,94.51,REFUSE COLLECTION,20/01/14,
140114E,MCGRATH BROS (WASTE CONTROL) L,311754,99,131.16,REFUSE COLLECTION,20/01/14,
140114E,MCGRATH BROS (WASTE CONTROL) L,311754,100,131.16,REFUSE COLLECTION,20/01/14,
140114E,MCGRATH BROS (WASTE CONTROL) L,311754,101,328.06,REFUSE COLLECTION,20/01/14,
140114E,MCGRATH BROS (WASTE CONTROL) L,311754,102,82.04,REFUSE COLLECTION,20/01/14,
140114E,MCGRATH BROS (WASTE CONTROL) L,311754,103,142.75,REFUSE COLLECTION,20/01/14,
140114E,MCGRATH BROS (WASTE CONTROL) L,311754,104,131.16,REFUSE COLLECTION,20/01/14,
140114E,MCGRATH BROS (WASTE CONTROL) L,311754,105,243.72,REFUSE COLLECTION,20/01/14,
140114E,MCGRATH BROS (WASTE CONTROL) L,311754,106,111.36,REFUSE COLLECTION,20/01/14,
140114E,MCGRATH BROS (WASTE CONTROL) L,311754,107,139.20,REFUSE COLLECTION,20/01/14,
140114E,MCGRATH BROS (WASTE CONTROL) L,311754,108,126.67,REFUSE COLLECTION,20/01/14,
140114E,MCGRATH BROS (WASTE CONTROL) L,311754,109,82.04,REFUSE COLLECTION,20/01/14,
140114E,MCGRATH BROS (WASTE CONTROL) L,311754,110,94.51,REFUSE COLLECTION,20/01/14,
140114E,MCGRATH BROS (WASTE CONTROL) L,311754,111,90.08,REFUSE COLLECTION,20/01/14,
140114E,MCGRATH BROS (WASTE CONTROL) L,311754,112,82.04,REFUSE COLLECTION,20/01/14,
140114E,PCS CONSULTING SERVICES LTD===,3590,1,"1,483.50",PURCHASES-COMPUTER/EQUIPMENT,20/01/14,"1,483.50"
140519,FOCUS & VISION TECHNOLOGY LTD,38221,1,"1,279.50",MEDICAL EXPENSES CLAIMS,20/01/14,"1,279.50"
140114C,DELPHINI LIFTING & SECURING===,42250-1,1,"1,625.00",STRATEGIC (NON CYCLICAL),20/01/14,"1,625.00"
800028190,*BURLINGTON UNIFORMS LTD,424453,1,392.40,UNIFORMS - POMS,20/01/14,"2,925.00"
800028190,*BURLINGTON UNIFORMS LTD,424453,2,"1,177.20",UNIFORMS - POMS,20/01/14,
800028190,*BURLINGTON UNIFORMS LTD,424453,3,903.60,UNIFORMS - POMS,20/01/14,
800028190,*BURLINGTON UNIFORMS LTD,424453,4,451.80,UNIFORMS - POMS,20/01/14,
140114C,SPORTSAFE UK LTD==============,444376,1,92.00,GYM EQUIPMENT,20/01/14,315.00
140114C,SPORTSAFE UK LTD==============,444376,2,98.00,GYM EQUIPMENT,20/01/14,
140114C,SPORTSAFE UK LTD==============,444376,3,125.00,GYM EQUIPMENT,20/01/14,
140114C,SPORTSAFE UK LTD==============,450648,1,285.00,GYM EQUIPMENT,20/01/14,285.00
140519,THAMES WATER UTILITIES LTD====,55520-98535A,1,687.76,WATER & SEWERAGE RATES,20/01/14,687.76
150114C,MOORE STEPHENS CONSULTING LTD=,673375,1,810.00,PROF FEES-MISCELLANEOUS,20/01/14,"1,705.00"
150114C,MOORE STEPHENS CONSULTING LTD=,673375,2,895.00,PROF FEES-MISCELLANEOUS,20/01/14,
140114E,SWEETT  UK LTD,7032379,1,396.66,PROF FEES-MISCELLANEOUS,20/01/14,396.66
140114E,SWEETT  UK LTD,7032380,1,788.27,PROF FEES-MISCELLANEOUS,20/01/14,788.27
140519,THAMES WATER UTILITIES LTD====,8204330850K,1,553.75,WATER & SEWERAGE RATES,20/01/14,553.75
140114E,CITY UNIVERSITY===============,90298756,1,"5,800.00",PROFESSIONAL DEVELOPMENT,20/01/14,"5,800.00"
140114E,CITY UNIVERSITY===============,90298757,1,"5,800.00",PROFESSIONAL DEVELOPMENT,20/01/14,"5,800.00"
140114C,CAPITA SECURE INFO SOLUTIONS,93373398,1,"41,047.86",CAMS CONTRACT,20/01/14,"41,047.86"
140114C,MICROSOFT IRELAND OPS LTD=====,9820744095,1,"36,778.30",MAINTENANCE & SUPPORT,20/01/14,"36,778.30"
150114C,ARCHITECTURAL DECORATORS LTD==,AD21917,1,"2,021.15",STRATEGIC (NON CYCLICAL),20/01/14,"2,021.15"
140114E,PITNEY BOWES PURCHASE POWER,BB180903,1,51.99,POSTAL SERVICES,20/01/14,"8,208.24"
140114E,PITNEY BOWES PURCHASE POWER,BB180903,2,"5,000.00",POSTAL SERVICES,20/01/14,
140114E,PITNEY BOWES PURCHASE POWER,BB180903,3,209.19,POSTAL SERVICES,20/01/14,
140114E,PITNEY BOWES PURCHASE POWER,BB180903,4,"2,947.06",POSTAL SERVICES,20/01/14,
140114E,NCC SERVICES LTD==============,E857155,1,795.00,MAINTENANCE & SUPPORT,20/01/14,795.00
140114C,KIER BUILDING SERV ENGINEERS==,F00046143,1,"3,570.06",STRATEGIC (NON CYCLICAL),20/01/14,"3,570.06"
140114C,WM ENGINEERING SERVICES LTD===,I-4630,1,277.00,TACTICAL DAY TO DAY,20/01/14,277.00
150114C,JACKSON LIFT GROUP============,JS3525236M,1,85.25,STRATEGIC (CYCLICAL),20/01/14,"2,344.27"
150114C,JACKSON LIFT GROUP============,JS3525236M,2,85.25,STRATEGIC (CYCLICAL),20/01/14,
150114C,JACKSON LIFT GROUP============,JS3525236M,3,85.25,STRATEGIC (CYCLICAL),20/01/14,
150114C,JACKSON LIFT GROUP============,JS3525236M,4,85.25,STRATEGIC (CYCLICAL),20/01/14,
150114C,JACKSON LIFT GROUP============,JS3525236M,5,85.25,STRATEGIC (CYCLICAL),20/01/14,
150114C,JACKSON LIFT GROUP============,JS3525236M,6,85.25,STRATEGIC (CYCLICAL),20/01/14,
150114C,JACKSON LIFT GROUP============,JS3525236M,7,85.25,STRATEGIC (CYCLICAL),20/01/14,
150114C,JACKSON LIFT GROUP============,JS3525236M,8,85.25,STRATEGIC (CYCLICAL),20/01/14,
150114C,JACKSON LIFT GROUP============,JS3525236M,9,85.25,STRATEGIC (CYCLICAL),20/01/14,
150114C,JACKSON LIFT GROUP============,JS3525236M,10,42.25,STRATEGIC (CYCLICAL),20/01/14,
150114C,JACKSON LIFT GROUP============,JS3525236M,11,42.25,STRATEGIC (CYCLICAL),20/01/14,
150114C,JACKSON LIFT GROUP============,JS3525236M,12,106.92,STRATEGIC (CYCLICAL),20/01/14,
150114C,JACKSON LIFT GROUP============,JS3525236M,13,106.92,STRATEGIC (CYCLICAL),20/01/14,
150114C,JACKSON LIFT GROUP============,JS3525236M,14,106.92,STRATEGIC (CYCLICAL),20/01/14,
150114C,JACKSON LIFT GROUP============,JS3525236M,15,106.92,STRATEGIC (CYCLICAL),20/01/14,
150114C,JACKSON LIFT GROUP============,JS3525236M,16,106.92,STRATEGIC (CYCLICAL),20/01/14,
150114C,JACKSON LIFT GROUP============,JS3525236M,17,106.92,STRATEGIC (CYCLICAL),20/01/14,
150114C,JACKSON LIFT GROUP============,JS3525236M,18,42.25,STRATEGIC (CYCLICAL),20/01/14,
150114C,JACKSON LIFT GROUP============,JS3525236M,19,85.25,STRATEGIC (CYCLICAL),20/01/14,
150114C,JACKSON LIFT GROUP============,JS3525236M,20,42.25,STRATEGIC (CYCLICAL),20/01/14,
150114C,JACKSON LIFT GROUP============,JS3525236M,21,85.25,STRATEGIC (CYCLICAL),20/01/14,
150114C,JACKSON LIFT GROUP============,JS3525236M,22,42.25,STRATEGIC (CYCLICAL),20/01/14,
150114C,JACKSON LIFT GROUP============,JS3525236M,23,85.25,STRATEGIC (CYCLICAL),20/01/14,
150114C,JACKSON LIFT GROUP============,JS3525236M,24,85.25,STRATEGIC (CYCLICAL),20/01/14,
150114C,JACKSON LIFT GROUP============,JS3525236M,25,85.25,STRATEGIC (CYCLICAL),20/01/14,
150114C,JACKSON LIFT GROUP============,JS3525236M,26,85.25,STRATEGIC (CYCLICAL),20/01/14,
150114C,JACKSON LIFT GROUP============,JS3525236M,27,42.25,STRATEGIC (CYCLICAL),20/01/14,
150114C,JACKSON LIFT GROUP============,JS3525236M,28,85.25,STRATEGIC (CYCLICAL),20/01/14,
150114C,JACKSON LIFT GROUP============,JS3525236M,29,85.25,STRATEGIC (CYCLICAL),20/01/14,
800028010,ALLSTAR BUSINESS SOLUTIONS LTD,P2002157759,1,"1,146.98",FUEL,20/01/14,"17,699.06"
800028010,ALLSTAR BUSINESS SOLUTIONS LTD,P2002157759,2,854.50,FUEL,20/01/14,
800028010,ALLSTAR BUSINESS SOLUTIONS LTD,P2002157759,3,641.01,FUEL,20/01/14,
800028010,ALLSTAR BUSINESS SOLUTIONS LTD,P2002157759,4,508.44,FUEL,20/01/14,
800028010,ALLSTAR BUSINESS SOLUTIONS LTD,P2002157759,5,507.66,FUEL,20/01/14,
800028010,ALLSTAR BUSINESS SOLUTIONS LTD,P2002157759,6,490.76,FUEL,20/01/14,
800028010,ALLSTAR BUSINESS SOLUTIONS LTD,P2002157759,7,416.31,FUEL,20/01/14,
800028010,ALLSTAR BUSINESS SOLUTIONS LTD,P2002157759,8,402.10,FUEL,20/01/14,
800028010,ALLSTAR BUSINESS SOLUTIONS LTD,P2002157759,9,348.58,FUEL,20/01/14,
800028010,ALLSTAR BUSINESS SOLUTIONS LTD,P2002157759,10,320.44,FUEL,20/01/14,
800028010,ALLSTAR BUSINESS SOLUTIONS LTD,P2002157759,11,281.89,FUEL,20/01/14,
800028010,ALLSTAR BUSINESS SOLUTIONS LTD,P2002157759,12,277.34,FUEL,20/01/14,
800028010,ALLSTAR BUSINESS SOLUTIONS LTD,P2002157759,13,273.44,FUEL,20/01/14,
800028010,ALLSTAR BUSINESS SOLUTIONS LTD,P2002157759,14,258.63,FUEL,20/01/14,
800028010,ALLSTAR BUSINESS SOLUTIONS LTD,P2002157759,15,257.58,FUEL,20/01/14,
800028010,ALLSTAR BUSINESS SOLUTIONS LTD,P2002157759,16,253.11,FUEL,20/01/14,
800028010,ALLSTAR BUSINESS SOLUTIONS LTD,P2002157759,17,251.64,FUEL,20/01/14,
800028010,ALLSTAR BUSINESS SOLUTIONS LTD,P2002157759,18,233.05,FUEL,20/01/14,
800028010,ALLSTAR BUSINESS SOLUTIONS LTD,P2002157759,19,229.30,FUEL,20/01/14,
800028010,ALLSTAR BUSINESS SOLUTIONS LTD,P2002157759,20,218.09,FUEL,20/01/14,
800028010,ALLSTAR BUSINESS SOLUTIONS LTD,P2002157759,21,217.43,FUEL,20/01/14,
800028010,ALLSTAR BUSINESS SOLUTIONS LTD,P2002157759,22,211.18,FUEL,20/01/14,
800028010,ALLSTAR BUSINESS SOLUTIONS LTD,P2002157759,23,204.75,FUEL,20/01/14,
800028010,ALLSTAR BUSINESS SOLUTIONS LTD,P2002157759,24,204.21,FUEL,20/01/14,
800028010,ALLSTAR BUSINESS SOLUTIONS LTD,P2002157759,25,197.30,FUEL,20/01/14,
800028010,ALLSTAR BUSINESS SOLUTIONS LTD,P2002157759,26,186.77,FUEL,20/01/14,
800028010,ALLSTAR BUSINESS SOLUTIONS LTD,P2002157759,27,186.13,FUEL,20/01/14,
800028010,ALLSTAR BUSINESS SOLUTIONS LTD,P2002157759,28,181.53,FUEL,20/01/14,
800028010,ALLSTAR BUSINESS SOLUTIONS LTD,P2002157759,29,181.49,FUEL,20/01/14,
800028010,ALLSTAR BUSINESS SOLUTIONS LTD,P2002157759,30,168.79,FUEL,20/01/14,
800028010,ALLSTAR BUSINESS SOLUTIONS LTD,P2002157759,31,165.20,FUEL,20/01/14,
800028010,ALLSTAR BUSINESS SOLUTIONS LTD,P2002157759,32,163.23,FUEL,20/01/14,
800028010,ALLSTAR BUSINESS SOLUTIONS LTD,P2002157759,33,160.95,FUEL,20/01/14,
800028010,ALLSTAR BUSINESS SOLUTIONS LTD,P2002157759,34,159.19,FUEL,20/01/14,
800028010,ALLSTAR BUSINESS SOLUTIONS LTD,P2002157759,35,158.03,FUEL,20/01/14,
800028010,ALLSTAR BUSINESS SOLUTIONS LTD,P2002157759,36,156.90,FUEL,20/01/14,
800028010,ALLSTAR BUSINESS SOLUTIONS LTD,P2002157759,37,156.63,FUEL,20/01/14,
800028010,ALLSTAR BUSINESS SOLUTIONS LTD,P2002157759,38,149.28,FUEL,20/01/14,
800028010,ALLSTAR BUSINESS SOLUTIONS LTD,P2002157759,39,146.97,FUEL,20/01/14,
800028010,ALLSTAR BUSINESS SOLUTIONS LTD,P2002157759,40,144.76,FUEL,20/01/14,
800028010,ALLSTAR BUSINESS SOLUTIONS LTD,P2002157759,41,142.57,FUEL,20/01/14,
800028010,ALLSTAR BUSINESS SOLUTIONS LTD,P2002157759,42,138.35,FUEL,20/01/14,
800028010,ALLSTAR BUSINESS SOLUTIONS LTD,P2002157759,43,138.27,FUEL,20/01/14,
800028010,ALLSTAR BUSINESS SOLUTIONS LTD,P2002157759,44,136.50,FUEL,20/01/14,
800028010,ALLSTAR BUSINESS SOLUTIONS LTD,P2002157759,45,135.31,FUEL,20/01/14,
800028010,ALLSTAR BUSINESS SOLUTIONS LTD,P2002157759,46,135.26,FUEL,20/01/14,
800028010,ALLSTAR BUSINESS SOLUTIONS LTD,P2002157759,47,134.75,FUEL,20/01/14,
800028010,ALLSTAR BUSINESS SOLUTIONS LTD,P2002157759,48,133.80,FUEL,20/01/14,
800028010,ALLSTAR BUSINESS SOLUTIONS LTD,P2002157759,49,132.31,FUEL,20/01/14,
800028010,ALLSTAR BUSINESS SOLUTIONS LTD,P2002157759,50,128.97,FUEL,20/01/14,
800028010,ALLSTAR BUSINESS SOLUTIONS LTD,P2002157759,51,124.57,FUEL,20/01/14,
800028010,ALLSTAR BUSINESS SOLUTIONS LTD,P2002157759,52,123.87,FUEL,20/01/14,
800028010,ALLSTAR BUSINESS SOLUTIONS LTD,P2002157759,53,122.69,FUEL,20/01/14,
800028010,ALLSTAR BUSINESS SOLUTIONS LTD,P2002157759,54,121.82,FUEL,20/01/14,
800028010,ALLSTAR BUSINESS SOLUTIONS LTD,P2002157759,55,119.27,FUEL,20/01/14,
800028010,ALLSTAR BUSINESS SOLUTIONS LTD,P2002157759,56,117.86,FUEL,20/01/14,
800028010,ALLSTAR BUSINESS SOLUTIONS LTD,P2002157759,57,115.52,FUEL,20/01/14,
800028010,ALLSTAR BUSINESS SOLUTIONS LTD,P2002157759,58,115.00,FUEL,20/01/14,
800028010,ALLSTAR BUSINESS SOLUTIONS LTD,P2002157759,59,112.68,FUEL,20/01/14,
800028010,ALLSTAR BUSINESS SOLUTIONS LTD,P2002157759,60,109.72,FUEL,20/01/14,
800028010,ALLSTAR BUSINESS SOLUTIONS LTD,P2002157759,61,107.31,FUEL,20/01/14,
800028010,ALLSTAR BUSINESS SOLUTIONS LTD,P2002157759,62,105.82,FUEL,20/01/14,
800028010,ALLSTAR BUSINESS SOLUTIONS LTD,P2002157759,63,105.10,FUEL,20/01/14,
800028010,ALLSTAR BUSINESS SOLUTIONS LTD,P2002157759,64,101.75,FUEL,20/01/14,
800028010,ALLSTAR BUSINESS SOLUTIONS LTD,P2002157759,65,99.62,FUEL,20/01/14,
800028010,ALLSTAR BUSINESS SOLUTIONS LTD,P2002157759,66,98.26,FUEL,20/01/14,
800028010,ALLSTAR BUSINESS SOLUTIONS LTD,P2002157759,67,97.22,FUEL,20/01/14,
800028010,ALLSTAR BUSINESS SOLUTIONS LTD,P2002157759,68,91.67,FUEL,20/01/14,
800028010,ALLSTAR BUSINESS SOLUTIONS LTD,P2002157759,69,90.88,FUEL,20/01/14,
800028010,ALLSTAR BUSINESS SOLUTIONS LTD,P2002157759,70,88.79,FUEL,20/01/14,
800028010,ALLSTAR BUSINESS SOLUTIONS LTD,P2002157759,71,88.05,FUEL,20/01/14,
800028010,ALLSTAR BUSINESS SOLUTIONS LTD,P2002157759,72,87.09,FUEL,20/01/14,
800028010,ALLSTAR BUSINESS SOLUTIONS LTD,P2002157759,73,87.02,FUEL,20/01/14,
800028010,ALLSTAR BUSINESS SOLUTIONS LTD,P2002157759,74,86.20,FUEL,20/01/14,
800028010,ALLSTAR BUSINESS SOLUTIONS LTD,P2002157759,75,83.60,FUEL,20/01/14,
800028010,ALLSTAR BUSINESS SOLUTIONS LTD,P2002157759,76,83.25,FUEL,20/01/14,
800028010,ALLSTAR BUSINESS SOLUTIONS LTD,P2002157759,77,80.01,FUEL,20/01/14,
800028010,ALLSTAR BUSINESS SOLUTIONS LTD,P2002157759,78,79.14,FUEL,20/01/14,
800028010,ALLSTAR BUSINESS SOLUTIONS LTD,P2002157759,79,78.97,FUEL,20/01/14,
800028010,ALLSTAR BUSINESS SOLUTIONS LTD,P2002157759,80,78.63,FUEL,20/01/14,
800028010,ALLSTAR BUSINESS SOLUTIONS LTD,P2002157759,81,78.05,FUEL,20/01/14,
800028010,ALLSTAR BUSINESS SOLUTIONS LTD,P2002157759,82,76.66,FUEL,20/01/14,
800028010,ALLSTAR BUSINESS SOLUTIONS LTD,P2002157759,83,76.48,FUEL,20/01/14,
800028010,ALLSTAR BUSINESS SOLUTIONS LTD,P2002157759,84,75.81,FUEL,20/01/14,
800028010,ALLSTAR BUSINESS SOLUTIONS LTD,P2002157759,85,74.42,FUEL,20/01/14,
800028010,ALLSTAR BUSINESS SOLUTIONS LTD,P2002157759,86,74.22,FUEL,20/01/14,
800028010,ALLSTAR BUSINESS SOLUTIONS LTD,P2002157759,87,73.48,FUEL,20/01/14,
800028010,ALLSTAR BUSINESS SOLUTIONS LTD,P2002157759,88,73.30,FUEL,20/01/14,
800028010,ALLSTAR BUSINESS SOLUTIONS LTD,P2002157759,89,71.93,FUEL,20/01/14,
800028010,ALLSTAR BUSINESS SOLUTIONS LTD,P2002157759,90,71.37,FUEL,20/01/14,
800028010,ALLSTAR BUSINESS SOLUTIONS LTD,P2002157759,91,70.71,FUEL,20/01/14,
800028010,ALLSTAR BUSINESS SOLUTIONS LTD,P2002157759,92,70.49,FUEL,20/01/14,
800028010,ALLSTAR BUSINESS SOLUTIONS LTD,P2002157759,93,68.06,FUEL,20/01/14,
800028010,ALLSTAR BUSINESS SOLUTIONS LTD,P2002157759,94,64.79,FUEL,20/01/14,
800028010,ALLSTAR BUSINESS SOLUTIONS LTD,P2002157759,95,62.24,FUEL,20/01/14,
800028010,ALLSTAR BUSINESS SOLUTIONS LTD,P2002157759,96,58.33,FUEL,20/01/14,
800028010,ALLSTAR BUSINESS SOLUTIONS LTD,P2002157759,97,56.03,FUEL,20/01/14,
800028010,ALLSTAR BUSINESS SOLUTIONS LTD,P2002157759,98,54.87,FUEL,20/01/14,
800028010,ALLSTAR BUSINESS SOLUTIONS LTD,P2002157759,99,53.76,FUEL,20/01/14,
800028010,ALLSTAR BUSINESS SOLUTIONS LTD,P2002157759,100,50.64,FUEL,20/01/14,
800028010,ALLSTAR BUSINESS SOLUTIONS LTD,P2002157759,101,50.44,FUEL,20/01/14,
800028010,ALLSTAR BUSINESS SOLUTIONS LTD,P2002157759,102,45.63,FUEL,20/01/14,
800028010,ALLSTAR BUSINESS SOLUTIONS LTD,P2002157759,103,44.03,FUEL,20/01/14,
800028010,ALLSTAR BUSINESS SOLUTIONS LTD,P2002157759,104,41.08,FUEL,20/01/14,
800028010,ALLSTAR BUSINESS SOLUTIONS LTD,P2002157759,105,37.18,FUEL,20/01/14,
800028010,ALLSTAR BUSINESS SOLUTIONS LTD,P2002157759,106,30.40,FUEL,20/01/14,
800028010,ALLSTAR BUSINESS SOLUTIONS LTD,P2002157759,107,29.84,FUEL,20/01/14,
800028010,ALLSTAR BUSINESS SOLUTIONS LTD,P2002157759,108,23.43,FUEL,20/01/14,
800028010,ALLSTAR BUSINESS SOLUTIONS LTD,P2002157759,109,12.35,FUEL,20/01/14,
150114C,EDM GROUP LIMITED,SI136318,1,460.00,STATIONERY CONSUMABLES,20/01/14,460.00
140114C,COLLINS (CONTRACTORS) LTD=====,SPAM700,1,"3,185.00",STRATEGIC (NON CYCLICAL),20/01/14,"3,185.00"
140114C,COLLINS (CONTRACTORS) LTD=====,SPAM701,1,"1,036.00",STRATEGIC (NON CYCLICAL),20/01/14,"1,036.00"
140114C,VODAFONE PAGING LTD===========,VI1377421,1,2.00,CELLULAR TELEPHONES,20/01/14,282.00
140114C,VODAFONE PAGING LTD===========,VI1377421,2,280.00,CELLULAR TELEPHONES,20/01/14,
140114C,SPEAKERS TRUST,WEB/003668,1,772.50,GENERAL,20/01/14,772.50
150114C,INFICON GMBH==================,70651608,1,565.26,OPERATIONAL EQUIP-PURCHASE,21/01/14,565.26
100114G,HEALTH MANAGEMENT LIMITED=====,00000107560,1,"107,035.75",OHS CONTRACT,23/01/14,"107,035.75"
140527,OGILVIE FLEET LTD=============,00266908,1,358.68,LEASE CAR CHARGES,23/01/14,358.68
140527,OGILVIE FLEET LTD=============,00266908,2,-30.50,VAT CAR LEASING,23/01/14,
140527,OGILVIE FLEET LTD=============,00266908,3,30.50,LEASE CAR CHARGES,23/01/14,
140529,OGILVIE FLEET LTD=============,00267592,1,"1,129.03",LEASE CAR CHARGES,23/01/14,"5,216.40"
140529,OGILVIE FLEET LTD=============,00267592,2,"4,087.37",P/PAYMTS-CAR LEASG-RENTAL,23/01/14,
140529,OGILVIE FLEET LTD=============,00267592,3,-462.78,VAT CAR LEASING,23/01/14,
140529,OGILVIE FLEET LTD=============,00267592,4,462.78,LEASE CAR CHARGES,23/01/14,
140529,OGILVIE FLEET LTD=============,00267593,1,"1,018.86",LEASE CAR CHARGES,23/01/14,"5,312.64"
140529,OGILVIE FLEET LTD=============,00267593,2,"4,293.78",P/PAYMTS-CAR LEASG-RENTAL,23/01/14,
140529,OGILVIE FLEET LTD=============,00267593,3,-468.52,VAT CAR LEASING,23/01/14,
140529,OGILVIE FLEET LTD=============,00267593,4,468.52,LEASE CAR CHARGES,23/01/14,
140529,OGILVIE FLEET LTD=============,00267594,1,"1,308.96",LEASE CAR CHARGES,23/01/14,"6,456.36"
140529,OGILVIE FLEET LTD=============,00267594,2,"5,147.40",P/PAYMTS-CAR LEASG-RENTAL,23/01/14,
140529,OGILVIE FLEET LTD=============,00267594,3,-592.32,VAT CAR LEASING,23/01/14,
140529,OGILVIE FLEET LTD=============,00267594,4,592.32,LEASE CAR CHARGES,23/01/14,
140529,OGILVIE FLEET LTD=============,00267595,1,797.63,LEASE CAR CHARGES,23/01/14,"4,479.00"
140529,OGILVIE FLEET LTD=============,00267595,2,"3,681.37",P/PAYMTS-CAR LEASG-RENTAL,23/01/14,
140529,OGILVIE FLEET LTD=============,00267595,3,-396.89,VAT CAR LEASING,23/01/14,
140529,OGILVIE FLEET LTD=============,00267595,4,396.89,LEASE CAR CHARGES,23/01/14,
140529,OGILVIE FLEET LTD=============,00267596,1,838.49,LEASE CAR CHARGES,23/01/14,"3,400.56"
140529,OGILVIE FLEET LTD=============,00267596,2,"2,562.07",P/PAYMTS-CAR LEASG-RENTAL,23/01/14,
140529,OGILVIE FLEET LTD=============,00267596,3,-286.31,VAT CAR LEASING,23/01/14,
140529,OGILVIE FLEET LTD=============,00267596,4,286.31,LEASE CAR CHARGES,23/01/14,
140529,OGILVIE FLEET LTD=============,00267597,1,"1,455.79",LEASE CAR CHARGES,23/01/14,"6,560.04"
140529,OGILVIE FLEET LTD=============,00267597,2,"5,104.25",P/PAYMTS-CAR LEASG-RENTAL,23/01/14,
140529,OGILVIE FLEET LTD=============,00267597,3,-589.96,VAT CAR LEASING,23/01/14,
140529,OGILVIE FLEET LTD=============,00267597,4,589.96,LEASE CAR CHARGES,23/01/14,
100114C,ADAM PHONES LTD===============,01025328,1,496.00,CELLULAR TELEPHONES,23/01/14,546.18
100114C,ADAM PHONES LTD===============,01025328,2,50.18,CELLULAR TELEPHONES,23/01/14,
170114C,ESRI (UK) LIMITED=============,084518,1,"9,855.00",MAINTENANCE & SUPPORT,23/01/14,"11,050.00"
170114C,ESRI (UK) LIMITED=============,084518,2,"1,195.00",MAINTENANCE & SUPPORT,23/01/14,
140521,CORONA ENERGY RETAIL 4 LTD,0891612131,1,6.96,GAS,23/01/14,"26,983.62"
140521,CORONA ENERGY RETAIL 4 LTD,0891612131,2,"1,635.84",GAS,23/01/14,
140521,CORONA ENERGY RETAIL 4 LTD,0891612131,3,507.65,GAS,23/01/14,
140521,CORONA ENERGY RETAIL 4 LTD,0891612131,4,941.41,GAS,23/01/14,
140521,CORONA ENERGY RETAIL 4 LTD,0891612131,5,"1,165.09",GAS,23/01/14,
140521,CORONA ENERGY RETAIL 4 LTD,0891612131,6,"1,210.25",GAS,23/01/14,
140521,CORONA ENERGY RETAIL 4 LTD,0891612131,7,908.17,GAS,23/01/14,
140521,CORONA ENERGY RETAIL 4 LTD,0891612131,8,710.96,GAS,23/01/14,
140521,CORONA ENERGY RETAIL 4 LTD,0891612131,9,735.51,GAS,23/01/14,
140521,CORONA ENERGY RETAIL 4 LTD,0891612131,10,86.80,GAS,23/01/14,
140521,CORONA ENERGY RETAIL 4 LTD,0891612131,11,656.14,GAS,23/01/14,
140521,CORONA ENERGY RETAIL 4 LTD,0891612131,12,768.80,GAS,23/01/14,
140521,CORONA ENERGY RETAIL 4 LTD,0891612131,13,"1,211.27",GAS,23/01/14,
140521,CORONA ENERGY RETAIL 4 LTD,0891612131,14,"1,454.97",GAS,23/01/14,
140521,CORONA ENERGY RETAIL 4 LTD,0891612131,15,811.45,GAS,23/01/14,
140521,CORONA ENERGY RETAIL 4 LTD,0891612131,16,"1,021.58",GAS,23/01/14,
140521,CORONA ENERGY RETAIL 4 LTD,0891612131,17,"1,459.67",GAS,23/01/14,
140521,CORONA ENERGY RETAIL 4 LTD,0891612131,18,79.53,GAS,23/01/14,
140521,CORONA ENERGY RETAIL 4 LTD,0891612131,19,129.78,GAS,23/01/14,
140521,CORONA ENERGY RETAIL 4 LTD,0891612131,20,51.69,GAS,23/01/14,
140521,CORONA ENERGY RETAIL 4 LTD,0891612131,21,"1,158.13",GAS,23/01/14,
140521,CORONA ENERGY RETAIL 4 LTD,0891612131,22,"1,928.80",GAS,23/01/14,
140521,CORONA ENERGY RETAIL 4 LTD,0891612131,23,"1,324.09",GAS,23/01/14,
140521,CORONA ENERGY RETAIL 4 LTD,0891612131,24,635.41,GAS,23/01/14,
140521,CORONA ENERGY RETAIL 4 LTD,0891612131,25,903.63,GAS,23/01/14,
140521,CORONA ENERGY RETAIL 4 LTD,0891612131,26,541.14,GAS,23/01/14,
140521,CORONA ENERGY RETAIL 4 LTD,0891612131,27,317.85,GAS,23/01/14,
140521,CORONA ENERGY RETAIL 4 LTD,0891612131,28,729.06,GAS,23/01/14,
140521,CORONA ENERGY RETAIL 4 LTD,0891612131,29,690.63,GAS,23/01/14,
140521,CORONA ENERGY RETAIL 4 LTD,0891612131,30,"1,859.15",GAS,23/01/14,
140521,CORONA ENERGY RETAIL 4 LTD,0891612131,31,"1,342.21",GAS,23/01/14,
140522,CORONA ENERGY RETAIL 4 LTD,0891612132,1,477.74,GAS,23/01/14,"24,259.80"
140522,CORONA ENERGY RETAIL 4 LTD,0891612132,2,636.50,GAS,23/01/14,
140522,CORONA ENERGY RETAIL 4 LTD,0891612132,3,"1,099.89",GAS,23/01/14,
140522,CORONA ENERGY RETAIL 4 LTD,0891612132,4,926.69,GAS,23/01/14,
140522,CORONA ENERGY RETAIL 4 LTD,0891612132,5,"1,481.54",GAS,23/01/14,
140522,CORONA ENERGY RETAIL 4 LTD,0891612132,6,576.69,GAS,23/01/14,
140522,CORONA ENERGY RETAIL 4 LTD,0891612132,7,"1,197.65",GAS,23/01/14,
140522,CORONA ENERGY RETAIL 4 LTD,0891612132,8,836.76,GAS,23/01/14,
140522,CORONA ENERGY RETAIL 4 LTD,0891612132,9,633.52,GAS,23/01/14,
140522,CORONA ENERGY RETAIL 4 LTD,0891612132,10,"1,381.68",GAS,23/01/14,
140522,CORONA ENERGY RETAIL 4 LTD,0891612132,11,73.95,GAS,23/01/14,
140522,CORONA ENERGY RETAIL 4 LTD,0891612132,12,635.43,GAS,23/01/14,
140522,CORONA ENERGY RETAIL 4 LTD,0891612132,13,940.37,GAS,23/01/14,
140522,CORONA ENERGY RETAIL 4 LTD,0891612132,14,840.17,GAS,23/01/14,
140522,CORONA ENERGY RETAIL 4 LTD,0891612132,15,604.75,GAS,23/01/14,
140522,CORONA ENERGY RETAIL 4 LTD,0891612132,16,704.00,GAS,23/01/14,
140522,CORONA ENERGY RETAIL 4 LTD,0891612132,17,49.72,GAS,23/01/14,
140522,CORONA ENERGY RETAIL 4 LTD,0891612132,18,"1,454.12",GAS,23/01/14,
140522,CORONA ENERGY RETAIL 4 LTD,0891612132,19,688.98,GAS,23/01/14,
140522,CORONA ENERGY RETAIL 4 LTD,0891612132,20,510.43,GAS,23/01/14,
140522,CORONA ENERGY RETAIL 4 LTD,0891612132,21,936.61,GAS,23/01/14,
140522,CORONA ENERGY RETAIL 4 LTD,0891612132,22,996.90,GAS,23/01/14,
140522,CORONA ENERGY RETAIL 4 LTD,0891612132,23,852.99,GAS,23/01/14,
140522,CORONA ENERGY RETAIL 4 LTD,0891612132,24,818.70,GAS,23/01/14,
140522,CORONA ENERGY RETAIL 4 LTD,0891612132,25,"1,037.99",GAS,23/01/14,
140522,CORONA ENERGY RETAIL 4 LTD,0891612132,26,640.19,GAS,23/01/14,
140522,CORONA ENERGY RETAIL 4 LTD,0891612132,27,947.57,GAS,23/01/14,
140522,CORONA ENERGY RETAIL 4 LTD,0891612132,28,585.36,GAS,23/01/14,
140522,CORONA ENERGY RETAIL 4 LTD,0891612132,29,"1,047.33",GAS,23/01/14,
140522,CORONA ENERGY RETAIL 4 LTD,0891612132,30,645.58,GAS,23/01/14,
140523,CORONA ENERGY RETAIL 4 LTD,0891612133,1,"5,117.64",GAS,23/01/14,"40,960.85"
140523,CORONA ENERGY RETAIL 4 LTD,0891612133,2,600.41,GAS,23/01/14,
140523,CORONA ENERGY RETAIL 4 LTD,0891612133,3,148.97,GAS,23/01/14,
140523,CORONA ENERGY RETAIL 4 LTD,0891612133,4,576.65,GAS,23/01/14,
140523,CORONA ENERGY RETAIL 4 LTD,0891612133,5,"1,729.48",GAS,23/01/14,
140523,CORONA ENERGY RETAIL 4 LTD,0891612133,6,903.41,GAS,23/01/14,
140523,CORONA ENERGY RETAIL 4 LTD,0891612133,7,"1,054.37",GAS,23/01/14,
140523,CORONA ENERGY RETAIL 4 LTD,0891612133,8,"3,893.38",GAS,23/01/14,
140523,CORONA ENERGY RETAIL 4 LTD,0891612133,9,571.76,GAS,23/01/14,
140523,CORONA ENERGY RETAIL 4 LTD,0891612133,10,"1,323.99",GAS,23/01/14,
140523,CORONA ENERGY RETAIL 4 LTD,0891612133,11,530.72,GAS,23/01/14,
140523,CORONA ENERGY RETAIL 4 LTD,0891612133,12,"1,784.18",GAS,23/01/14,
140523,CORONA ENERGY RETAIL 4 LTD,0891612133,13,428.72,GAS,23/01/14,
140523,CORONA ENERGY RETAIL 4 LTD,0891612133,14,981.24,GAS,23/01/14,
140523,CORONA ENERGY RETAIL 4 LTD,0891612133,15,557.86,GAS,23/01/14,
140523,CORONA ENERGY RETAIL 4 LTD,0891612133,16,"1,204.32",GAS,23/01/14,
140523,CORONA ENERGY RETAIL 4 LTD,0891612133,17,616.61,GAS,23/01/14,
140523,CORONA ENERGY RETAIL 4 LTD,0891612133,18,884.45,GAS,23/01/14,
140523,CORONA ENERGY RETAIL 4 LTD,0891612133,19,"3,031.16",GAS,23/01/14,
140523,CORONA ENERGY RETAIL 4 LTD,0891612133,20,885.58,GAS,23/01/14,
140523,CORONA ENERGY RETAIL 4 LTD,0891612133,21,"1,015.47",GAS,23/01/14,
140523,CORONA ENERGY RETAIL 4 LTD,0891612133,22,941.17,GAS,23/01/14,
140523,CORONA ENERGY RETAIL 4 LTD,0891612133,23,"1,709.57",GAS,23/01/14,
140523,CORONA ENERGY RETAIL 4 LTD,0891612133,24,752.26,GAS,23/01/14,
140523,CORONA ENERGY RETAIL 4 LTD,0891612133,25,790.68,GAS,23/01/14,
140523,CORONA ENERGY RETAIL 4 LTD,0891612133,26,738.13,GAS,23/01/14,
140523,CORONA ENERGY RETAIL 4 LTD,0891612133,27,"1,033.20",GAS,23/01/14,
140523,CORONA ENERGY RETAIL 4 LTD,0891612133,28,"1,769.65",GAS,23/01/14,
140523,CORONA ENERGY RETAIL 4 LTD,0891612133,29,"2,046.38",GAS,23/01/14,
140523,CORONA ENERGY RETAIL 4 LTD,0891612133,30,"1,026.40",GAS,23/01/14,
140523,CORONA ENERGY RETAIL 4 LTD,0891612133,31,"1,040.44",GAS,23/01/14,
140523,CORONA ENERGY RETAIL 4 LTD,0891612133,32,"1,272.60",GAS,23/01/14,
140524,CORONA ENERGY RETAIL 4 LTD,0891612134,1,664.20,GAS,23/01/14,"28,878.77"
140524,CORONA ENERGY RETAIL 4 LTD,0891612134,2,740.43,GAS,23/01/14,
140524,CORONA ENERGY RETAIL 4 LTD,0891612134,3,"4,003.91",GAS,23/01/14,
140524,CORONA ENERGY RETAIL 4 LTD,0891612134,4,"1,000.98",GAS,23/01/14,
140524,CORONA ENERGY RETAIL 4 LTD,0891612134,5,118.11,GAS,23/01/14,
140524,CORONA ENERGY RETAIL 4 LTD,0891612134,6,"1,195.64",GAS,23/01/14,
140524,CORONA ENERGY RETAIL 4 LTD,0891612134,7,878.32,GAS,23/01/14,
140524,CORONA ENERGY RETAIL 4 LTD,0891612134,8,"1,991.08",GAS,23/01/14,
140524,CORONA ENERGY RETAIL 4 LTD,0891612134,9,9.30,GAS,23/01/14,
140524,CORONA ENERGY RETAIL 4 LTD,0891612134,10,722.69,GAS,23/01/14,
140524,CORONA ENERGY RETAIL 4 LTD,0891612134,11,861.21,GAS,23/01/14,
140524,CORONA ENERGY RETAIL 4 LTD,0891612134,12,"1,079.71",GAS,23/01/14,
140524,CORONA ENERGY RETAIL 4 LTD,0891612134,13,637.92,GAS,23/01/14,
140524,CORONA ENERGY RETAIL 4 LTD,0891612134,14,325.04,GAS,23/01/14,
140524,CORONA ENERGY RETAIL 4 LTD,0891612134,15,739.92,GAS,23/01/14,
140524,CORONA ENERGY RETAIL 4 LTD,0891612134,16,546.13,GAS,23/01/14,
140524,CORONA ENERGY RETAIL 4 LTD,0891612134,17,771.57,GAS,23/01/14,
140524,CORONA ENERGY RETAIL 4 LTD,0891612134,18,642.81,GAS,23/01/14,
140524,CORONA ENERGY RETAIL 4 LTD,0891612134,19,"1,704.35",GAS,23/01/14,
140524,CORONA ENERGY RETAIL 4 LTD,0891612134,20,387.56,GAS,23/01/14,
140524,CORONA ENERGY RETAIL 4 LTD,0891612134,21,799.84,GAS,23/01/14,
140524,CORONA ENERGY RETAIL 4 LTD,0891612134,22,19.53,GAS,23/01/14,
140524,CORONA ENERGY RETAIL 4 LTD,0891612134,23,"1,004.65",GAS,23/01/14,
140524,CORONA ENERGY RETAIL 4 LTD,0891612134,24,79.78,GAS,23/01/14,
140524,CORONA ENERGY RETAIL 4 LTD,0891612134,25,"1,142.50",GAS,23/01/14,
140524,CORONA ENERGY RETAIL 4 LTD,0891612134,26,775.81,GAS,23/01/14,
140524,CORONA ENERGY RETAIL 4 LTD,0891612134,27,"1,098.99",GAS,23/01/14,
140524,CORONA ENERGY RETAIL 4 LTD,0891612134,28,"1,617.42",GAS,23/01/14,
140524,CORONA ENERGY RETAIL 4 LTD,0891612134,29,"1,115.19",GAS,23/01/14,
140524,CORONA ENERGY RETAIL 4 LTD,0891612134,30,"1,042.75",GAS,23/01/14,
140524,CORONA ENERGY RETAIL 4 LTD,0891612134,31,"1,161.43",GAS,23/01/14,
160114G,APTCO,101798,1,360.00,OPERATIONAL EQUIP-PURCHASE,23/01/14,360.00
140526,BRIDGE ORTHOPAEDIC SERVICES LT,101938,1,"1,540.00",DOCTORS/MEDICAL FEES,23/01/14,"1,540.00"
200114G,*SPRUE SAFETY PRODUCTS LTD====,1055720,1,988.80,FIRE DETECTORS,23/01/14,988.80
800028276,*NPS (SHOES) LTD,12525,1,41.10,CLOTHING,23/01/14,962.45
800028276,*NPS (SHOES) LTD,12525,2,41.10,CLOTHING,23/01/14,
800028276,*NPS (SHOES) LTD,12525,3,30.05,CLOTHING,23/01/14,
800028276,*NPS (SHOES) LTD,12525,4,30.05,CLOTHING,23/01/14,
800028276,*NPS (SHOES) LTD,12525,5,30.05,CLOTHING,23/01/14,
800028276,*NPS (SHOES) LTD,12525,6,30.05,CLOTHING,23/01/14,
800028276,*NPS (SHOES) LTD,12525,7,30.05,CLOTHING,23/01/14,
800028276,*NPS (SHOES) LTD,12525,8,30.05,CLOTHING,23/01/14,
800028276,*NPS (SHOES) LTD,12525,9,30.05,CLOTHING,23/01/14,
800028276,*NPS (SHOES) LTD,12525,10,30.05,CLOTHING,23/01/14,
800028276,*NPS (SHOES) LTD,12525,11,35.00,CLOTHING,23/01/14,
800028276,*NPS (SHOES) LTD,12525,12,30.05,CLOTHING,23/01/14,
800028276,*NPS (SHOES) LTD,12525,13,30.05,CLOTHING,23/01/14,
800028276,*NPS (SHOES) LTD,12525,14,30.05,CLOTHING,23/01/14,
800028276,*NPS (SHOES) LTD,12525,15,30.05,CLOTHING,23/01/14,
800028276,*NPS (SHOES) LTD,12525,16,30.05,CLOTHING,23/01/14,
800028276,*NPS (SHOES) LTD,12525,17,30.05,CLOTHING,23/01/14,
800028276,*NPS (SHOES) LTD,12525,18,30.05,CLOTHING,23/01/14,
800028276,*NPS (SHOES) LTD,12525,19,29.45,CLOTHING,23/01/14,
800028276,*NPS (SHOES) LTD,12525,20,29.45,CLOTHING,23/01/14,
800028276,*NPS (SHOES) LTD,12525,21,29.45,CLOTHING,23/01/14,
800028276,*NPS (SHOES) LTD,12525,22,29.45,CLOTHING,23/01/14,
800028276,*NPS (SHOES) LTD,12525,23,29.45,CLOTHING,23/01/14,
800028276,*NPS (SHOES) LTD,12525,24,29.45,CLOTHING,23/01/14,
800028276,*NPS (SHOES) LTD,12525,25,29.45,CLOTHING,23/01/14,
800028276,*NPS (SHOES) LTD,12525,26,29.45,CLOTHING,23/01/14,
800028276,*NPS (SHOES) LTD,12525,27,29.45,CLOTHING,23/01/14,
800028276,*NPS (SHOES) LTD,12525,28,29.45,CLOTHING,23/01/14,
800028276,*NPS (SHOES) LTD,12525,29,29.45,CLOTHING,23/01/14,
800028276,*NPS (SHOES) LTD,12525,30,29.45,CLOTHING,23/01/14,
800028276,*NPS (SHOES) LTD,12525,31,41.10,CLOTHING,23/01/14,
800028277,*NPS (SHOES) LTD,12563,1,30.05,CLOTHING,23/01/14,"1,500.80"
800028277,*NPS (SHOES) LTD,12563,2,30.05,CLOTHING,23/01/14,
800028277,*NPS (SHOES) LTD,12563,3,30.05,CLOTHING,23/01/14,
800028277,*NPS (SHOES) LTD,12563,4,30.05,CLOTHING,23/01/14,
800028277,*NPS (SHOES) LTD,12563,5,30.05,CLOTHING,23/01/14,
800028277,*NPS (SHOES) LTD,12563,6,30.05,CLOTHING,23/01/14,
800028277,*NPS (SHOES) LTD,12563,7,30.05,CLOTHING,23/01/14,
800028277,*NPS (SHOES) LTD,12563,8,30.05,CLOTHING,23/01/14,
800028277,*NPS (SHOES) LTD,12563,9,29.45,CLOTHING,23/01/14,
800028277,*NPS (SHOES) LTD,12563,10,29.45,CLOTHING,23/01/14,
800028277,*NPS (SHOES) LTD,12563,11,29.45,CLOTHING,23/01/14,
800028277,*NPS (SHOES) LTD,12563,12,29.45,CLOTHING,23/01/14,
800028277,*NPS (SHOES) LTD,12563,13,29.45,CLOTHING,23/01/14,
800028277,*NPS (SHOES) LTD,12563,14,29.45,CLOTHING,23/01/14,
800028277,*NPS (SHOES) LTD,12563,15,29.45,CLOTHING,23/01/14,
800028277,*NPS (SHOES) LTD,12563,16,29.45,CLOTHING,23/01/14,
800028277,*NPS (SHOES) LTD,12563,17,29.45,CLOTHING,23/01/14,
800028277,*NPS (SHOES) LTD,12563,18,29.45,CLOTHING,23/01/14,
800028277,*NPS (SHOES) LTD,12563,19,29.45,CLOTHING,23/01/14,
800028277,*NPS (SHOES) LTD,12563,20,29.45,CLOTHING,23/01/14,
800028277,*NPS (SHOES) LTD,12563,21,29.45,CLOTHING,23/01/14,
800028277,*NPS (SHOES) LTD,12563,22,29.45,CLOTHING,23/01/14,
800028277,*NPS (SHOES) LTD,12563,23,29.45,CLOTHING,23/01/14,
800028277,*NPS (SHOES) LTD,12563,24,29.45,CLOTHING,23/01/14,
800028277,*NPS (SHOES) LTD,12563,25,29.45,CLOTHING,23/01/14,
800028277,*NPS (SHOES) LTD,12563,26,29.45,CLOTHING,23/01/14,
800028277,*NPS (SHOES) LTD,12563,27,29.45,CLOTHING,23/01/14,
800028277,*NPS (SHOES) LTD,12563,28,29.45,CLOTHING,23/01/14,
800028277,*NPS (SHOES) LTD,12563,29,29.45,CLOTHING,23/01/14,
800028277,*NPS (SHOES) LTD,12563,30,29.45,CLOTHING,23/01/14,
800028277,*NPS (SHOES) LTD,12563,31,28.45,CLOTHING,23/01/14,
800028277,*NPS (SHOES) LTD,12563,32,41.10,CLOTHING,23/01/14,
800028277,*NPS (SHOES) LTD,12563,33,41.10,CLOTHING,23/01/14,
800028277,*NPS (SHOES) LTD,12563,34,30.05,CLOTHING,23/01/14,
800028277,*NPS (SHOES) LTD,12563,35,30.05,CLOTHING,23/01/14,
800028277,*NPS (SHOES) LTD,12563,36,29.45,CLOTHING,23/01/14,
800028277,*NPS (SHOES) LTD,12563,37,29.45,CLOTHING,23/01/14,
800028277,*NPS (SHOES) LTD,12563,38,29.45,CLOTHING,23/01/14,
800028277,*NPS (SHOES) LTD,12563,39,29.45,CLOTHING,23/01/14,
800028277,*NPS (SHOES) LTD,12563,40,29.45,CLOTHING,23/01/14,
800028277,*NPS (SHOES) LTD,12563,41,29.45,CLOTHING,23/01/14,
800028277,*NPS (SHOES) LTD,12563,42,29.45,CLOTHING,23/01/14,
800028277,*NPS (SHOES) LTD,12563,43,29.45,CLOTHING,23/01/14,
800028277,*NPS (SHOES) LTD,12563,44,29.45,CLOTHING,23/01/14,
800028277,*NPS (SHOES) LTD,12563,45,29.45,CLOTHING,23/01/14,
800028277,*NPS (SHOES) LTD,12563,46,29.45,CLOTHING,23/01/14,
800028277,*NPS (SHOES) LTD,12563,47,29.45,CLOTHING,23/01/14,
800028277,*NPS (SHOES) LTD,12563,48,29.45,CLOTHING,23/01/14,
800028277,*NPS (SHOES) LTD,12563,49,29.45,CLOTHING,23/01/14,
800028277,*NPS (SHOES) LTD,12563,50,29.45,CLOTHING,23/01/14,
140527,AFFINITY WATER,12960038V,1,"1,086.19",WATER & SEWERAGE RATES,23/01/14,"1,086.19"
140526,MISS KERSTIN BOYD=============,156669,1,"1,000.00",COUNSELS FEES,23/01/14,"1,000.00"
160114G,DYSLEXIA ACTION,158666,1,540.00,PROFESSIONAL DEVELOPMENT,23/01/14,540.00
140526,MR JAMES TODD=================,181864B,1,350.00,COUNSELS FEES,23/01/14,350.00
140526,MISS BO-EUN JUNG==============,227831*,1,700.00,PROFESSIONAL FEES ENFORCEMENT,23/01/14,700.00
140526,MISS SARAH LE FEVRE===========,229470,1,"10,876.67",PROFESSIONAL FEES ENFORCEMENT,23/01/14,"10,876.67"
140526,MISS BO-EUN JUNG==============,230591B,1,490.00,PROFESSIONAL FEES ENFORCEMENT,23/01/14,490.00
140526,MISS BO-EUN JUNG==============,232319,1,"1,400.00",PROFESSIONAL FEES ENFORCEMENT,23/01/14,"1,400.00"
140526,MISS BO-EUN JUNG==============,233143,1,840.00,PROFESSIONAL FEES ENFORCEMENT,23/01/14,840.00
200114G,ALARM=========================,24004,1,695.00,SUBSCRIPTIONS,23/01/14,695.00
160114G,ARKAS LIMITED=================,24046,1,175.75,STRATEGIC (CYCLICAL),23/01/14,"1,112.96"
160114G,ARKAS LIMITED=================,24046,2,298.82,STRATEGIC (CYCLICAL),23/01/14,
160114G,ARKAS LIMITED=================,24046,3,218.50,STRATEGIC (CYCLICAL),23/01/14,
160114G,ARKAS LIMITED=================,24046,4,419.89,STRATEGIC (CYCLICAL),23/01/14,
170114C,ARKAS LIMITED=================,24071,1,990.00,STRATEGIC (NON CYCLICAL),23/01/14,990.00
160114G,CARPETS & FLOOR COVERS DIRECT=,2415,1,"1,826.75",FIXTURES & FITTINGS,23/01/14,"1,826.75"
160114G,ARKAS LIMITED=================,24201,1,175.75,STRATEGIC (CYCLICAL),23/01/14,"1,064.50"
160114G,ARKAS LIMITED=================,24201,2,551.50,STRATEGIC (CYCLICAL),23/01/14,
160114G,ARKAS LIMITED=================,24201,3,161.50,STRATEGIC (CYCLICAL),23/01/14,
160114G,ARKAS LIMITED=================,24201,4,175.75,STRATEGIC (CYCLICAL),23/01/14,
170114C,ARKAS LIMITED=================,24411,1,"1,697.00",STRATEGIC (NON CYCLICAL),23/01/14,"1,697.00"
170114C,ARKAS LIMITED=================,24435,1,652.00,STRATEGIC (CYCLICAL),23/01/14,652.00
170114C,ARKAS LIMITED=================,24530,1,"15,077.19",STRATEGIC (CYCLICAL),23/01/14,"15,077.19"
170114C,ARKAS LIMITED=================,24789,1,"4,487.00",STRATEGIC (NON CYCLICAL),23/01/14,"4,487.00"
170114C,BRITISH TELECOM===============,25605255Q050,1,"69,605.08",TELECOMMUNICATIONS,23/01/14,"69,605.08"
100114C,L B OF SUTTON=================,3183667700,1,672.00,CRB CHECKS,23/01/14,672.00
170114C,WALKER CONSTRUCTION (UK) LIMIT,34016,1,"10,945.85",DEVELOPMENT  EXPENSES-CONTRACT,23/01/14,"10,945.85"
130114C,360 SYSTEMS LIMITED===========,3602177,1,903.13,CONSULTANTS,23/01/14,903.13
160114G,CLASSIC VIDEO INTERNATIONAL===,37722,1,400.00,PUBLIC RELATIONS,23/01/14,400.00
200114G,*HOMEPACK LTD=================,38053,1,296.00,OPERATIONAL EQUIP-PURCHASE,23/01/14,296.00
200114G,*HOMEPACK LTD=================,38059,1,296.00,OPERATIONAL EQUIP-PURCHASE,23/01/14,296.00
200114G,*HOMEPACK LTD=================,38097,1,296.00,OPERATIONAL EQUIP-PURCHASE,23/01/14,296.00
160114G,WILLIAM SUGDEN & SONS LTD=====,40212,1,229.50,UNIFORMS - POMS,23/01/14,765.00
160114G,WILLIAM SUGDEN & SONS LTD=====,40212,2,306.00,UNIFORMS - POMS,23/01/14,
160114G,WILLIAM SUGDEN & SONS LTD=====,40212,3,229.50,UNIFORMS - POMS,23/01/14,
170114C,BOND DICKINSON LLP,4162649,1,352.50,PROFESSIONAL SERVICES,23/01/14,352.50
800028324,*BURLINGTON UNIFORMS LTD,424676,1,60.48,CLOTHING,23/01/14,252.35
800028324,*BURLINGTON UNIFORMS LTD,424676,2,191.87,CLOTHING,23/01/14,
800027969,*GREENHAM TRADING LTD=========,5625109,1,8.99,HYGIENE,23/01/14,292.37
800027969,*GREENHAM TRADING LTD=========,5625109,2,100.52,HYGIENE,23/01/14,
800027969,*GREENHAM TRADING LTD=========,5625109,3,21.24,HYGIENE,23/01/14,
800027969,*GREENHAM TRADING LTD=========,5625109,4,21.62,HYGIENE,23/01/14,
800027969,*GREENHAM TRADING LTD=========,5625109,5,21.62,HYGIENE,23/01/14,
800027969,*GREENHAM TRADING LTD=========,5625109,6,105.90,OFFICE EQUIPMENT,23/01/14,
800027969,*GREENHAM TRADING LTD=========,5625109,7,9.88,HYGIENE,23/01/14,
800027969,*GREENHAM TRADING LTD=========,5625109,8,2.60,CATERING EQUIPMENT,23/01/14,
200114G,DISCLOSURE SCOTLAND===========,592725,1,825.00,CRB CHECKS,23/01/14,825.00
140527,THAMES WATER UTILITIES LTD====,6395955189K,1,333.12,WATER & SEWERAGE RATES,23/01/14,333.12
170114C,SWEETT  UK LTD,7032731,1,899.09,PROF FEES-MISCELLANEOUS,23/01/14,899.09
150114C,SHEILA PANTRY ASSOCIATES LTD==,748/2014,1,825.00,BOOKS & JOURNALS,23/01/14,825.00
160114G,CANON (UK) LTD===============,770451234,1,225.06,OFFICE EQUIPMENT,23/01/14,450.12
160114G,CANON (UK) LTD===============,770451234,2,225.06,OFFICE EQUIPMENT,23/01/14,
170114C,SHARPE PRITCHARD==============,77695,1,"3,765.00",GENERAL,23/01/14,"3,765.00"
170114C,AON HEWITT LIMITED,7968645,1,"14,380.00",CONSULTANTS,23/01/14,"14,380.00"
200114G,DRAEGER SAFETY UK LIMITED=====,90434167,1,466.20,PROTECTIVE EQUIPT - PARTS,23/01/14,466.20
200114G,DRAEGER SAFETY UK LIMITED=====,90434168,1,"1,080.44",REPAIR & MAINTENANCE,23/01/14,"1,080.44"
200114G,DRAEGER SAFETY UK LIMITED=====,90434302,1,354.60,PROTECTIVE EQUIPT - PARTS,23/01/14,354.60
200114G,DRAEGER SAFETY UK LIMITED=====,90434406,1,"1,134.80",PROTECTIVE EQUIPT - PARTS,23/01/14,"1,134.80"
200114G,FIRE SERVICE COLLEGE LTD======,93326227,1,"5,890.00",PROFESSIONAL DEVELOPMENT,23/01/14,"5,890.00"
200114G,THAMES AERIAL SERVICES========,A113491,1,470.00,TACTICAL DAY TO DAY,23/01/14,470.00
070114F,LPFA CONTRIBUTIONS ACCOUNT====,BD492,1,"63,947.00",PENSION SERVICES,23/01/14,"63,947.00"
170114C,KIER BUILDING SERV ENGINEERS==,F00046808,1,500.00,STRATEGIC (NON CYCLICAL),23/01/14,500.00
130114G,HALL FUELS,I06564426,1,"2,189.20",FUEL,23/01/14,"2,189.20"
170114C,PURDY CONTRACTS LTD,IN229593,1,"10,295.70",STRATEGIC (NON CYCLICAL),23/01/14,"10,295.70"
140529,JCT600 CONTRACTS LIMITED======,INV00050901,1,250.62,LEASE CAR CHARGES,23/01/14,250.62
140529,JCT600 CONTRACTS LIMITED======,INV00050901,2,-21.90,VAT CAR LEASING,23/01/14,
140529,JCT600 CONTRACTS LIMITED======,INV00050901,3,21.90,LEASE CAR CHARGES,23/01/14,
140527,JCT600 CONTRACTS LIMITED======,INV00051115,1,459.21,LEASE CAR CHARGES,23/01/14,459.21
140527,JCT600 CONTRACTS LIMITED======,INV00051115,2,-40.30,VAT CAR LEASING,23/01/14,
140527,JCT600 CONTRACTS LIMITED======,INV00051115,3,40.30,LEASE CAR CHARGES,23/01/14,
140527,JCT600 CONTRACTS LIMITED======,INV00051116,1,322.43,LEASE CAR CHARGES,23/01/14,322.43
140527,JCT600 CONTRACTS LIMITED======,INV00051116,2,-27.09,VAT CAR LEASING,23/01/14,
140527,JCT600 CONTRACTS LIMITED======,INV00051116,3,27.09,LEASE CAR CHARGES,23/01/14,
140527,JCT600 CONTRACTS LIMITED======,INV00051117,1,562.19,LEASE CAR CHARGES,23/01/14,562.19
140527,JCT600 CONTRACTS LIMITED======,INV00051117,2,-49.82,VAT CAR LEASING,23/01/14,
140527,JCT600 CONTRACTS LIMITED======,INV00051117,3,49.82,LEASE CAR CHARGES,23/01/14,
140529,JCT600 CONTRACTS LIMITED======,INV00051118,1,395.54,LEASE CAR CHARGES,23/01/14,395.54
140529,JCT600 CONTRACTS LIMITED======,INV00051118,2,-34.42,VAT CAR LEASING,23/01/14,
140529,JCT600 CONTRACTS LIMITED======,INV00051118,3,34.42,LEASE CAR CHARGES,23/01/14,
140527,JCT600 CONTRACTS LIMITED======,INV00051119,1,337.02,LEASE CAR CHARGES,23/01/14,337.02
140527,JCT600 CONTRACTS LIMITED======,INV00051119,2,-28.98,VAT CAR LEASING,23/01/14,
140527,JCT600 CONTRACTS LIMITED======,INV00051119,3,28.98,LEASE CAR CHARGES,23/01/14,
140527,JCT600 CONTRACTS LIMITED======,INV00051120,1,343.36,LEASE CAR CHARGES,23/01/14,343.36
140527,JCT600 CONTRACTS LIMITED======,INV00051120,2,-30.44,VAT CAR LEASING,23/01/14,
140527,JCT600 CONTRACTS LIMITED======,INV00051120,3,30.44,LEASE CAR CHARGES,23/01/14,
140527,JCT600 CONTRACTS LIMITED======,INV00051121,1,354.71,LEASE CAR CHARGES,23/01/14,354.71
140527,JCT600 CONTRACTS LIMITED======,INV00051121,2,-31.43,VAT CAR LEASING,23/01/14,
140527,JCT600 CONTRACTS LIMITED======,INV00051121,3,31.43,LEASE CAR CHARGES,23/01/14,
140527,JCT600 CONTRACTS LIMITED======,INV00051122,1,653.49,LEASE CAR CHARGES,23/01/14,653.49
140527,JCT600 CONTRACTS LIMITED======,INV00051122,2,-60.10,VAT CAR LEASING,23/01/14,
140527,JCT600 CONTRACTS LIMITED======,INV00051122,3,60.10,LEASE CAR CHARGES,23/01/14,
140529,JCT600 CONTRACTS LIMITED======,INV00051123,1,331.71,LEASE CAR CHARGES,23/01/14,331.71
140529,JCT600 CONTRACTS LIMITED======,INV00051123,2,-29.33,VAT CAR LEASING,23/01/14,
140529,JCT600 CONTRACTS LIMITED======,INV00051123,3,29.33,LEASE CAR CHARGES,23/01/14,
140527,JCT600 CONTRACTS LIMITED======,INV00051124,1,462.69,LEASE CAR CHARGES,23/01/14,462.69
140527,JCT600 CONTRACTS LIMITED======,INV00051124,2,-40.48,VAT CAR LEASING,23/01/14,
140527,JCT600 CONTRACTS LIMITED======,INV00051124,3,40.48,LEASE CAR CHARGES,23/01/14,
140529,JCT600 CONTRACTS LIMITED======,INV00051127,1,280.90,LEASE CAR CHARGES,23/01/14,280.90
140529,JCT600 CONTRACTS LIMITED======,INV00051127,2,-25.97,VAT CAR LEASING,23/01/14,
140529,JCT600 CONTRACTS LIMITED======,INV00051127,3,25.97,LEASE CAR CHARGES,23/01/14,
140527,JCT600 CONTRACTS LIMITED======,INV00051129,1,447.63,LEASE CAR CHARGES,23/01/14,447.63
140527,JCT600 CONTRACTS LIMITED======,INV00051129,2,-39.41,VAT CAR LEASING,23/01/14,
140527,JCT600 CONTRACTS LIMITED======,INV00051129,3,39.41,LEASE CAR CHARGES,23/01/14,
200114G,EDE'S (UK) LTD================,INV12747,1,"1,382.40",STRATEGIC (NON CYCLICAL),23/01/14,"1,382.40"
140529,LEX AUTOLEASE,IRIN328211,1,"1,345.20",LEASE CAR CHARGES,23/01/14,"4,676.16"
140529,LEX AUTOLEASE,IRIN328211,2,"3,330.96",P/PAYMTS-CAR LEASG-RENTAL,23/01/14,
140529,LEX AUTOLEASE,IRIN328211,3,-413.98,VAT CAR LEASING,23/01/14,
140529,LEX AUTOLEASE,IRIN328211,4,413.98,LEASE CAR CHARGES,23/01/14,
170114C,COFELY WORKPLACE LIMITED,M124778,1,"22,948.37",TACTICAL DAY TO DAY,23/01/14,"75,546.56"
170114C,COFELY WORKPLACE LIMITED,M124778,2,92.89,TACTICAL DAY TO DAY,23/01/14,
170114C,COFELY WORKPLACE LIMITED,M124778,3,272.82,TACTICAL DAY TO DAY,23/01/14,
170114C,COFELY WORKPLACE LIMITED,M124778,4,"51,494.88",STRATEGIC (CYCLICAL),23/01/14,
170114C,COFELY WORKPLACE LIMITED,M124778,5,208.24,STRATEGIC (CYCLICAL),23/01/14,
170114C,COFELY WORKPLACE LIMITED,M124778,6,529.36,STRATEGIC (CYCLICAL),23/01/14,
170114C,COFELY WORKPLACE LIMITED,M125832,1,"22,948.37",TACTICAL DAY TO DAY,23/01/14,"75,546.56"
170114C,COFELY WORKPLACE LIMITED,M125832,2,92.89,TACTICAL DAY TO DAY,23/01/14,
170114C,COFELY WORKPLACE LIMITED,M125832,3,272.82,TACTICAL DAY TO DAY,23/01/14,
170114C,COFELY WORKPLACE LIMITED,M125832,4,"51,494.88",STRATEGIC (CYCLICAL),23/01/14,
170114C,COFELY WORKPLACE LIMITED,M125832,5,208.24,STRATEGIC (CYCLICAL),23/01/14,
170114C,COFELY WORKPLACE LIMITED,M125832,6,529.36,STRATEGIC (CYCLICAL),23/01/14,
800028280,ALLSTAR BUSINESS SOLUTIONS LTD,P2002190246,1,"1,522.57",FUEL,23/01/14,"18,953.67"
800028280,ALLSTAR BUSINESS SOLUTIONS LTD,P2002190246,2,699.06,FUEL,23/01/14,
800028280,ALLSTAR BUSINESS SOLUTIONS LTD,P2002190246,3,610.77,FUEL,23/01/14,
800028280,ALLSTAR BUSINESS SOLUTIONS LTD,P2002190246,4,606.55,FUEL,23/01/14,
800028280,ALLSTAR BUSINESS SOLUTIONS LTD,P2002190246,5,416.43,FUEL,23/01/14,
800028280,ALLSTAR BUSINESS SOLUTIONS LTD,P2002190246,6,408.37,FUEL,23/01/14,
800028280,ALLSTAR BUSINESS SOLUTIONS LTD,P2002190246,7,404.08,FUEL,23/01/14,
800028280,ALLSTAR BUSINESS SOLUTIONS LTD,P2002190246,8,383.07,FUEL,23/01/14,
800028280,ALLSTAR BUSINESS SOLUTIONS LTD,P2002190246,9,337.08,FUEL,23/01/14,
800028280,ALLSTAR BUSINESS SOLUTIONS LTD,P2002190246,10,336.87,FUEL,23/01/14,
800028280,ALLSTAR BUSINESS SOLUTIONS LTD,P2002190246,11,328.68,FUEL,23/01/14,
800028280,ALLSTAR BUSINESS SOLUTIONS LTD,P2002190246,12,327.97,FUEL,23/01/14,
800028280,ALLSTAR BUSINESS SOLUTIONS LTD,P2002190246,13,287.85,FUEL,23/01/14,
800028280,ALLSTAR BUSINESS SOLUTIONS LTD,P2002190246,14,267.74,FUEL,23/01/14,
800028280,ALLSTAR BUSINESS SOLUTIONS LTD,P2002190246,15,263.67,FUEL,23/01/14,
800028280,ALLSTAR BUSINESS SOLUTIONS LTD,P2002190246,16,258.87,FUEL,23/01/14,
800028280,ALLSTAR BUSINESS SOLUTIONS LTD,P2002190246,17,256.25,FUEL,23/01/14,
800028280,ALLSTAR BUSINESS SOLUTIONS LTD,P2002190246,18,249.35,FUEL,23/01/14,
800028280,ALLSTAR BUSINESS SOLUTIONS LTD,P2002190246,19,249.35,FUEL,23/01/14,
800028280,ALLSTAR BUSINESS SOLUTIONS LTD,P2002190246,20,246.88,FUEL,23/01/14,
800028280,ALLSTAR BUSINESS SOLUTIONS LTD,P2002190246,21,240.67,FUEL,23/01/14,
800028280,ALLSTAR BUSINESS SOLUTIONS LTD,P2002190246,22,238.59,FUEL,23/01/14,
800028280,ALLSTAR BUSINESS SOLUTIONS LTD,P2002190246,23,237.80,FUEL,23/01/14,
800028280,ALLSTAR BUSINESS SOLUTIONS LTD,P2002190246,24,236.05,FUEL,23/01/14,
800028280,ALLSTAR BUSINESS SOLUTIONS LTD,P2002190246,25,232.42,FUEL,23/01/14,
800028280,ALLSTAR BUSINESS SOLUTIONS LTD,P2002190246,26,231.39,FUEL,23/01/14,
800028280,ALLSTAR BUSINESS SOLUTIONS LTD,P2002190246,27,229.53,FUEL,23/01/14,
800028280,ALLSTAR BUSINESS SOLUTIONS LTD,P2002190246,28,224.88,FUEL,23/01/14,
800028280,ALLSTAR BUSINESS SOLUTIONS LTD,P2002190246,29,223.10,FUEL,23/01/14,
800028280,ALLSTAR BUSINESS SOLUTIONS LTD,P2002190246,30,217.90,FUEL,23/01/14,
800028280,ALLSTAR BUSINESS SOLUTIONS LTD,P2002190246,31,213.96,FUEL,23/01/14,
800028280,ALLSTAR BUSINESS SOLUTIONS LTD,P2002190246,32,212.82,FUEL,23/01/14,
800028280,ALLSTAR BUSINESS SOLUTIONS LTD,P2002190246,33,208.89,FUEL,23/01/14,
800028280,ALLSTAR BUSINESS SOLUTIONS LTD,P2002190246,34,198.38,FUEL,23/01/14,
800028280,ALLSTAR BUSINESS SOLUTIONS LTD,P2002190246,35,197.22,FUEL,23/01/14,
800028280,ALLSTAR BUSINESS SOLUTIONS LTD,P2002190246,36,192.89,FUEL,23/01/14,
800028280,ALLSTAR BUSINESS SOLUTIONS LTD,P2002190246,37,189.28,FUEL,23/01/14,
800028280,ALLSTAR BUSINESS SOLUTIONS LTD,P2002190246,38,178.16,FUEL,23/01/14,
800028280,ALLSTAR BUSINESS SOLUTIONS LTD,P2002190246,39,177.21,FUEL,23/01/14,
800028280,ALLSTAR BUSINESS SOLUTIONS LTD,P2002190246,40,174.58,FUEL,23/01/14,
800028280,ALLSTAR BUSINESS SOLUTIONS LTD,P2002190246,41,174.03,FUEL,23/01/14,
800028280,ALLSTAR BUSINESS SOLUTIONS LTD,P2002190246,42,169.54,FUEL,23/01/14,
800028280,ALLSTAR BUSINESS SOLUTIONS LTD,P2002190246,43,166.70,FUEL,23/01/14,
800028280,ALLSTAR BUSINESS SOLUTIONS LTD,P2002190246,44,161.88,FUEL,23/01/14,
800028280,ALLSTAR BUSINESS SOLUTIONS LTD,P2002190246,45,159.60,FUEL,23/01/14,
800028280,ALLSTAR BUSINESS SOLUTIONS LTD,P2002190246,46,159.53,FUEL,23/01/14,
800028280,ALLSTAR BUSINESS SOLUTIONS LTD,P2002190246,47,148.80,FUEL,23/01/14,
800028280,ALLSTAR BUSINESS SOLUTIONS LTD,P2002190246,48,147.32,FUEL,23/01/14,
800028280,ALLSTAR BUSINESS SOLUTIONS LTD,P2002190246,49,144.83,FUEL,23/01/14,
800028280,ALLSTAR BUSINESS SOLUTIONS LTD,P2002190246,50,144.73,FUEL,23/01/14,
800028280,ALLSTAR BUSINESS SOLUTIONS LTD,P2002190246,51,144.40,FUEL,23/01/14,
800028280,ALLSTAR BUSINESS SOLUTIONS LTD,P2002190246,52,139.03,FUEL,23/01/14,
800028280,ALLSTAR BUSINESS SOLUTIONS LTD,P2002190246,53,137.56,FUEL,23/01/14,
800028280,ALLSTAR BUSINESS SOLUTIONS LTD,P2002190246,54,130.90,FUEL,23/01/14,
800028280,ALLSTAR BUSINESS SOLUTIONS LTD,P2002190246,55,129.54,FUEL,23/01/14,
800028280,ALLSTAR BUSINESS SOLUTIONS LTD,P2002190246,56,128.61,FUEL,23/01/14,
800028280,ALLSTAR BUSINESS SOLUTIONS LTD,P2002190246,57,127.91,FUEL,23/01/14,
800028280,ALLSTAR BUSINESS SOLUTIONS LTD,P2002190246,58,127.28,FUEL,23/01/14,
800028280,ALLSTAR BUSINESS SOLUTIONS LTD,P2002190246,59,125.53,FUEL,23/01/14,
800028280,ALLSTAR BUSINESS SOLUTIONS LTD,P2002190246,60,121.58,FUEL,23/01/14,
800028280,ALLSTAR BUSINESS SOLUTIONS LTD,P2002190246,61,120.25,FUEL,23/01/14,
800028280,ALLSTAR BUSINESS SOLUTIONS LTD,P2002190246,62,119.46,FUEL,23/01/14,
800028280,ALLSTAR BUSINESS SOLUTIONS LTD,P2002190246,63,118.70,FUEL,23/01/14,
800028280,ALLSTAR BUSINESS SOLUTIONS LTD,P2002190246,64,118.28,FUEL,23/01/14,
800028280,ALLSTAR BUSINESS SOLUTIONS LTD,P2002190246,65,113.55,FUEL,23/01/14,
800028280,ALLSTAR BUSINESS SOLUTIONS LTD,P2002190246,66,112.58,FUEL,23/01/14,
800028280,ALLSTAR BUSINESS SOLUTIONS LTD,P2002190246,67,110.51,FUEL,23/01/14,
800028280,ALLSTAR BUSINESS SOLUTIONS LTD,P2002190246,68,109.75,FUEL,23/01/14,
800028280,ALLSTAR BUSINESS SOLUTIONS LTD,P2002190246,69,106.50,FUEL,23/01/14,
800028280,ALLSTAR BUSINESS SOLUTIONS LTD,P2002190246,70,101.83,FUEL,23/01/14,
800028280,ALLSTAR BUSINESS SOLUTIONS LTD,P2002190246,71,99.10,FUEL,23/01/14,
800028280,ALLSTAR BUSINESS SOLUTIONS LTD,P2002190246,72,97.33,FUEL,23/01/14,
800028280,ALLSTAR BUSINESS SOLUTIONS LTD,P2002190246,73,96.68,FUEL,23/01/14,
800028280,ALLSTAR BUSINESS SOLUTIONS LTD,P2002190246,74,93.60,FUEL,23/01/14,
800028280,ALLSTAR BUSINESS SOLUTIONS LTD,P2002190246,75,91.96,FUEL,23/01/14,
800028280,ALLSTAR BUSINESS SOLUTIONS LTD,P2002190246,76,90.22,FUEL,23/01/14,
800028280,ALLSTAR BUSINESS SOLUTIONS LTD,P2002190246,77,86.79,FUEL,23/01/14,
800028280,ALLSTAR BUSINESS SOLUTIONS LTD,P2002190246,78,83.99,FUEL,23/01/14,
800028280,ALLSTAR BUSINESS SOLUTIONS LTD,P2002190246,79,83.14,FUEL,23/01/14,
800028280,ALLSTAR BUSINESS SOLUTIONS LTD,P2002190246,80,80.41,FUEL,23/01/14,
800028280,ALLSTAR BUSINESS SOLUTIONS LTD,P2002190246,81,79.27,FUEL,23/01/14,
800028280,ALLSTAR BUSINESS SOLUTIONS LTD,P2002190246,82,78.64,FUEL,23/01/14,
800028280,ALLSTAR BUSINESS SOLUTIONS LTD,P2002190246,83,77.66,FUEL,23/01/14,
800028280,ALLSTAR BUSINESS SOLUTIONS LTD,P2002190246,84,71.71,FUEL,23/01/14,
800028280,ALLSTAR BUSINESS SOLUTIONS LTD,P2002190246,85,71.04,FUEL,23/01/14,
800028280,ALLSTAR BUSINESS SOLUTIONS LTD,P2002190246,86,70.59,FUEL,23/01/14,
800028280,ALLSTAR BUSINESS SOLUTIONS LTD,P2002190246,87,70.34,FUEL,23/01/14,
800028280,ALLSTAR BUSINESS SOLUTIONS LTD,P2002190246,88,65.83,FUEL,23/01/14,
800028280,ALLSTAR BUSINESS SOLUTIONS LTD,P2002190246,89,61.16,FUEL,23/01/14,
800028280,ALLSTAR BUSINESS SOLUTIONS LTD,P2002190246,90,50.08,FUEL,23/01/14,
800028280,ALLSTAR BUSINESS SOLUTIONS LTD,P2002190246,91,50.04,FUEL,23/01/14,
800028280,ALLSTAR BUSINESS SOLUTIONS LTD,P2002190246,92,48.71,FUEL,23/01/14,
800028280,ALLSTAR BUSINESS SOLUTIONS LTD,P2002190246,93,47.34,FUEL,23/01/14,
800028280,ALLSTAR BUSINESS SOLUTIONS LTD,P2002190246,94,44.41,FUEL,23/01/14,
800028280,ALLSTAR BUSINESS SOLUTIONS LTD,P2002190246,95,41.78,FUEL,23/01/14,
800028280,ALLSTAR BUSINESS SOLUTIONS LTD,P2002190246,96,41.74,FUEL,23/01/14,
800028280,ALLSTAR BUSINESS SOLUTIONS LTD,P2002190246,97,41.02,FUEL,23/01/14,
800028280,ALLSTAR BUSINESS SOLUTIONS LTD,P2002190246,98,40.24,FUEL,23/01/14,
800028280,ALLSTAR BUSINESS SOLUTIONS LTD,P2002190246,99,39.60,FUEL,23/01/14,
800028280,ALLSTAR BUSINESS SOLUTIONS LTD,P2002190246,100,39.08,FUEL,23/01/14,
800028280,ALLSTAR BUSINESS SOLUTIONS LTD,P2002190246,101,38.79,FUEL,23/01/14,
800028280,ALLSTAR BUSINESS SOLUTIONS LTD,P2002190246,102,36.28,FUEL,23/01/14,
800028280,ALLSTAR BUSINESS SOLUTIONS LTD,P2002190246,103,33.88,FUEL,23/01/14,
800028280,ALLSTAR BUSINESS SOLUTIONS LTD,P2002190246,104,26.34,FUEL,23/01/14,
800028280,ALLSTAR BUSINESS SOLUTIONS LTD,P2002190246,105,24.73,FUEL,23/01/14,
800028280,ALLSTAR BUSINESS SOLUTIONS LTD,P2002190246,106,22.26,FUEL,23/01/14,
160114G,PULLMAN MOTORS================,PULL202,1,600.00,OPERATIONAL EQUIP-PURCHASE,23/01/14,600.00
140527,ARVAL UK LTD,RI0001008384,1,289.27,LEASE CAR CHARGES,23/01/14,289.27
140527,ARVAL UK LTD,RI0001008384,2,-24.71,VAT CAR LEASING,23/01/14,
140527,ARVAL UK LTD,RI0001008384,3,24.71,LEASE CAR CHARGES,23/01/14,
902368,BABCOCK CRITICAL SERVICES LTD,SIMP012346,1,"1,270,830.50",VEHICLES,23/01/14,"1,301,223.29"
902368,BABCOCK CRITICAL SERVICES LTD,SIMP012346,2,"7,505.04",LOST & NFWT OPS EQUIPMENT,23/01/14,
902368,BABCOCK CRITICAL SERVICES LTD,SIMP012346,3,428.80,MODIFICATIONS,23/01/14,
902368,BABCOCK CRITICAL SERVICES LTD,SIMP012346,4,"1,608.39",MODIFICATIONS,23/01/14,
902368,BABCOCK CRITICAL SERVICES LTD,SIMP012346,5,"2,490.36",MODIFICATIONS,23/01/14,
902368,BABCOCK CRITICAL SERVICES LTD,SIMP012346,6,115.93,MODIFICATIONS,23/01/14,
902368,BABCOCK CRITICAL SERVICES LTD,SIMP012346,7,147.48,MODIFICATIONS,23/01/14,
902368,BABCOCK CRITICAL SERVICES LTD,SIMP012346,8,"7,558.65",MODIFICATIONS,23/01/14,
902368,BABCOCK CRITICAL SERVICES LTD,SIMP012346,9,"4,720.52",MODIFICATIONS,23/01/14,
902368,BABCOCK CRITICAL SERVICES LTD,SIMP012346,10,552.55,MODIFICATIONS,23/01/14,
902368,BABCOCK CRITICAL SERVICES LTD,SIMP012346,11,"5,265.07",VEHICLES NWFT,23/01/14,
140114E,BABCOCK CRITICAL SERVICES LTD,SIND000868,1,"40,000.00",PURCHASES-VEHICLES,23/01/14,"40,000.00"
800028279,*THOMAS KNEALE & CO LTD,TK105913,1,2.84,OFFICE FURNITURE,23/01/14,960.90
800028279,*THOMAS KNEALE & CO LTD,TK105913,2,10.89,CLOTHING,23/01/14,
800028279,*THOMAS KNEALE & CO LTD,TK105913,3,1.48,CLOTHING,23/01/14,
800028279,*THOMAS KNEALE & CO LTD,TK105913,4,3.47,CLOTHING,23/01/14,
800028279,*THOMAS KNEALE & CO LTD,TK105913,5,3.47,CLOTHING,23/01/14,
800028279,*THOMAS KNEALE & CO LTD,TK105913,6,2.96,CLOTHING,23/01/14,
800028279,*THOMAS KNEALE & CO LTD,TK105913,7,1.48,CLOTHING,23/01/14,
800028279,*THOMAS KNEALE & CO LTD,TK105913,8,5.35,CLOTHING,23/01/14,
800028279,*THOMAS KNEALE & CO LTD,TK105913,9,3.47,CLOTHING,23/01/14,
800028279,*THOMAS KNEALE & CO LTD,TK105913,10,10.89,CLOTHING,23/01/14,
800028279,*THOMAS KNEALE & CO LTD,TK105913,11,0.99,CLOTHING,23/01/14,
800028279,*THOMAS KNEALE & CO LTD,TK105913,12,10.89,CLOTHING,23/01/14,
800028279,*THOMAS KNEALE & CO LTD,TK105913,13,10.89,CLOTHING,23/01/14,
800028279,*THOMAS KNEALE & CO LTD,TK105913,14,10.89,CLOTHING,23/01/14,
800028279,*THOMAS KNEALE & CO LTD,TK105913,15,10.89,CLOTHING,23/01/14,
800028279,*THOMAS KNEALE & CO LTD,TK105913,16,1.48,CLOTHING,23/01/14,
800028279,*THOMAS KNEALE & CO LTD,TK105913,17,3.47,CLOTHING,23/01/14,
800028279,*THOMAS KNEALE & CO LTD,TK105913,18,10.89,CLOTHING,23/01/14,
800028279,*THOMAS KNEALE & CO LTD,TK105913,19,0.99,CLOTHING,23/01/14,
800028279,*THOMAS KNEALE & CO LTD,TK105913,20,3.47,CLOTHING,23/01/14,
800028279,*THOMAS KNEALE & CO LTD,TK105913,21,1.48,CLOTHING,23/01/14,
800028279,*THOMAS KNEALE & CO LTD,TK105913,22,10.89,CLOTHING,23/01/14,
800028279,*THOMAS KNEALE & CO LTD,TK105913,23,10.89,CLOTHING,23/01/14,
800028279,*THOMAS KNEALE & CO LTD,TK105913,24,10.89,CLOTHING,23/01/14,
800028279,*THOMAS KNEALE & CO LTD,TK105913,25,1.48,CLOTHING,23/01/14,
800028279,*THOMAS KNEALE & CO LTD,TK105913,26,1.48,CLOTHING,23/01/14,
800028279,*THOMAS KNEALE & CO LTD,TK105913,27,10.89,CLOTHING,23/01/14,
800028279,*THOMAS KNEALE & CO LTD,TK105913,28,3.47,CLOTHING,23/01/14,
800028279,*THOMAS KNEALE & CO LTD,TK105913,29,1.48,CLOTHING,23/01/14,
800028279,*THOMAS KNEALE & CO LTD,TK105913,30,10.89,CLOTHING,23/01/14,
800028279,*THOMAS KNEALE & CO LTD,TK105913,31,0.99,CLOTHING,23/01/14,
800028279,*THOMAS KNEALE & CO LTD,TK105913,32,3.47,CLOTHING,23/01/14,
800028279,*THOMAS KNEALE & CO LTD,TK105913,33,10.89,CLOTHING,23/01/14,
800028279,*THOMAS KNEALE & CO LTD,TK105913,34,2.96,CLOTHING,23/01/14,
800028279,*THOMAS KNEALE & CO LTD,TK105913,35,10.89,CLOTHING,23/01/14,
800028279,*THOMAS KNEALE & CO LTD,TK105913,36,2.96,CLOTHING,23/01/14,
800028279,*THOMAS KNEALE & CO LTD,TK105913,37,1.48,CLOTHING,23/01/14,
800028279,*THOMAS KNEALE & CO LTD,TK105913,38,3.47,CLOTHING,23/01/14,
800028279,*THOMAS KNEALE & CO LTD,TK105913,39,10.89,CLOTHING,23/01/14,
800028279,*THOMAS KNEALE & CO LTD,TK105913,40,6.94,CLOTHING,23/01/14,
800028279,*THOMAS KNEALE & CO LTD,TK105913,41,2.96,CLOTHING,23/01/14,
800028279,*THOMAS KNEALE & CO LTD,TK105913,42,10.89,CLOTHING,23/01/14,
800028279,*THOMAS KNEALE & CO LTD,TK105913,43,10.89,CLOTHING,23/01/14,
800028279,*THOMAS KNEALE & CO LTD,TK105913,44,3.47,CLOTHING,23/01/14,
800028279,*THOMAS KNEALE & CO LTD,TK105913,45,3.47,CLOTHING,23/01/14,
800028279,*THOMAS KNEALE & CO LTD,TK105913,46,1.48,CLOTHING,23/01/14,
800028279,*THOMAS KNEALE & CO LTD,TK105913,47,3.47,CLOTHING,23/01/14,
800028279,*THOMAS KNEALE & CO LTD,TK105913,48,10.89,CLOTHING,23/01/14,
800028279,*THOMAS KNEALE & CO LTD,TK105913,49,161.94,OFFICE FURNITURE,23/01/14,
800028279,*THOMAS KNEALE & CO LTD,TK105913,50,3.47,CLOTHING,23/01/14,
800028279,*THOMAS KNEALE & CO LTD,TK105913,51,53.98,OFFICE FURNITURE,23/01/14,
800028279,*THOMAS KNEALE & CO LTD,TK105913,52,10.89,CLOTHING,23/01/14,
800028279,*THOMAS KNEALE & CO LTD,TK105913,53,5.68,OFFICE FURNITURE,23/01/14,
800028279,*THOMAS KNEALE & CO LTD,TK105913,54,10.89,CLOTHING,23/01/14,
800028279,*THOMAS KNEALE & CO LTD,TK105913,55,2.96,CLOTHING,23/01/14,
800028279,*THOMAS KNEALE & CO LTD,TK105913,56,2.84,OFFICE FURNITURE,23/01/14,
800028279,*THOMAS KNEALE & CO LTD,TK105913,57,3.47,CLOTHING,23/01/14,
800028279,*THOMAS KNEALE & CO LTD,TK105913,58,1.48,CLOTHING,23/01/14,
800028279,*THOMAS KNEALE & CO LTD,TK105913,59,10.89,CLOTHING,23/01/14,
800028279,*THOMAS KNEALE & CO LTD,TK105913,60,0.99,CLOTHING,23/01/14,
800028279,*THOMAS KNEALE & CO LTD,TK105913,61,67.95,OFFICE FURNITURE,23/01/14,
800028279,*THOMAS KNEALE & CO LTD,TK105913,62,2.84,OFFICE FURNITURE,23/01/14,
800028279,*THOMAS KNEALE & CO LTD,TK105913,63,10.89,CLOTHING,23/01/14,
800028279,*THOMAS KNEALE & CO LTD,TK105913,64,6.94,CLOTHING,23/01/14,
800028279,*THOMAS KNEALE & CO LTD,TK105913,65,2.96,CLOTHING,23/01/14,
800028279,*THOMAS KNEALE & CO LTD,TK105913,66,6.94,CLOTHING,23/01/14,
800028279,*THOMAS KNEALE & CO LTD,TK105913,67,2.96,CLOTHING,23/01/14,
800028279,*THOMAS KNEALE & CO LTD,TK105913,68,10.89,CLOTHING,23/01/14,
800028279,*THOMAS KNEALE & CO LTD,TK105913,69,10.89,CLOTHING,23/01/14,
800028279,*THOMAS KNEALE & CO LTD,TK105913,70,10.89,CLOTHING,23/01/14,
800028279,*THOMAS KNEALE & CO LTD,TK105913,71,10.89,CLOTHING,23/01/14,
800028279,*THOMAS KNEALE & CO LTD,TK105913,72,3.47,CLOTHING,23/01/14,
800028279,*THOMAS KNEALE & CO LTD,TK105913,73,1.48,CLOTHING,23/01/14,
800028279,*THOMAS KNEALE & CO LTD,TK105913,74,10.89,CLOTHING,23/01/14,
800028279,*THOMAS KNEALE & CO LTD,TK105913,75,10.89,CLOTHING,23/01/14,
800028279,*THOMAS KNEALE & CO LTD,TK105913,76,67.95,OFFICE FURNITURE,23/01/14,
800028279,*THOMAS KNEALE & CO LTD,TK105913,77,10.89,CLOTHING,23/01/14,
800028279,*THOMAS KNEALE & CO LTD,TK105913,78,10.89,CLOTHING,23/01/14,
800028279,*THOMAS KNEALE & CO LTD,TK105913,79,135.90,OFFICE FURNITURE,23/01/14,
800028279,*THOMAS KNEALE & CO LTD,TK105913,80,5.68,OFFICE FURNITURE,23/01/14,
800028279,*THOMAS KNEALE & CO LTD,TK105913,81,10.89,CLOTHING,23/01/14,
140114C,VODAFONE PAGING LTD===========,VR1377736,1,"4,551.30",CELLULAR TELEPHONES,23/01/14,"4,551.30"
100114C,VODAFONE PAGING LTD===========,VR1377737,1,"1,885.05",CELLULAR TELEPHONES,23/01/14,"1,885.05"
902369,BABCOCK TRAINING LTD,PTSI010013,1,"1,437,634.95",OUTSOURCED TRAINING,24/01/14,"1,437,634.95"
220114C,FAITHORN FARRELL TIMMS========,010269,1,"1,197.34",PROF FEES-MISCELLANEOUS,27/01/14,"1,197.34"
130114C,HAYS ACCOUNTANCY & FINANCE====,1003923286,1,464.00,FRS STAFF AGENCY,27/01/14,464.00
100114G,UNITED ENGINEERING SERVICES LT,10253,1,751.60,CATERING FIXTURES,27/01/14,751.60
800028535,AZTEC COMPUTING LTD===========,10433,1,"11,375.00",MAINTENANCE & SUPPORT,27/01/14,"11,375.00"
800028542,AZTEC COMPUTING LTD===========,10434,1,"7,000.00",MAINTENANCE & SUPPORT,27/01/14,"7,000.00"
800028539,AZTEC COMPUTING LTD===========,10437,1,"4,200.00",MAINTENANCE & SUPPORT,27/01/14,"4,200.00"
220114C,HOK INTERNATIONAL LTD,13.33034.00-3,1,638.34,PROFESSIONAL SERVICES,27/01/14,638.34
220114C,AGE CONCERN HAVERING==========,13114,1,525.00,COMMUNITY RELATIONS,27/01/14,525.00
220114C,GP CONTRACTS==================,14895,1,300.00,OFFICE FURNITURE,27/01/14,300.00
160114G,DYSLEXIA ACTION,160774,1,840.00,PROFESSIONAL DEVELOPMENT,27/01/14,840.00
160114G,DYSLEXIA ACTION,160958,1,540.00,PROFESSIONAL DEVELOPMENT,27/01/14,540.00
220114F,VIGILANCE PROPERTIES,1779,1,"7,500.00",PREMISES SECURITY,27/01/14,"7,500.00"
140531,MS HEATHER OLIVER,232994,1,"1,120.00",PROFESSIONAL FEES ENFORCEMENT,27/01/14,"1,120.00"
230114F,ARKAS LIMITED=================,24805,1,197.50,STRATEGIC (CYCLICAL),27/01/14,904.32
230114F,ARKAS LIMITED=================,24805,2,202.01,STRATEGIC (CYCLICAL),27/01/14,
230114F,ARKAS LIMITED=================,24805,3,290.81,STRATEGIC (CYCLICAL),27/01/14,
230114F,ARKAS LIMITED=================,24805,4,214.00,STRATEGIC (CYCLICAL),27/01/14,
230114F,ARKAS LIMITED=================,24808,1,185.26,STRATEGIC (CYCLICAL),27/01/14,"1,994.66"
230114F,ARKAS LIMITED=================,24808,2,277.85,STRATEGIC (CYCLICAL),27/01/14,
230114F,ARKAS LIMITED=================,24808,3,"1,341.55",STRATEGIC (CYCLICAL),27/01/14,
230114F,ARKAS LIMITED=================,24808,4,190.00,STRATEGIC (CYCLICAL),27/01/14,
230114F,ARKAS LIMITED=================,24811,1,181.00,STRATEGIC (CYCLICAL),27/01/14,970.01
230114F,ARKAS LIMITED=================,24811,2,214.00,TACTICAL DAY TO DAY,27/01/14,
230114F,ARKAS LIMITED=================,24811,3,230.50,TACTICAL DAY TO DAY,27/01/14,
230114F,ARKAS LIMITED=================,24811,4,344.51,STRATEGIC (CYCLICAL),27/01/14,
230114F,ARKAS LIMITED=================,24812,1,514.00,STRATEGIC (CYCLICAL),27/01/14,"1,251.08"
230114F,ARKAS LIMITED=================,24812,2,181.00,STRATEGIC (CYCLICAL),27/01/14,
230114F,ARKAS LIMITED=================,24812,3,214.00,TACTICAL DAY TO DAY,27/01/14,
230114F,ARKAS LIMITED=================,24812,4,342.08,TACTICAL DAY TO DAY,27/01/14,
230114F,ARKAS LIMITED=================,24813,1,197.50,STRATEGIC (CYCLICAL),27/01/14,856.00
230114F,ARKAS LIMITED=================,24813,2,181.00,STRATEGIC (CYCLICAL),27/01/14,
230114F,ARKAS LIMITED=================,24813,3,296.50,STRATEGIC (CYCLICAL),27/01/14,
230114F,ARKAS LIMITED=================,24813,4,181.00,STRATEGIC (CYCLICAL),27/01/14,
230114F,ARKAS LIMITED=================,24814,1,197.50,STRATEGIC (CYCLICAL),27/01/14,"3,768.42"
230114F,ARKAS LIMITED=================,24814,2,"2,705.35",STRATEGIC (CYCLICAL),27/01/14,
230114F,ARKAS LIMITED=================,24814,3,562.61,STRATEGIC (CYCLICAL),27/01/14,
230114F,ARKAS LIMITED=================,24814,4,302.96,STRATEGIC (CYCLICAL),27/01/14,
230114F,ARKAS LIMITED=================,24815,1,"1,419.40",STRATEGIC (CYCLICAL),27/01/14,"2,177.33"
230114F,ARKAS LIMITED=================,24815,2,225.28,STRATEGIC (CYCLICAL),27/01/14,
230114F,ARKAS LIMITED=================,24815,3,283.03,STRATEGIC (CYCLICAL),27/01/14,
230114F,ARKAS LIMITED=================,24815,4,249.62,STRATEGIC (CYCLICAL),27/01/14,
230114F,ARKAS LIMITED=================,24816,1,181.00,STRATEGIC (CYCLICAL),27/01/14,"1,302.97"
230114F,ARKAS LIMITED=================,24816,2,422.06,STRATEGIC (CYCLICAL),27/01/14,
230114F,ARKAS LIMITED=================,24816,3,485.91,STRATEGIC (CYCLICAL),27/01/14,
230114F,ARKAS LIMITED=================,24816,4,214.00,STRATEGIC (CYCLICAL),27/01/14,
230114F,ARKAS LIMITED=================,24817,1,199.80,STRATEGIC (CYCLICAL),27/01/14,"1,053.04"
230114F,ARKAS LIMITED=================,24817,2,247.00,STRATEGIC (CYCLICAL),27/01/14,
230114F,ARKAS LIMITED=================,24817,3,406.00,STRATEGIC (CYCLICAL),27/01/14,
230114F,ARKAS LIMITED=================,24817,4,200.24,STRATEGIC (CYCLICAL),27/01/14,
230114F,ARKAS LIMITED=================,24818,1,304.00,STRATEGIC (CYCLICAL),27/01/14,"1,254.68"
230114F,ARKAS LIMITED=================,24818,2,389.50,STRATEGIC (CYCLICAL),27/01/14,
230114F,ARKAS LIMITED=================,24818,3,230.50,STRATEGIC (CYCLICAL),27/01/14,
230114F,ARKAS LIMITED=================,24818,4,330.68,STRATEGIC (CYCLICAL),27/01/14,
230114F,ARKAS LIMITED=================,24819,1,280.00,STRATEGIC (CYCLICAL),27/01/14,"1,247.20"
230114F,ARKAS LIMITED=================,24819,2,288.35,STRATEGIC (CYCLICAL),27/01/14,
230114F,ARKAS LIMITED=================,24819,3,494.01,STRATEGIC (CYCLICAL),27/01/14,
230114F,ARKAS LIMITED=================,24819,4,184.84,STRATEGIC (CYCLICAL),27/01/14,
230114F,ARKAS LIMITED=================,24820,1,615.15,STRATEGIC (CYCLICAL),27/01/14,"1,358.75"
230114F,ARKAS LIMITED=================,24820,2,200.10,STRATEGIC (CYCLICAL),27/01/14,
230114F,ARKAS LIMITED=================,24820,3,329.50,STRATEGIC (CYCLICAL),27/01/14,
230114F,ARKAS LIMITED=================,24820,4,214.00,STRATEGIC (CYCLICAL),27/01/14,
230114F,ARKAS LIMITED=================,24821,1,181.00,STRATEGIC (CYCLICAL),27/01/14,980.90
230114F,ARKAS LIMITED=================,24821,2,181.00,STRATEGIC (CYCLICAL),27/01/14,
230114F,ARKAS LIMITED=================,24821,3,352.15,STRATEGIC (CYCLICAL),27/01/14,
230114F,ARKAS LIMITED=================,24821,4,266.75,STRATEGIC (CYCLICAL),27/01/14,
230114F,ARKAS LIMITED=================,24822,1,296.50,STRATEGIC (CYCLICAL),27/01/14,"1,483.44"
230114F,ARKAS LIMITED=================,24822,2,652.75,STRATEGIC (CYCLICAL),27/01/14,
230114F,ARKAS LIMITED=================,24822,3,202.62,STRATEGIC (CYCLICAL),27/01/14,
230114F,ARKAS LIMITED=================,24822,4,331.57,STRATEGIC (CYCLICAL),27/01/14,
230114F,ARKAS LIMITED=================,24823,1,439.38,STRATEGIC (CYCLICAL),27/01/14,716.68
230114F,ARKAS LIMITED=================,24823,2,277.30,STRATEGIC (CYCLICAL),27/01/14,
220114C,MACE LIMITED,26915/0114277,1,"12,285.50",PROF FEES-MISCELLANEOUS,27/01/14,"12,285.50"
220114C,MACE LIMITED,26915/0114278,1,"10,467.97",PROF FEES-MISCELLANEOUS,27/01/14,"10,467.97"
220114F,PLANTFORCE====================,32149,1,603.00,TACTICAL DAY TO DAY,27/01/14,603.00
220114F,PLANTFORCE====================,32230,1,625.00,OFFICE EQUIPMENT,27/01/14,"1,130.00"
220114F,PLANTFORCE====================,32230,2,265.00,OFFICE EQUIPMENT,27/01/14,
220114F,PLANTFORCE====================,32230,3,240.00,OFFICE EQUIPMENT,27/01/14,
140530,THAMES WATER UTILITIES LTD====,33449-72311:,1,261.96,WATER & SEWERAGE RATES,27/01/14,261.96
200114G,HUNTERS CONTRACTS LIMITED,344711,1,688.94,OFFICE FURNITURE,27/01/14,688.94
230114F,SYKES & SON LIMITED===========,34761,1,850.00,STRATEGIC (NON CYCLICAL),27/01/14,850.00
230114F,*HOMEPACK LTD=================,38086,1,148.00,OPERATIONAL EQUIP-PURCHASE,27/01/14,296.00
230114F,*HOMEPACK LTD=================,38086,2,148.00,OPERATIONAL EQUIP-PURCHASE,27/01/14,
220114C,*HOMEPACK LTD=================,38144,1,444.00,OPERATIONAL EQUIP-PURCHASE,27/01/14,444.00
220114F,KNIGHTON CLEANING SERVICES LTD,38705,1,"1,060.76",HYGIENE,27/01/14,"1,060.76"
220114F,TECHNIFORM GRAPHICS LTD=======,402003,1,639.95,FIXTURES & FITTINGS,27/01/14,639.95
800028322,*BURLINGTON UNIFORMS LTD,424674,1,60.48,CLOTHING,27/01/14,252.35
800028322,*BURLINGTON UNIFORMS LTD,424674,2,191.87,CLOTHING,27/01/14,
800028326,*BURLINGTON UNIFORMS LTD,424678,1,17.30,CLOTHING,27/01/14,278.30
800028326,*BURLINGTON UNIFORMS LTD,424678,2,8.65,CLOTHING,27/01/14,
800028326,*BURLINGTON UNIFORMS LTD,424678,3,60.48,CLOTHING,27/01/14,
800028326,*BURLINGTON UNIFORMS LTD,424678,4,191.87,CLOTHING,27/01/14,
220114F,SPORTSAFE UK LTD==============,452868,1,266.19,GYM EQUIPMENT,27/01/14,266.19
220114F,SPORTSAFE UK LTD==============,452889,1,295.00,GYM EQUIPMENT,27/01/14,295.00
170114C,UNIFY,6000855078,1,900.00,TELECOMMUNICATIONS,27/01/14,900.00
230114F,MERLIN ELECTRICAL SERVICES LTD,6621,1,"1,480.00",STRATEGIC (NON CYCLICAL),27/01/14,"1,480.00"
230114F,GARRAN LOCKERS LTD============,67510,1,187.00,OFFICE FURNITURE,27/01/14,280.50
230114F,GARRAN LOCKERS LTD============,67510,2,93.50,OFFICE FURNITURE,27/01/14,
140530,THAMES WATER UTILITIES LTD====,69230-96400A,1,575.99,WATER & SEWERAGE RATES,27/01/14,575.99
220114C,H V SIER LTD==================,7/I44001,1,441.36,STATIONERY CONSUMABLES,27/01/14,441.36
220114F,CANON (UK) LTD===============,770445347,1,"1,380.90",OFFICE EQUIPMENT,27/01/14,"1,380.90"
220114F,CANON (UK) LTD===============,770445349,1,"1,601.41",OFFICE EQUIPMENT,27/01/14,"1,601.41"
220114F,CANON (UK) LTD===============,770445353,1,"1,205.49",OFFICE EQUIPMENT,27/01/14,"1,205.49"
220114C,CANON (UK) LTD===============,770446922,1,14.20,OFFICE EQUIPMENT,27/01/14,390.86
220114C,CANON (UK) LTD===============,770446922,2,376.66,OFFICE EQUIPMENT,27/01/14,
200114G,DRAEGER SAFETY UK LIMITED=====,90434407,1,"15,969.83",PURCHASE,27/01/14,"15,969.83"
200114G,DRAEGER SAFETY UK LIMITED=====,90434408,1,531.00,PROTECTIVE EQUIPT - PARTS,27/01/14,531.00
220114C,DRAEGER SAFETY UK LIMITED=====,90434886,1,502.83,PROTECTIVE EQUIPT - PARTS,27/01/14,502.83
220114F,ROYAL MAIL (LONDON DIVISION)==,9046372084,1,"1,678.34",POSTAL SERVICES,27/01/14,"1,950.00"
220114F,ROYAL MAIL (LONDON DIVISION)==,9046372084,2,271.66,POSTAL SERVICES,27/01/14,
220114F,ROYAL MAIL (LONDON DIVISION)==,9046436016,1,283.33,POSTAL SERVICES,27/01/14,283.33
220114F,THAMES AERIAL SERVICES========,A113583,1,265.00,TACTICAL DAY TO DAY,27/01/14,265.00
220114C,BSRN CONSULTING LTD,CB1167,1,679.90,CONSULTANTS,27/01/14,679.90
220114C,BSRN CONSULTING LTD,CB1171,1,"1,360.50",CONSULTANTS,27/01/14,"1,360.50"
140530,LONDON PENSIONS FUND AUTHORITY,ER946,1,"84,425.29",LOCAL GOVT PENSION SCHEME PAYM,27/01/14,"84,425.29"
140530,LONDON PENSIONS FUND AUTHORITY,ER947,1,"10,996.67",LOCAL GOVT PENSION SCHEME PAYM,27/01/14,"10,996.67"
220114F,WM ENGINEERING SERVICES LTD===,I-4625,1,300.00,TACTICAL DAY TO DAY,27/01/14,300.00
150114C,HALL FUELS,I06570088,1,"5,145.71",FUEL,27/01/14,"5,145.71"
230114F,PURDY CONTRACTS LTD,IN232116,1,"69,916.10",STRATEGIC (NON CYCLICAL),27/01/14,"69,916.10"
220114C,COFELY WORKPLACE LIMITED,M125117,1,436.89,STRATEGIC (NON CYCLICAL),27/01/14,"19,275.27"
220114C,COFELY WORKPLACE LIMITED,M125117,2,165.00,TACTICAL DAY TO DAY,27/01/14,
220114C,COFELY WORKPLACE LIMITED,M125117,3,110.00,TACTICAL DAY TO DAY,27/01/14,
220114C,COFELY WORKPLACE LIMITED,M125117,4,558.67,STRATEGIC (NON CYCLICAL),27/01/14,
220114C,COFELY WORKPLACE LIMITED,M125117,5,32.18,TACTICAL DAY TO DAY,27/01/14,
220114C,COFELY WORKPLACE LIMITED,M125117,6,638.00,STRATEGIC (NON CYCLICAL),27/01/14,
220114C,COFELY WORKPLACE LIMITED,M125117,7,616.00,STRATEGIC (NON CYCLICAL),27/01/14,
220114C,COFELY WORKPLACE LIMITED,M125117,8,110.00,TACTICAL DAY TO DAY,27/01/14,
220114C,COFELY WORKPLACE LIMITED,M125117,9,228.80,TACTICAL DAY TO DAY,27/01/14,
220114C,COFELY WORKPLACE LIMITED,M125117,10,110.00,TACTICAL DAY TO DAY,27/01/14,
220114C,COFELY WORKPLACE LIMITED,M125117,11,110.00,TACTICAL DAY TO DAY,27/01/14,
220114C,COFELY WORKPLACE LIMITED,M125117,12,64.44,TACTICAL DAY TO DAY,27/01/14,
